{"text_format":"1","workbook":"xlsx","n_sheets":8,"sheets":["Listado","Datos","Rendimientos","Imágenes 2D","Imágenes 3D","Índice sistemas","Estructura simple una placa","Estructura simple dos placas"],"not_rendered":{"charts":0,"images":45,"macros":1,"external_links":0,"defined_names":4,"comments":3,"pivot_tables":0},"unopened":[],"bounds":{"document_bytes":16777216,"sheet_cells":100000,"rows_first":2000,"rows_last":500,"rows_between":2000,"halvings":0,"cell_chars":16384,"cell_head_chars":4096},"cells_cut":0,"cells_raw":0,"read":"whole","date_system":"1900"}

{"sheet":"Listado","index":0,"n_rows":50,"n_cols":11,"rows_kept":50,"cut":false,"hidden":true,"merged":[[0,0,0,8],[1,0,1,8]]}
["ELEMENTOS SISTEMA"]
["LISTADO MATRIZ"]
[]
["CÓDIGO ARTÍCULO","DESCRIPCIÓN","COD.ARTICULO","T.M","ALTO","LARGO","UNI.CAJA","CAJAS/PALE","PREC.VENTA "]
["040113","PLACA ATT BASIC 13X600X1200 (78)","040113",3,0.6,1.2,1,78,6.36]
["040115","PLACA ATT BASIC 15X600X1200 (66)","040115",3,0.6,1.2,1,66,7.58]
["040120","PLACA ATT BASIC 20X600X1200 (48)","040120",3,0.6,1.2,1,48,10.76]
["040213","PLACA ATT HIDRO 13X600X1200 (78)","040213",3,0.6,1.2,1,78,11.19]
["040215","PLACA ATT HIDRO 15X600X1200 (66)","040215",3,0.6,1.2,1,66,12.78]
["040220","PLACA ATT HIDRO 20X600X1200 (48)","040220",3,0.6,1.2,1,48,18.22]
["040313","PLACA ATT FUEGO 13X600X1200 (78)","040313",3,0.6,1.2,1,78,9.2100000000000009]
["040315","PLACA ATT FUEGO 15X600X1200 (66)","040315",3,0.6,1.2,1,66,11.57]
["040320","PLACA ATT FUEGO 20X600X1200 (48)","040320",3,0.6,1.2,1,48,18.38]
["040413","PLACA ATT RESIST 13X600X1200 (78)","040413",3,1.2,0.6,1,78,10.71]
["040415","PLACA ATT RESIST 15X600X1200 (66)","040415",3,0.6,1.2,1,66,12.66]
["040420","PLACA ATT RESIST 20X600X1200 (48)","040420",3,0.6,1.2,1,48,20.12]
["040513","PLACA ATT HIDROPLUS 13X600X1200 (78)","040513",3,1.2,0.6,1,78,14.45]
["040515","PLACA ATT HIDROPLUS 15X600X1200 (66)","040515",3,0.6,1.2,1,66,17.09]
["040520","PLACA ATT HIDROPLUS 20X600X1200 (48)","040520",3,0.6,1.2,1,48,26.52]
["040613","PLACA ATT SUPREM 13X600X1200 (78)","040613",3,1.2,0.6,1,78,12.28]
["040615","PLACA ATT SUPREM 15X600X1200 (66)","040615",3,0.6,1.2,1,66,15.46]
["040620","PLACA ATT SUPREM 20X600X1200 (48)","040620",3,0.6,1.2,1,48,22.53]
["0470010110","PASTA ATT JUNTAS 10KG 60 MIN (56)","0470010110",1,0,0,56,1,19.850000000000001]
["0470010210","PASTA ATT JUNTAS 10KG 30 MIN (56)","0470010210",1,0,0,84,1,19.37]
["0470010310","PASTA ATT JUNTAS 10KG 300 MIN (56)","0470010310",1,0,0,84,1,38.65]
["0470010111","PASTA ATT JUNTAS H 10 KG 60 MIN (56) ","0470010111",1,0,0,56,1,30.34]
["0470010511","PASTA ATT JUNTAS H 10 KG 300 MIN (56) ","0470010511",1,0,0,56,1,45.17]
["0470010318","PASTA ATT AGARRE 17KG (35)","0470010318",1,0,0,56,1,14.74]
["0470010410","PASTA ATT DE ACABADO 10 KG (56)","0470010410",1,0,0,1,84,12.03]
["4800205","VARILLA ROSCADA M6 1M (100)","4800205",1,0,0,1,100,97.7]
["4800308","TACO HEMBRA ALTERON M6 (100)","4800308",1,0,0,1,100,19.5]
["480922001","HORQUILLA TC47 (100)","480922001",1,0,0,1,100,34.659999999999997]
["480922004","HORQUILLA TC60 (50)","480922004",1,0,0,1,50,41]
["480922J00","ABRAZADERA TC60 (100)","480922J00",1,0,0,1,100,70.849999999999994]
["480922J01","ABRAZADERA TC47 (50)","480922J01",1,0,0,1,50,34.659999999999997]
["48010348","JUNTA ESTANCA ATT 50MM (30)","48010348",1,0,0,21,12,16.59]
["48010370","JUNTA ESTANCA ATT 75MM (30)","48010370",1,0,0,15,12,24.06]
["48010390","JUNTA ESTANCA ATT 100MM (30)","48010390",1,0,0,9,2,31.63]
["4802010125","TORNILLOS ATT PP 3,5X25 (1000)","4802010125",1,1000,0,12,0,29.06]
["4802010135","TORNILLOS ATT PP 3,5X35 (1000)","4802010135",1,1000,0,12,0,33.28]
["4802010145","TORNILLOS ATT PP 3,5X45 (500)","4802010145",1,500,0,1,0,38.64]
["4802010155","TORNILLOS ATT PP 3,5X55 (500)","4802010155",1,500,0,1,0,47.74]
["48127030","MAESTRA ATT 70X3000","48127030",2,0,3,12,63,3.38]
["48128030","MAESTRA ATT 82X3000","48128030",2,0,3,12,42,2.52]
["48134730","PERFIL TC 47X3000 (12UDS)","48134730",2,0,3,12,63,2.39]
["48136030","PERFIL TC 60X3000 (8UDS)","48136030",2,0,3,8,42,3.18]
["48136045","PERFIL TC 60X4500 (8UDS)","48136045",2,0,4.5,8,42,3.18]
["48173330","PERFIL PH 45 33,5X3000","48173330",2,0,3,10,42,4.25]
["48173340","PERFIL PH 45 33,5X4000","48173340",2,0,4,12,35,4.25]
["48040101","MASILLA PARA ENCUENTROS ATT","48040101",2,0,0,300,12,{"$f":"J50/300","v":2.4199999999999999E-2},7.26,"Precio tarifa"]

{"sheet":"Datos","index":1,"n_rows":16,"n_cols":3,"rows_kept":16,"cut":false,"hidden":false,"merged":[[0,2,0,5],[1,2,1,5],[5,0,5,1],[8,0,8,1],[9,0,9,1],[4,0,4,1],[4,2,4,5],[5,2,5,5],[6,2,6,5],[7,2,7,5],[8,2,8,5],[9,2,9,5],[15,0,15,1],[13,0,13,1],[7,0,7,1],[6,0,6,1],[0,0,1,0],[10,0,10,1],[11,0,11,1],[12,0,12,1],[14,0,14,1],[15,2,15,5],[10,2,10,5],[11,2,11,5],[12,2,12,5],[13,2,13,5],[14,2,14,5]]}
[null,null,"RENDIMIENTO DE MATERIALES POR M2 DE OBRA"]
[null,null,"DATOS PROGRAMABLES POR USUARIO"]
[]
[]
["CÓDIGO",null,"DESCRIPCIÓN"]
[30,null,"DESCUENTO EN PLACA (%)"]
[30,null,"DESCUENTO EN PERFILERÍA (%)"]
[30,null,"DESCUENTO EN PASTAS (%)"]
[30,null,"DESCUENTO EN TORNILLOS Y FIJACIONES (%)"]
[30,null,"DESCUENTO EN CINTAS Y JUNTAS (%)"]
[20,null,"BENEFICIO PARA PRESUPUESTO (%)"]
["pedidos@elalteron.com",null,"Dirección para envío de pedidos"]
["repuesto@elalteron.com",null,"Dirección para envío de rendimientos "]
["compras@elalteron.com",null,"Dirección para envío de lista de materiales"]
["clientes@elalteron.com",null,"Dirección para envío de presupuestos"]
[19,null,"Precio por hora de la mano de obra (€/h)"]

{"sheet":"Rendimientos","index":2,"n_rows":141,"n_cols":7,"rows_kept":141,"cut":false,"hidden":true,"merged":[[0,0,0,5],[1,0,1,5]]}
["RENDIMIENTO DE MATERIALES POR M2 DE OBRA"]
["CUBICACIONES PARA TRASDOSADO "]
[]
["CODIGO",null,"MATERIALES","UD","CANTIDAD por m2","PIEZA"]
[null,null,"PLACA","m2",1.02]
[null,null,"HORQUILLA","ud",3,100]
[null,null,"TC (modulación 400)","m",3]
[null,null,"TC (modulación 600) ","m",2.1]
[null,null,"TORNILLO PP (modulación 400) TRASDOSADO SIMPLE","ud",18,1000]
[null,null,"TORNILLO PP (modulación 400) TRASDOSADO DOBLE 1ª CAPA","ud",18,1000]
[null,null,"TORNILLO PP (modulación 400) TRASDOSADO DOBLE 2ª CAPA","ud",18,1000]
[null,null,"TORNILLO PP (modulación 400) TRASDOSADO TRIPLE 1ª CAPA","ud",18,1000]
[null,null,"TORNILLO PP (modulación 400) TRASDOSADO TRIPLE 2ª CAPA","ud",18,1000]
[null,null,"TORNILLO PP (modulación 400) TRASDOSADO TRIPLE 3ª CAPA","ud",{"$f":"E9","v":18},1000]
[null,null,"TORNILLO PP (modulación 600) TRASDOSADO SIMPLE","ud",14,1000]
[null,null,"TORNILLO PP (modulación 600) TRASDOSADO DOBLE 1ª CAPA","ud",14,1000]
[null,null,"TORNILLO PP (modulación 600) TRASDOSADO DOBLE 2ª CAPA","ud",{"$f":"E15","v":14},1000]
[null,null,"TORNILLO PP (modulación 600) TRASDOSADO TRIPLE 1ª CAPA","ud",14,1000]
[null,null,"TORNILLO PP (modulación 600) TRASDOSADO TRIPLE 2ª CAPA","ud",14,1000]
[null,null,"TORNILLO PP (modulación 600) TRASDOSADO TRIPLE 3ª CAPA","ud",{"$f":"E15","v":14},1000]
["4800308",null,{"$f":"VLOOKUP(A21,Listado!A:B,2,FALSE)","v":"TACO HEMBRA ALTERON M6 (100)"},"ud",{"$f":"E6","v":3},100]
["48040101",null,{"$f":"Listado!B50","v":"MASILLA PARA ENCUENTROS ATT"},"mil",10,300]
["4800205",null,{"$f":"VLOOKUP(A23,Listado!A:B,2,FALSE)","v":"VARILLA ROSCADA M6 1M (100)"},"ud",{"$f":"E6","v":3},100,50]
[null,"Q2","Totalmente finalizado con nivel de acabado Q2","kg",0.11,10]
["0470010410","Q3","Totalmente finalizado con nivel de acabado Q3","kg",7.0000000000000007E-2,10]
["0470010410","Q4","Totalmente finalizado con nivel de acabado Q4","kg",0.22500000000000001,10]
["MODULACIÓN",null,600]
["MODULACIÓN",null,400]
[null,42,"Mano de obra techo e simple sencillo (modulación 400, Q2)","€/m2",{"$f":"F29*Datos!$A$16","v":5.89},0.31]
[null,43,"Mano de obra techo e simple sencillo (modulación 400, Q3)","€/m2",{"$f":"F30*Datos!$A$16","v":6.6499999999999995},0.35]
[null,44,"Mano de obra techo e simple sencillo (modulación 400, Q4)","€/m2",{"$f":"F31*Datos!$A$16","v":9.31},0.49]
[null,62,"Mano de obra techo e simple sencillo (modulación 600, Q2)","€/m2",{"$f":"F32*Datos!$A$16","v":4.9400000000000004},0.26]
[null,63,"Mano de obra techo e simple sencillo (modulación 600, Q3)","€/m2",{"$f":"F33*Datos!$A$16","v":5.7},0.3]
[null,64,"Mano de obra techo e simple sencillo (modulación 600, Q4)","€/m2",{"$f":"F34*Datos!$A$16","v":8.36},0.44]
[null,42,"TC TECHO DOBLE ESTRUC 1P (modulación 400)","€/m2",3.77]
[null,43,"TC TECHO DOBLE ESTRUC 1P (modulación 600) ","€/m2",2.63]
[null,44,"Estructura simple 1P 600","€/m2",{"$f":"F37*Datos!$A$16","v":4.5030000000000001},0.23699999999999999]
[null,62,"Estructura simple 1P 400","€/m2",{"$f":"F38*Datos!$A$16","v":5.4149999999999991},0.28499999999999998]
[null,63,"Estructura simple 2P 600","€/m2",{"$f":"F39*Datos!$A$16","v":6.0040000000000004},0.316]
[null,64,"Estructura simple 2P 400","€/m2",{"$f":"F40*Datos!$A$16","v":7.0110000000000001},0.36899999999999999]
[null,42,"Estructura doble 1P 600","€/m2",{"$f":"F41*Datos!$A$16","v":4.5030000000000001},0.23699999999999999]
[null,43,"Estructura doble 1P 400","€/m2",{"$f":"F42*Datos!$A$16","v":5.4149999999999991},0.28499999999999998]
[null,44,"Estructura doble 2P 600","€/m2",{"$f":"F43*Datos!$A$16","v":6.0040000000000004},0.316]
[null,62,"Estructura doble 2P 400","€/m2",{"$f":"F44*Datos!$A$16","v":7.0110000000000001},0.36899999999999999]
[null,63,"Techo fuego","€/m2",{"$f":"F45*Datos!$A$16","v":7.6950000000000003},0.40500000000000003]
[null,64,null,"€/m2",{"$f":"F46*Datos!$A$16","v":0}]
[null,null,"TC SECUNDARIO (modulación 400)","ml",2.8]
[null,null,"TC SECUNDARIO (modulación 600) ","ml",1.96]
[null,null,"TC PRIMARIO (1100 mm)","ml",1.1000000000000001]
[null,null,"Anclajes simple 400 (1100mm)","ud",2.9]
[null,null,"Anclajes simple 600 (1100mm)","ud",2.1]
[null,null,"Anclajes doble (primarios 1100mm)","ud",1.21]
[null,null,"Abrazaderas doble 600","ud",1.95]
[null,null,"Abrazaderas doble 400","ud",2.81]
[null,null,"Perfil GL (1000 mm)","ml",1.21]
[null,null,"Anclajes GL (3000mm)","ud",0.65]
[null,null,"Abrazaderas GL (modulacion 600)","ud",2.1800000000000002]
[null,null,"Abrazaderas GL (modulacion 400)","ud",3.13]
[null,null,"Anclajes semidirecto (modulación 600)","ud",6.8]
[null,null,"Anclajes semidirecto (modulación 400)","ud",9.74]
[null,null,null,"€/m2"]
[null,null,null,"€/m2"]
[null,null,"RENDIMIENTO ACABADO Q3","€/m2",{"$f":"F63*Datos!$A$16","v":2.0139999999999998},0.106]
[null,null,"RENDIMIENTO ACABADO Q4","€/m2",{"$f":"F64*Datos!$A$16","v":5.0065},0.26350000000000001]
[null,null,"RENDIMIENTO ACABADO Q3 - DOBLE PLACA","€/m2",{"$f":"F65*Datos!$A$16","v":4.085},0.215]
[null,null,"RENDIMIENTO ACABADO Q4","€/m2",{"$f":"F66*Datos!$A$16","v":7.0110000000000001},0.36899999999999999]
[null,null,null,"€/m2"]
["480922001",null,"HORQUILLA TC47 (100)","ud",6,100]
[null,null,null,"€/m2"]
[null,null,null,"€/m2"]
[null,null,null,"€/m2"]
[null,null,null,"€/m2"]
[null,null,null,"€/m2"]
[null,null,null,"€/m2"]
[null,null,null,"€/m2"]
[null,null,null,"€/m2"]
[null,null,null,"€/m2"]
[null,null,null,"€/m2"]
[null,null,null,"€/m2"]
[null,null,null,"€/m2"]
[null,null,null,"€/m2"]
[null,null,null,"€/m2"]
[null,null,null,"€/m2"]
[null,null,null,"€/m2"]
[null,null,null,"€/m2"]
[null,null,null,"€/m2"]
[null,null,null,"€/m2"]
[null,null,null,"€/m2"]
[null,null,null,"€/m2"]
[null,null,null,"€/m2"]
[null,null,null,"€/m2"]
[null,null,null,"€/m2"]
[null,null,null,"€/m2"]
[null,null,null,"€/m2"]
[null,null,null,"€/m2"]
[null,null,null,"€/m2"]
[null,null,null,"€/m2"]
[null,null,null,"€/m2"]
[null,null,null,"€/m2"]
[null,null,null,"€/m2"]
[null,null,null,"€/m2"]
[null,42,null,"€/m2"]
[null,43,null,"€/m2"]
[null,44,null,"€/m2"]
[null,62,null,"€/m2"]
[null,63,null,"€/m2"]
[null,64,null,"€/m2"]
[null,42,null,"€/m2"]
[null,43,null,"€/m2",{"$f":"F36*Datos!$A$16","v":0}]
[null,44,null,"€/m2",{"$f":"F37*Datos!$A$16","v":4.5030000000000001}]
[null,62,null,"€/m2",{"$f":"F38*Datos!$A$16","v":5.4149999999999991}]
[null,63,null,"€/m2",{"$f":"F39*Datos!$A$16","v":6.0040000000000004}]
[null,64,null,"€/m2",{"$f":"F40*Datos!$A$16","v":7.0110000000000001}]
[null,42,null,"€/m2",{"$f":"F41*Datos!$A$16","v":4.5030000000000001}]
[null,43,null,"€/m2",{"$f":"F42*Datos!$A$16","v":5.4149999999999991}]
[null,44,null,"€/m2",{"$f":"F43*Datos!$A$16","v":6.0040000000000004}]
[null,62,null,"€/m2",{"$f":"F44*Datos!$A$16","v":7.0110000000000001}]
[null,63,null,"€/m2",{"$f":"F45*Datos!$A$16","v":7.6950000000000003}]
[null,64,null,"€/m2",{"$f":"F46*Datos!$A$16","v":0}]
[null,null,null,"€/m2"]
[null,null,null,"€/m2"]
[null,null,null,"€/m2"]
[null,null,null,"€/m2"]
[null,null,null,"€/m2"]
[null,null,null,"€/m2"]
[null,null,null,"€/m2"]
[null,null,null,"€/m2"]
[null,null,null,"€/m2"]
[null,null,null,"€/m2"]
[null,null,null,"€/m2"]
[null,null,null,"€/m2"]
[null,null,null,"€/m2"]
[null,null,null,"€/m2"]
[null,null,null,"€/m2"]
[null,null,null,"€/m2"]
[null,null,null,"€/m2"]
[null,null,null,"€/m2"]
[null,null,null,"€/m2"]
[null,null,null,"€/m2"]
[null,null,null,"€/m2"]
[null,null,"NOTA: Rendimientos calculados teniendo en cuenta un despedicio del 2% en las placas y del 5% en el resto del sistema."]

{"sheet":"Imágenes 2D","index":3,"n_rows":6,"n_cols":15,"rows_kept":6,"cut":false,"hidden":true,"merged":[]}
[]
[null,1,2,3,4,5,6,2,3,4,null,1,2,3,4]
["Techo simple placa simple"]
[]
[null,1,2,3,4,5,6,2,3,4,null,1,2,3,4]
["Techo simple placa doble"]

{"sheet":"Imágenes 3D","index":4,"n_rows":6,"n_cols":17,"rows_kept":6,"cut":false,"hidden":true,"merged":[]}
[]
[null,1,2,3,4,5,6,null,1,2,3,4,null,1,2,3,4]
["Techo doble placa simple"]
[]
[null,1,2,3,4,5,6,null,1,2,3,4,null,1,2,3,4]
["Techo doble placa doble"]

{"sheet":"Índice sistemas","index":5,"n_rows":28,"n_cols":14,"rows_kept":28,"cut":false,"hidden":false,"merged":[[4,0,10,0],[11,0,17,0],[0,0,2,1],[4,1,10,1],[11,1,17,1]]}
[]
[]
[]
[null,"ESTRUCTURA SIMPLE","CÓDIGO","ID","SISTEMAS","M","M","P","Descripción Basic","Descripción Hidro","Descripción Fuego","Descripción Resist","Descripción HidroPlus","Descripción Suprem"]
["PLACA SIMPLE",null,{"$f":"F5*100+G5*100+H5","v":44713},"1.1.1","TECHO SIMPLE / ESTRUCTURA SIMPLE ATT® 47 / 400 1x13 ",400,47,13,"Techo continuo formado por una placa BASIC de 13 mm de espesor compuesta por yeso natural, fibra de vidrio y aditivos inorgánicos que le aportan alta dureza y resistencia mecánica. Reacción al fuego: EUROCLASE A1. Sistema de galces desiguales: las placas encajan entre ellas dejando una entrecalle de 3 mm por donde se inserte la pasta de juntas. Este sistema no utiliza cinta de papel. La pasta de juntas se aplica en las cavidades de las placas y una masilla elástica en los encuentros. Suspendido mediante una estructura simple de perfiles TC47 en acero galvanizado de 0,6 mm de espesor con modulación de 400 mm entre ejes y unidos al forjado mediante varilla roscada galvanizada y horquilla TC47. Incluida la parte proporcional del resto de materiales: tornillería, pasta de juntas, masilla para encuentros perimetrales, fijaciones, junta estanca, etc. Montaje según norma de instalación UNE 102043 y exigencias del CTE.","Techo continuo formado por una placa HIDRO de 13 mm de espesor compuesta por yeso natural, fibra de vidrio y aditivos inorgánicos que le aportan alta dureza y resistencia mecánica. Incorpora tratamiento hidrófugo, disminuyendo así, su capacidad de absorción de agua (menor al 5%). Idónea para proteger las estancias de los efectos adversos de la humedad. Reacción al fuego: EUROCLASE A1. Sistema de galces desiguales: las placas encajan entre ellas dejando una entrecalle de 3 mm por donde se inserte la pasta de juntas. Este sistema no utiliza cinta de papel. La pasta de juntas se aplica en las cavidades de las placas y una masilla elástica en los encuentros. Suspendido mediante una estructura simple de perfiles TC47 en acero galvanizado de 0,6 mm de espesor con modulación de 400 mm entre ejes y unidos al forjado mediante varilla roscada galvanizada y horquilla TC47. Incluida la parte proporcional del resto de materiales: tornillería, pasta de juntas, masilla para encuentros perimetrales, fijaciones, junta estanca, etc. Montaje según norma de instalación UNE 102043 y exigencias del CTE.","Techo continuo formado por una placa FUEGO de 13 mm de espesor compuesta por yeso natural, fibra de vidrio y aditivos inorgánicos que le aportan alta dureza y resistencia mecánica. Incorpora perlita y un aumento en la densidad que la hace idónea para un excelente comportamiento y resistencia frente al fuego. Reacción al fuego: EUROCLASE A1. Sistema de galces desiguales: las placas encajan entre ellas dejando una entrecalle de 3 mm por donde se inserte la pasta de juntas. Este sistema no utiliza cinta de papel. La pasta de juntas se aplica en las cavidades de las placas y una masilla elástica en los encuentros. Suspendido mediante una estructura simple de perfiles TC47 en acero galvanizado de 0,6 mm de espesor con modulación de 400 mm entre ejes y unidos al forjado mediante varilla roscada galvanizada y horquilla TC47. Incluida la parte proporcional del resto de materiales: tornillería, pasta de juntas, masilla para encuentros perimetrales, fijaciones, junta estanca, etc. Montaje según norma de instalación UNE 102043 y exigencias del CTE.","Techo continuo formado por una placa RESIST de 13 mm de espesor compuesta por yeso natural, fibra de vidrio y aditivos inorgánicos que le aportan alta dureza y resistencia mecánica. Con mayor cantidad de fibra de vidrio y dosificación modificada, aumenta su densidad, mejorando notablemente la resistencia mecánica. Idónea para lugares con altas exigencias en cuanto a deterioro y desgaste. Reacción al fuego: EUROCLASE A1. Sistema de galces desiguales: las placas encajan entre ellas dejando una entrecalle de 3 mm por donde se inserte la pasta de juntas. Este sistema no utiliza cinta de papel. La pasta de juntas se aplica en las cavidades de las placas y una masilla elástica en los encuentros. Suspendido mediante una estructura simple de perfiles TC47 en acero galvanizado de 0,6 mm de espesor con modulación de 400 mm entre ejes y unidos al forjado mediante varilla roscada galvanizada y horquilla TC47. Incluida la parte proporcional del resto de materiales: tornillería, pasta de juntas, masilla para encuentros perimetrales, fijaciones, junta estanca, etc. Montaje según norma de instalación UNE 102043 y exigencias del CTE.","Techo continuo formado por una placa HIDROPLUS de 13 mm de espesor compuesta por yeso natural, fibra de vidrio y aditivos inorgánicos que le aportan alta dureza y resistencia mecánica. Incorpora tratamiento hidrófugo y un aumento en su densidad, características claves para una elevada resistencia a la humedad (absorción de agua menor al 3%) y una gran resistencia mecánica. Idónea para zonas de intemperie. Reacción al fuego: EUROCLASE A1. Sistema de galces desiguales: las placas encajan entre ellas dejando una entrecalle de 3 mm por donde se inserte la pasta de juntas. Este sistema no utiliza cinta de papel. La pasta de juntas se aplica en las cavidades de las placas y una masilla elástica en los encuentros. Suspendido mediante una estructura simple de perfiles TC47 en acero galvanizado de 0,6 mm de espesor con modulación de 400 mm entre ejes y unidos al forjado mediante varilla roscada galvanizada y horquilla TC47. Incluida la parte proporcional del resto de materiales: tornillería, pasta de juntas, masilla para encuentros perimetrales, fijaciones, junta estanca, etc. Montaje según norma de instalación UNE 102043 y exigencias del CTE.","Techo continuo formado por una placa SUPREM de 13 mm de espesor compuesta por yeso natural, fibra de vidrio y aditivos inorgánicos que le aportan alta dureza y resistencia mecánica. Incorpora tratamiento hidrófugo, perlita y un aumento en la densidad para conseguir soluciones constructivas que cumplan, altos requisitos frente al fuego y una capacidad reducida de absorción de agua. Reacción al fuego: EUROCLASE A1. Sistema de galces desiguales: las placas encajan entre ellas dejando una entrecalle de 3 mm por donde se inserte la pasta de juntas. Este sistema no utiliza cinta de papel. La pasta de juntas se aplica en las cavidades de las placas y una masilla elástica en los encuentros. Suspendido mediante una estructura simple de perfiles TC47 en acero galvanizado de 0,6 mm de espesor con modulación de 400 mm entre ejes y unidos al forjado mediante varilla roscada galvanizada y horquilla TC47. Incluida la parte proporcional del resto de materiales: tornillería, pasta de juntas, masilla para encuentros perimetrales, fijaciones, junta estanca, etc. Montaje según norma de instalación UNE 102043 y exigencias del CTE."]
[null,null,44715,"1.1.2","TECHO SIMPLE / ESTRUCTURA SIMPLE ATT® 47 / 400 1x15",400,47,15,"Techo continuo formado por una placa BASIC de 15 mm de espesor compuesta por yeso natural, fibra de vidrio y aditivos inorgánicos que le aportan alta dureza y resistencia mecánica. Reacción al fuego: EUROCLASE A1. Sistema de galces desiguales: las placas encajan entre ellas dejando una entrecalle de 3 mm por donde se inserte la pasta de juntas. Este sistema no utiliza cinta de papel. La pasta de juntas se aplica en las cavidades de las placas y una masilla elástica en los encuentros. Suspendido mediante una estructura simple de perfiles TC47 en acero galvanizado de 0,6 mm de espesor con modulación de 400 mm entre ejes y unidos al forjado mediante varilla roscada galvanizada y horquilla TC47. Incluida la parte proporcional del resto de materiales: tornillería, pasta de juntas, masilla para encuentros perimetrales, fijaciones, junta estanca, etc. Montaje según norma de instalación UNE 102043 y exigencias del CTE.","Techo continuo formado por una placa HIDRO de 15 mm de espesor compuesta por yeso natural, fibra de vidrio y aditivos inorgánicos que le aportan alta dureza y resistencia mecánica. Incorpora tratamiento hidrófugo, disminuyendo así, su capacidad de absorción de agua (menor al 5%). Idónea para proteger las estancias de los efectos adversos de la humedad. Reacción al fuego: EUROCLASE A1. Sistema de galces desiguales: las placas encajan entre ellas dejando una entrecalle de 3 mm por donde se inserte la pasta de juntas. Este sistema no utiliza cinta de papel. La pasta de juntas se aplica en las cavidades de las placas y una masilla elástica en los encuentros. Suspendido mediante una estructura simple de perfiles TC47 en acero galvanizado de 0,6 mm de espesor con modulación de 400 mm entre ejes y unidos al forjado mediante varilla roscada galvanizada y horquilla TC47. Incluida la parte proporcional del resto de materiales: tornillería, pasta de juntas, masilla para encuentros perimetrales, fijaciones, junta estanca, etc. Montaje según norma de instalación UNE 102043 y exigencias del CTE.","Techo continuo formado por una placa FUEGO de 15 mm de espesor compuesta por yeso natural, fibra de vidrio y aditivos inorgánicos que le aportan alta dureza y resistencia mecánica. Incorpora perlita y un aumento en la densidad que la hace idónea para un excelente comportamiento y resistencia frente al fuego. Reacción al fuego: EUROCLASE A1. Sistema de galces desiguales: las placas encajan entre ellas dejando una entrecalle de 3 mm por donde se inserte la pasta de juntas. Este sistema no utiliza cinta de papel. La pasta de juntas se aplica en las cavidades de las placas y una masilla elástica en los encuentros. Suspendido mediante una estructura simple de perfiles TC47 en acero galvanizado de 0,6 mm de espesor con modulación de 400 mm entre ejes y unidos al forjado mediante varilla roscada galvanizada y horquilla TC47. Incluida la parte proporcional del resto de materiales: tornillería, pasta de juntas, masilla para encuentros perimetrales, fijaciones, junta estanca, etc. Montaje según norma de instalación UNE 102043 y exigencias del CTE.","Techo continuo formado por una placa RESIST de 15 mm de espesor compuesta por yeso natural, fibra de vidrio y aditivos inorgánicos que le aportan alta dureza y resistencia mecánica. Con mayor cantidad de fibra de vidrio y dosificación modificada, aumenta su densidad, mejorando notablemente la resistencia mecánica. Idónea para lugares con altas exigencias en cuanto a deterioro y desgaste. Reacción al fuego: EUROCLASE A1. Sistema de galces desiguales: las placas encajan entre ellas dejando una entrecalle de 3 mm por donde se inserte la pasta de juntas. Este sistema no utiliza cinta de papel. La pasta de juntas se aplica en las cavidades de las placas y una masilla elástica en los encuentros. Suspendido mediante una estructura simple de perfiles TC47 en acero galvanizado de 0,6 mm de espesor con modulación de 400 mm entre ejes y unidos al forjado mediante varilla roscada galvanizada y horquilla TC47. Incluida la parte proporcional del resto de materiales: tornillería, pasta de juntas, masilla para encuentros perimetrales, fijaciones, junta estanca, etc. Montaje según norma de instalación UNE 102043 y exigencias del CTE.","Techo continuo formado por una placa HIDROPLUS de 15 mm de espesor compuesta por yeso natural, fibra de vidrio y aditivos inorgánicos que le aportan alta dureza y resistencia mecánica. Incorpora tratamiento hidrófugo y un aumento en su densidad, características claves para una elevada resistencia a la humedad (absorción de agua menor al 3%) y una gran resistencia mecánica. Idónea para zonas de intemperie. Reacción al fuego: EUROCLASE A1. Sistema de galces desiguales: las placas encajan entre ellas dejando una entrecalle de 3 mm por donde se inserte la pasta de juntas. Este sistema no utiliza cinta de papel. La pasta de juntas se aplica en las cavidades de las placas y una masilla elástica en los encuentros. Suspendido mediante una estructura simple de perfiles TC47 en acero galvanizado de 0,6 mm de espesor con modulación de 400 mm entre ejes y unidos al forjado mediante varilla roscada galvanizada y horquilla TC47. Incluida la parte proporcional del resto de materiales: tornillería, pasta de juntas, masilla para encuentros perimetrales, fijaciones, junta estanca, etc. Montaje según norma de instalación UNE 102043 y exigencias del CTE.","Techo continuo formado por una placa SUPREM de 15 mm de espesor compuesta por yeso natural, fibra de vidrio y aditivos inorgánicos que le aportan alta dureza y resistencia mecánica. Incorpora tratamiento hidrófugo, perlita y un aumento en la densidad para conseguir soluciones constructivas que cumplan, altos requisitos frente al fuego y una capacidad reducida de absorción de agua. Reacción al fuego: EUROCLASE A1. Sistema de galces desiguales: las placas encajan entre ellas dejando una entrecalle de 3 mm por donde se inserte la pasta de juntas. Este sistema no utiliza cinta de papel. La pasta de juntas se aplica en las cavidades de las placas y una masilla elástica en los encuentros. Suspendido mediante una estructura simple de perfiles TC47 en acero galvanizado de 0,6 mm de espesor con modulación de 400 mm entre ejes y unidos al forjado mediante varilla roscada galvanizada y horquilla TC47. Incluida la parte proporcional del resto de materiales: tornillería, pasta de juntas, masilla para encuentros perimetrales, fijaciones, junta estanca, etc. Montaje según norma de instalación UNE 102043 y exigencias del CTE."]
[null,null,44720,"1.1.3","TECHO SIMPLE / ESTRUCTURA SIMPLE ATT® 47 / 400 1x20",400,47,20,"Techo continuo formado por una placa BASIC de 20 mm de espesor compuesta por yeso natural, fibra de vidrio y aditivos inorgánicos que le aportan alta dureza y resistencia mecánica. Reacción al fuego: EUROCLASE A1. Sistema de galces desiguales: las placas encajan entre ellas dejando una entrecalle de 3 mm por donde se inserte la pasta de juntas. Este sistema no utiliza cinta de papel. La pasta de juntas se aplica en las cavidades de las placas y una masilla elástica en los encuentros. Suspendido mediante una estructura simple de perfiles TC47 en acero galvanizado de 0,6 mm de espesor con modulación de 400 mm entre ejes y unidos al forjado mediante varilla roscada galvanizada y horquilla TC47. Incluida la parte proporcional del resto de materiales: tornillería, pasta de juntas, masilla para encuentros perimetrales, fijaciones, junta estanca, etc. Montaje según norma de instalación UNE 102043 y exigencias del CTE.","Techo continuo formado por una placa HIDRO de 20 mm de espesor compuesta por yeso natural, fibra de vidrio y aditivos inorgánicos que le aportan alta dureza y resistencia mecánica. Incorpora tratamiento hidrófugo, disminuyendo así, su capacidad de absorción de agua (menor al 5%). Idónea para proteger las estancias de los efectos adversos de la humedad. Reacción al fuego: EUROCLASE A1. Sistema de galces desiguales: las placas encajan entre ellas dejando una entrecalle de 3 mm por donde se inserte la pasta de juntas. Este sistema no utiliza cinta de papel. La pasta de juntas se aplica en las cavidades de las placas y una masilla elástica en los encuentros. Suspendido mediante una estructura simple de perfiles TC47 en acero galvanizado de 0,6 mm de espesor con modulación de 400 mm entre ejes y unidos al forjado mediante varilla roscada galvanizada y horquilla TC47. Incluida la parte proporcional del resto de materiales: tornillería, pasta de juntas, masilla para encuentros perimetrales, fijaciones, junta estanca, etc. Montaje según norma de instalación UNE 102043 y exigencias del CTE.","Techo continuo formado por una placa FUEGO de 20 mm de espesor compuesta por yeso natural, fibra de vidrio y aditivos inorgánicos que le aportan alta dureza y resistencia mecánica. Incorpora perlita y un aumento en la densidad que la hace idónea para un excelente comportamiento y resistencia frente al fuego. Reacción al fuego: EUROCLASE A1. Sistema de galces desiguales: las placas encajan entre ellas dejando una entrecalle de 3 mm por donde se inserte la pasta de juntas. Este sistema no utiliza cinta de papel. La pasta de juntas se aplica en las cavidades de las placas y una masilla elástica en los encuentros. Suspendido mediante una estructura simple de perfiles TC47 en acero galvanizado de 0,6 mm de espesor con modulación de 400 mm entre ejes y unidos al forjado mediante varilla roscada galvanizada y horquilla TC47. Incluida la parte proporcional del resto de materiales: tornillería, pasta de juntas, masilla para encuentros perimetrales, fijaciones, junta estanca, etc. Montaje según norma de instalación UNE 102043 y exigencias del CTE.","Techo continuo formado por una placa RESIST de 20 mm de espesor compuesta por yeso natural, fibra de vidrio y aditivos inorgánicos que le aportan alta dureza y resistencia mecánica. Con mayor cantidad de fibra de vidrio y dosificación modificada, aumenta su densidad, mejorando notablemente la resistencia mecánica. Idónea para lugares con altas exigencias en cuanto a deterioro y desgaste. Reacción al fuego: EUROCLASE A1. Sistema de galces desiguales: las placas encajan entre ellas dejando una entrecalle de 3 mm por donde se inserte la pasta de juntas. Este sistema no utiliza cinta de papel. La pasta de juntas se aplica en las cavidades de las placas y una masilla elástica en los encuentros. Suspendido mediante una estructura simple de perfiles TC47 en acero galvanizado de 0,6 mm de espesor con modulación de 400 mm entre ejes y unidos al forjado mediante varilla roscada galvanizada y horquilla TC47. Incluida la parte proporcional del resto de materiales: tornillería, pasta de juntas, masilla para encuentros perimetrales, fijaciones, junta estanca, etc. Montaje según norma de instalación UNE 102043 y exigencias del CTE.","Techo continuo formado por una placa HIDROPLUS de 20 mm de espesor compuesta por yeso natural, fibra de vidrio y aditivos inorgánicos que le aportan alta dureza y resistencia mecánica. Incorpora tratamiento hidrófugo y un aumento en su densidad, características claves para una elevada resistencia a la humedad (absorción de agua menor al 3%) y una gran resistencia mecánica. Idónea para zonas de intemperie. Reacción al fuego: EUROCLASE A1. Sistema de galces desiguales: las placas encajan entre ellas dejando una entrecalle de 3 mm por donde se inserte la pasta de juntas. Este sistema no utiliza cinta de papel. La pasta de juntas se aplica en las cavidades de las placas y una masilla elástica en los encuentros. Suspendido mediante una estructura simple de perfiles TC47 en acero galvanizado de 0,6 mm de espesor con modulación de 400 mm entre ejes y unidos al forjado mediante varilla roscada galvanizada y horquilla TC47. Incluida la parte proporcional del resto de materiales: tornillería, pasta de juntas, masilla para encuentros perimetrales, fijaciones, junta estanca, etc. Montaje según norma de instalación UNE 102043 y exigencias del CTE.","Techo continuo formado por una placa SUPREM de 20 mm de espesor compuesta por yeso natural, fibra de vidrio y aditivos inorgánicos que le aportan alta dureza y resistencia mecánica. Incorpora tratamiento hidrófugo, perlita y un aumento en la densidad para conseguir soluciones constructivas que cumplan, altos requisitos frente al fuego y una capacidad reducida de absorción de agua. Reacción al fuego: EUROCLASE A1. Sistema de galces desiguales: las placas encajan entre ellas dejando una entrecalle de 3 mm por donde se inserte la pasta de juntas. Este sistema no utiliza cinta de papel. La pasta de juntas se aplica en las cavidades de las placas y una masilla elástica en los encuentros. Suspendido mediante una estructura simple de perfiles TC47 en acero galvanizado de 0,6 mm de espesor con modulación de 400 mm entre ejes y unidos al forjado mediante varilla roscada galvanizada y horquilla TC47. Incluida la parte proporcional del resto de materiales: tornillería, pasta de juntas, masilla para encuentros perimetrales, fijaciones, junta estanca, etc. Montaje según norma de instalación UNE 102043 y exigencias del CTE."]
[null,null,64713,"1.1.4","TECHO SIMPLE / ESTRUCTURA SIMPLE ATT® 47 / 600 1x13 ",600,47,13,"Techo continuo formado por una placa BASIC de 13 mm de espesor compuesta por yeso natural, fibra de vidrio y aditivos inorgánicos que le aportan alta dureza y resistencia mecánica. Reacción al fuego: EUROCLASE A1. Sistema de galces desiguales: las placas encajan entre ellas dejando una entrecalle de 3 mm por donde se inserte la pasta de juntas. Este sistema no utiliza cinta de papel. La pasta de juntas se aplica en las cavidades de las placas y una masilla elástica en los encuentros. Suspendido mediante una estructura simple de perfiles TC47 en acero galvanizado de 0,6 mm de espesor con modulación de 600 mm entre ejes y unidos al forjado mediante varilla roscada galvanizada y horquilla TC47. Incluida la parte proporcional del resto de materiales: tornillería, pasta de juntas, masilla para encuentros perimetrales, fijaciones, junta estanca, etc. Montaje según norma de instalación UNE 102043 y exigencias del CTE.","Techo continuo formado por una placa HIDRO de 13 mm de espesor compuesta por yeso natural, fibra de vidrio y aditivos inorgánicos que le aportan alta dureza y resistencia mecánica. Incorpora tratamiento hidrófugo, disminuyendo así, su capacidad de absorción de agua (menor al 5%). Idónea para proteger las estancias de los efectos adversos de la humedad. Reacción al fuego: EUROCLASE A1. Sistema de galces desiguales: las placas encajan entre ellas dejando una entrecalle de 3 mm por donde se inserte la pasta de juntas. Este sistema no utiliza cinta de papel. La pasta de juntas se aplica en las cavidades de las placas y una masilla elástica en los encuentros. Suspendido mediante una estructura simple de perfiles TC47 en acero galvanizado de 0,6 mm de espesor con modulación de 600 mm entre ejes y unidos al forjado mediante varilla roscada galvanizada y horquilla TC47. Incluida la parte proporcional del resto de materiales: tornillería, pasta de juntas, masilla para encuentros perimetrales, fijaciones, junta estanca, etc. Montaje según norma de instalación UNE 102043 y exigencias del CTE.","Techo continuo formado por una placa FUEGO de 13 mm de espesor compuesta por yeso natural, fibra de vidrio y aditivos inorgánicos que le aportan alta dureza y resistencia mecánica. Incorpora perlita y un aumento en la densidad que la hace idónea para un excelente comportamiento y resistencia frente al fuego. Reacción al fuego: EUROCLASE A1. Sistema de galces desiguales: las placas encajan entre ellas dejando una entrecalle de 3 mm por donde se inserte la pasta de juntas. Este sistema no utiliza cinta de papel. La pasta de juntas se aplica en las cavidades de las placas y una masilla elástica en los encuentros. Suspendido mediante una estructura simple de perfiles TC47 en acero galvanizado de 0,6 mm de espesor con modulación de 600 mm entre ejes y unidos al forjado mediante varilla roscada galvanizada y horquilla TC47. Incluida la parte proporcional del resto de materiales: tornillería, pasta de juntas, masilla para encuentros perimetrales, fijaciones, junta estanca, etc. Montaje según norma de instalación UNE 102043 y exigencias del CTE.","Techo continuo formado por una placa RESIST de 13 mm de espesor compuesta por yeso natural, fibra de vidrio y aditivos inorgánicos que le aportan alta dureza y resistencia mecánica. Con mayor cantidad de fibra de vidrio y dosificación modificada, aumenta su densidad, mejorando notablemente la resistencia mecánica. Idónea para lugares con altas exigencias en cuanto a deterioro y desgaste. Reacción al fuego: EUROCLASE A1. Sistema de galces desiguales: las placas encajan entre ellas dejando una entrecalle de 3 mm por donde se inserte la pasta de juntas. Este sistema no utiliza cinta de papel. La pasta de juntas se aplica en las cavidades de las placas y una masilla elástica en los encuentros. Suspendido mediante una estructura simple de perfiles TC47 en acero galvanizado de 0,6 mm de espesor con modulación de 600 mm entre ejes y unidos al forjado mediante varilla roscada galvanizada y horquilla TC47. Incluida la parte proporcional del resto de materiales: tornillería, pasta de juntas, masilla para encuentros perimetrales, fijaciones, junta estanca, etc. Montaje según norma de instalación UNE 102043 y exigencias del CTE.","Techo continuo formado por una placa HIDROPLUS de 13 mm de espesor compuesta por yeso natural, fibra de vidrio y aditivos inorgánicos que le aportan alta dureza y resistencia mecánica. Incorpora tratamiento hidrófugo y un aumento en su densidad, características claves para una elevada resistencia a la humedad (absorción de agua menor al 3%) y una gran resistencia mecánica. Idónea para zonas de intemperie. Reacción al fuego: EUROCLASE A1. Sistema de galces desiguales: las placas encajan entre ellas dejando una entrecalle de 3 mm por donde se inserte la pasta de juntas. Este sistema no utiliza cinta de papel. La pasta de juntas se aplica en las cavidades de las placas y una masilla elástica en los encuentros. Suspendido mediante una estructura simple de perfiles TC47 en acero galvanizado de 0,6 mm de espesor con modulación de 600 mm entre ejes y unidos al forjado mediante varilla roscada galvanizada y horquilla TC47. Incluida la parte proporcional del resto de materiales: tornillería, pasta de juntas, masilla para encuentros perimetrales, fijaciones, junta estanca, etc. Montaje según norma de instalación UNE 102043 y exigencias del CTE.","Techo continuo formado por una placa SUPREM de 13 mm de espesor compuesta por yeso natural, fibra de vidrio y aditivos inorgánicos que le aportan alta dureza y resistencia mecánica. Incorpora tratamiento hidrófugo, perlita y un aumento en la densidad para conseguir soluciones constructivas que cumplan, altos requisitos frente al fuego y una capacidad reducida de absorción de agua. Reacción al fuego: EUROCLASE A1. Sistema de galces desiguales: las placas encajan entre ellas dejando una entrecalle de 3 mm por donde se inserte la pasta de juntas. Este sistema no utiliza cinta de papel. La pasta de juntas se aplica en las cavidades de las placas y una masilla elástica en los encuentros. Suspendido mediante una estructura simple de perfiles TC47 en acero galvanizado de 0,6 mm de espesor con modulación de 600 mm entre ejes y unidos al forjado mediante varilla roscada galvanizada y horquilla TC47. Incluida la parte proporcional del resto de materiales: tornillería, pasta de juntas, masilla para encuentros perimetrales, fijaciones, junta estanca, etc. Montaje según norma de instalación UNE 102043 y exigencias del CTE."]
[null,null,64715,"1.1.5","TECHO SIMPLE / ESTRUCTURA SIMPLE ATT® 47 / 600 1x15",600,47,15,"Techo continuo formado por una placa BASIC de 15 mm de espesor compuesta por yeso natural, fibra de vidrio y aditivos inorgánicos que le aportan alta dureza y resistencia mecánica. Reacción al fuego: EUROCLASE A1. Sistema de galces desiguales: las placas encajan entre ellas dejando una entrecalle de 3 mm por donde se inserte la pasta de juntas. Este sistema no utiliza cinta de papel. La pasta de juntas se aplica en las cavidades de las placas y una masilla elástica en los encuentros. Suspendido mediante una estructura simple de perfiles TC47 en acero galvanizado de 0,6 mm de espesor con modulación de 600 mm entre ejes y unidos al forjado mediante varilla roscada galvanizada y horquilla TC47. Incluida la parte proporcional del resto de materiales: tornillería, pasta de juntas, masilla para encuentros perimetrales, fijaciones, junta estanca, etc. Montaje según norma de instalación UNE 102043 y exigencias del CTE.","Techo continuo formado por una placa HIDRO de 15 mm de espesor compuesta por yeso natural, fibra de vidrio y aditivos inorgánicos que le aportan alta dureza y resistencia mecánica. Incorpora tratamiento hidrófugo, disminuyendo así, su capacidad de absorción de agua (menor al 5%). Idónea para proteger las estancias de los efectos adversos de la humedad. Reacción al fuego: EUROCLASE A1. Sistema de galces desiguales: las placas encajan entre ellas dejando una entrecalle de 3 mm por donde se inserte la pasta de juntas. Este sistema no utiliza cinta de papel. La pasta de juntas se aplica en las cavidades de las placas y una masilla elástica en los encuentros. Suspendido mediante una estructura simple de perfiles TC47 en acero galvanizado de 0,6 mm de espesor con modulación de 600 mm entre ejes y unidos al forjado mediante varilla roscada galvanizada y horquilla TC47. Incluida la parte proporcional del resto de materiales: tornillería, pasta de juntas, masilla para encuentros perimetrales, fijaciones, junta estanca, etc. Montaje según norma de instalación UNE 102043 y exigencias del CTE.","Techo continuo formado por una placa FUEGO de 15 mm de espesor compuesta por yeso natural, fibra de vidrio y aditivos inorgánicos que le aportan alta dureza y resistencia mecánica. Incorpora perlita y un aumento en la densidad que la hace idónea para un excelente comportamiento y resistencia frente al fuego. Reacción al fuego: EUROCLASE A1. Sistema de galces desiguales: las placas encajan entre ellas dejando una entrecalle de 3 mm por donde se inserte la pasta de juntas. Este sistema no utiliza cinta de papel. La pasta de juntas se aplica en las cavidades de las placas y una masilla elástica en los encuentros. Suspendido mediante una estructura simple de perfiles TC47 en acero galvanizado de 0,6 mm de espesor con modulación de 600 mm entre ejes y unidos al forjado mediante varilla roscada galvanizada y horquilla TC47. Incluida la parte proporcional del resto de materiales: tornillería, pasta de juntas, masilla para encuentros perimetrales, fijaciones, junta estanca, etc. Montaje según norma de instalación UNE 102043 y exigencias del CTE.","Techo continuo formado por una placa RESIST de 15 mm de espesor compuesta por yeso natural, fibra de vidrio y aditivos inorgánicos que le aportan alta dureza y resistencia mecánica. Con mayor cantidad de fibra de vidrio y dosificación modificada, aumenta su densidad, mejorando notablemente la resistencia mecánica. Idónea para lugares con altas exigencias en cuanto a deterioro y desgaste. Reacción al fuego: EUROCLASE A1. Sistema de galces desiguales: las placas encajan entre ellas dejando una entrecalle de 3 mm por donde se inserte la pasta de juntas. Este sistema no utiliza cinta de papel. La pasta de juntas se aplica en las cavidades de las placas y una masilla elástica en los encuentros. Suspendido mediante una estructura simple de perfiles TC47 en acero galvanizado de 0,6 mm de espesor con modulación de 600 mm entre ejes y unidos al forjado mediante varilla roscada galvanizada y horquilla TC47. Incluida la parte proporcional del resto de materiales: tornillería, pasta de juntas, masilla para encuentros perimetrales, fijaciones, junta estanca, etc. Montaje según norma de instalación UNE 102043 y exigencias del CTE.","Techo continuo formado por una placa HIDROPLUS de 15 mm de espesor compuesta por yeso natural, fibra de vidrio y aditivos inorgánicos que le aportan alta dureza y resistencia mecánica. Incorpora tratamiento hidrófugo y un aumento en su densidad, características claves para una elevada resistencia a la humedad (absorción de agua menor al 3%) y una gran resistencia mecánica. Idónea para zonas de intemperie. Reacción al fuego: EUROCLASE A1. Sistema de galces desiguales: las placas encajan entre ellas dejando una entrecalle de 3 mm por donde se inserte la pasta de juntas. Este sistema no utiliza cinta de papel. La pasta de juntas se aplica en las cavidades de las placas y una masilla elástica en los encuentros. Suspendido mediante una estructura simple de perfiles TC47 en acero galvanizado de 0,6 mm de espesor con modulación de 600 mm entre ejes y unidos al forjado mediante varilla roscada galvanizada y horquilla TC47. Incluida la parte proporcional del resto de materiales: tornillería, pasta de juntas, masilla para encuentros perimetrales, fijaciones, junta estanca, etc. Montaje según norma de instalación UNE 102043 y exigencias del CTE.","Techo continuo formado por una placa SUPREM de 15 mm de espesor compuesta por yeso natural, fibra de vidrio y aditivos inorgánicos que le aportan alta dureza y resistencia mecánica. Incorpora tratamiento hidrófugo, perlita y un aumento en la densidad para conseguir soluciones constructivas que cumplan, altos requisitos frente al fuego y una capacidad reducida de absorción de agua. Reacción al fuego: EUROCLASE A1. Sistema de galces desiguales: las placas encajan entre ellas dejando una entrecalle de 3 mm por donde se inserte la pasta de juntas. Este sistema no utiliza cinta de papel. La pasta de juntas se aplica en las cavidades de las placas y una masilla elástica en los encuentros. Suspendido mediante una estructura simple de perfiles TC47 en acero galvanizado de 0,6 mm de espesor con modulación de 600 mm entre ejes y unidos al forjado mediante varilla roscada galvanizada y horquilla TC47. Incluida la parte proporcional del resto de materiales: tornillería, pasta de juntas, masilla para encuentros perimetrales, fijaciones, junta estanca, etc. Montaje según norma de instalación UNE 102043 y exigencias del CTE."]
[null,null,64720,"1.1.6","TECHO SIMPLE / ESTRUCTURA SIMPLE ATT® 47 / 600 1x20",600,47,20,"Techo continuo formado por una placa BASIC de 20 mm de espesor compuesta por yeso natural, fibra de vidrio y aditivos inorgánicos que le aportan alta dureza y resistencia mecánica. Reacción al fuego: EUROCLASE A1. Sistema de galces desiguales: las placas encajan entre ellas dejando una entrecalle de 3 mm por donde se inserte la pasta de juntas. Este sistema no utiliza cinta de papel. La pasta de juntas se aplica en las cavidades de las placas y una masilla elástica en los encuentros. Suspendido mediante una estructura simple de perfiles TC47 en acero galvanizado de 0,6 mm de espesor con modulación de 600 mm entre ejes y unidos al forjado mediante varilla roscada galvanizada y horquilla TC47. Incluida la parte proporcional del resto de materiales: tornillería, pasta de juntas, masilla para encuentros perimetrales, fijaciones, junta estanca, etc. Montaje según norma de instalación UNE 102043 y exigencias del CTE.","Techo continuo formado por una placa HIDRO de 20 mm de espesor compuesta por yeso natural, fibra de vidrio y aditivos inorgánicos que le aportan alta dureza y resistencia mecánica. Incorpora tratamiento hidrófugo, disminuyendo así, su capacidad de absorción de agua (menor al 5%). Idónea para proteger las estancias de los efectos adversos de la humedad. Reacción al fuego: EUROCLASE A1. Sistema de galces desiguales: las placas encajan entre ellas dejando una entrecalle de 3 mm por donde se inserte la pasta de juntas. Este sistema no utiliza cinta de papel. La pasta de juntas se aplica en las cavidades de las placas y una masilla elástica en los encuentros. Suspendido mediante una estructura simple de perfiles TC47 en acero galvanizado de 0,6 mm de espesor con modulación de 600 mm entre ejes y unidos al forjado mediante varilla roscada galvanizada y horquilla TC47. Incluida la parte proporcional del resto de materiales: tornillería, pasta de juntas, masilla para encuentros perimetrales, fijaciones, junta estanca, etc. Montaje según norma de instalación UNE 102043 y exigencias del CTE.","Techo continuo formado por una placa FUEGO de 20 mm de espesor compuesta por yeso natural, fibra de vidrio y aditivos inorgánicos que le aportan alta dureza y resistencia mecánica. Incorpora perlita y un aumento en la densidad que la hace idónea para un excelente comportamiento y resistencia frente al fuego. Reacción al fuego: EUROCLASE A1. Sistema de galces desiguales: las placas encajan entre ellas dejando una entrecalle de 3 mm por donde se inserte la pasta de juntas. Este sistema no utiliza cinta de papel. La pasta de juntas se aplica en las cavidades de las placas y una masilla elástica en los encuentros. Suspendido mediante una estructura simple de perfiles TC47 en acero galvanizado de 0,6 mm de espesor con modulación de 600 mm entre ejes y unidos al forjado mediante varilla roscada galvanizada y horquilla TC47. Incluida la parte proporcional del resto de materiales: tornillería, pasta de juntas, masilla para encuentros perimetrales, fijaciones, junta estanca, etc. Montaje según norma de instalación UNE 102043 y exigencias del CTE.","Techo continuo formado por una placa RESIST de 20 mm de espesor compuesta por yeso natural, fibra de vidrio y aditivos inorgánicos que le aportan alta dureza y resistencia mecánica. Con mayor cantidad de fibra de vidrio y dosificación modificada, aumenta su densidad, mejorando notablemente la resistencia mecánica. Idónea para lugares con altas exigencias en cuanto a deterioro y desgaste. Reacción al fuego: EUROCLASE A1. Sistema de galces desiguales: las placas encajan entre ellas dejando una entrecalle de 3 mm por donde se inserte la pasta de juntas. Este sistema no utiliza cinta de papel. La pasta de juntas se aplica en las cavidades de las placas y una masilla elástica en los encuentros. Suspendido mediante una estructura simple de perfiles TC47 en acero galvanizado de 0,6 mm de espesor con modulación de 600 mm entre ejes y unidos al forjado mediante varilla roscada galvanizada y horquilla TC47. Incluida la parte proporcional del resto de materiales: tornillería, pasta de juntas, masilla para encuentros perimetrales, fijaciones, junta estanca, etc. Montaje según norma de instalación UNE 102043 y exigencias del CTE.","Techo continuo formado por una placa HIDROPLUS de 20 mm de espesor compuesta por yeso natural, fibra de vidrio y aditivos inorgánicos que le aportan alta dureza y resistencia mecánica. Incorpora tratamiento hidrófugo y un aumento en su densidad, características claves para una elevada resistencia a la humedad (absorción de agua menor al 3%) y una gran resistencia mecánica. Idónea para zonas de intemperie. Reacción al fuego: EUROCLASE A1. Sistema de galces desiguales: las placas encajan entre ellas dejando una entrecalle de 3 mm por donde se inserte la pasta de juntas. Este sistema no utiliza cinta de papel. La pasta de juntas se aplica en las cavidades de las placas y una masilla elástica en los encuentros. Suspendido mediante una estructura simple de perfiles TC47 en acero galvanizado de 0,6 mm de espesor con modulación de 600 mm entre ejes y unidos al forjado mediante varilla roscada galvanizada y horquilla TC47. Incluida la parte proporcional del resto de materiales: tornillería, pasta de juntas, masilla para encuentros perimetrales, fijaciones, junta estanca, etc. Montaje según norma de instalación UNE 102043 y exigencias del CTE.","Techo continuo formado por una placa SUPREM de 20 mm de espesor compuesta por yeso natural, fibra de vidrio y aditivos inorgánicos que le aportan alta dureza y resistencia mecánica. Incorpora tratamiento hidrófugo, perlita y un aumento en la densidad para conseguir soluciones constructivas que cumplan, altos requisitos frente al fuego y una capacidad reducida de absorción de agua. Reacción al fuego: EUROCLASE A1. Sistema de galces desiguales: las placas encajan entre ellas dejando una entrecalle de 3 mm por donde se inserte la pasta de juntas. Este sistema no utiliza cinta de papel. La pasta de juntas se aplica en las cavidades de las placas y una masilla elástica en los encuentros. Suspendido mediante una estructura simple de perfiles TC47 en acero galvanizado de 0,6 mm de espesor con modulación de 600 mm entre ejes y unidos al forjado mediante varilla roscada galvanizada y horquilla TC47. Incluida la parte proporcional del resto de materiales: tornillería, pasta de juntas, masilla para encuentros perimetrales, fijaciones, junta estanca, etc. Montaje según norma de instalación UNE 102043 y exigencias del CTE."]
[null,null,46013,"1.1.7","TECHO SIMPLE / ESTRUCTURA SIMPLE ATT® 60 / 400 1x13 ",400,60,13,"Techo continuo formado por una placa BASIC de 13 mm de espesor compuesta por yeso natural, fibra de vidrio y aditivos inorgánicos que le aportan alta dureza y resistencia mecánica. Reacción al fuego: EUROCLASE A1. Sistema de galces desiguales: las placas encajan entre ellas dejando una entrecalle de 3 mm por donde se inserte la pasta de juntas. Este sistema no utiliza cinta de papel. La pasta de juntas se aplica en las cavidades de las placas y una masilla elástica en los encuentros. Suspendido mediante una estructura simple de perfiles TC60 en acero galvanizado de 0,6 mm de espesor con modulación de 400 mm entre ejes y unidos al forjado mediante varilla roscada galvanizada y horquilla TC60. Incluida la parte proporcional del resto de materiales: tornillería, pasta de juntas, masilla para encuentros perimetrales, fijaciones, junta estanca, etc. Montaje según norma de instalación UNE 102043 y exigencias del CTE.","Techo continuo formado por una placa HIDRO de 13 mm de espesor compuesta por yeso natural, fibra de vidrio y aditivos inorgánicos que le aportan alta dureza y resistencia mecánica. Incorpora tratamiento hidrófugo, disminuyendo así, su capacidad de absorción de agua (menor al 5%). Idónea para proteger las estancias de los efectos adversos de la humedad. Reacción al fuego: EUROCLASE A1. Sistema de galces desiguales: las placas encajan entre ellas dejando una entrecalle de 3 mm por donde se inserte la pasta de juntas. Este sistema no utiliza cinta de papel. La pasta de juntas se aplica en las cavidades de las placas y una masilla elástica en los encuentros. Suspendido mediante una estructura simple de perfiles TC60 en acero galvanizado de 0,6 mm de espesor con modulación de 400 mm entre ejes y unidos al forjado mediante varilla roscada galvanizada y horquilla TC60. Incluida la parte proporcional del resto de materiales: tornillería, pasta de juntas, masilla para encuentros perimetrales, fijaciones, junta estanca, etc. Montaje según norma de instalación UNE 102043 y exigencias del CTE.","Techo continuo formado por una placa FUEGO de 13 mm de espesor compuesta por yeso natural, fibra de vidrio y aditivos inorgánicos que le aportan alta dureza y resistencia mecánica. Incorpora perlita y un aumento en la densidad que la hace idónea para un excelente comportamiento y resistencia frente al fuego. Reacción al fuego: EUROCLASE A1. Sistema de galces desiguales: las placas encajan entre ellas dejando una entrecalle de 3 mm por donde se inserte la pasta de juntas. Este sistema no utiliza cinta de papel. La pasta de juntas se aplica en las cavidades de las placas y una masilla elástica en los encuentros. Suspendido mediante una estructura simple de perfiles TC60 en acero galvanizado de 0,6 mm de espesor con modulación de 400 mm entre ejes y unidos al forjado mediante varilla roscada galvanizada y horquilla TC60. Incluida la parte proporcional del resto de materiales: tornillería, pasta de juntas, masilla para encuentros perimetrales, fijaciones, junta estanca, etc. Montaje según norma de instalación UNE 102043 y exigencias del CTE.","Techo continuo formado por una placa RESIST de 13 mm de espesor compuesta por yeso natural, fibra de vidrio y aditivos inorgánicos que le aportan alta dureza y resistencia mecánica. Con mayor cantidad de fibra de vidrio y dosificación modificada, aumenta su densidad, mejorando notablemente la resistencia mecánica. Idónea para lugares con altas exigencias en cuanto a deterioro y desgaste. Reacción al fuego: EUROCLASE A1. Sistema de galces desiguales: las placas encajan entre ellas dejando una entrecalle de 3 mm por donde se inserte la pasta de juntas. Este sistema no utiliza cinta de papel. La pasta de juntas se aplica en las cavidades de las placas y una masilla elástica en los encuentros. Suspendido mediante una estructura simple de perfiles TC60 en acero galvanizado de 0,6 mm de espesor con modulación de 400 mm entre ejes y unidos al forjado mediante varilla roscada galvanizada y horquilla TC60. Incluida la parte proporcional del resto de materiales: tornillería, pasta de juntas, masilla para encuentros perimetrales, fijaciones, junta estanca, etc. Montaje según norma de instalación UNE 102043 y exigencias del CTE.","Techo continuo formado por una placa HIDROPLUS de 13 mm de espesor compuesta por yeso natural, fibra de vidrio y aditivos inorgánicos que le aportan alta dureza y resistencia mecánica. Incorpora tratamiento hidrófugo y un aumento en su densidad, características claves para una elevada resistencia a la humedad (absorción de agua menor al 3%) y una gran resistencia mecánica. Idónea para zonas de intemperie. Reacción al fuego: EUROCLASE A1. Sistema de galces desiguales: las placas encajan entre ellas dejando una entrecalle de 3 mm por donde se inserte la pasta de juntas. Este sistema no utiliza cinta de papel. La pasta de juntas se aplica en las cavidades de las placas y una masilla elástica en los encuentros. Suspendido mediante una estructura simple de perfiles TC60 en acero galvanizado de 0,6 mm de espesor con modulación de 400 mm entre ejes y unidos al forjado mediante varilla roscada galvanizada y horquilla TC60. Incluida la parte proporcional del resto de materiales: tornillería, pasta de juntas, masilla para encuentros perimetrales, fijaciones, junta estanca, etc. Montaje según norma de instalación UNE 102043 y exigencias del CTE.","Techo continuo formado por una placa SUPREM de 13 mm de espesor compuesta por yeso natural, fibra de vidrio y aditivos inorgánicos que le aportan alta dureza y resistencia mecánica. Incorpora tratamiento hidrófugo, perlita y un aumento en la densidad para conseguir soluciones constructivas que cumplan, altos requisitos frente al fuego y una capacidad reducida de absorción de agua. Reacción al fuego: EUROCLASE A1. Sistema de galces desiguales: las placas encajan entre ellas dejando una entrecalle de 3 mm por donde se inserte la pasta de juntas. Este sistema no utiliza cinta de papel. La pasta de juntas se aplica en las cavidades de las placas y una masilla elástica en los encuentros. Suspendido mediante una estructura simple de perfiles TC60 en acero galvanizado de 0,6 mm de espesor con modulación de 400 mm entre ejes y unidos al forjado mediante varilla roscada galvanizada y horquilla TC60. Incluida la parte proporcional del resto de materiales: tornillería, pasta de juntas, masilla para encuentros perimetrales, fijaciones, junta estanca, etc. Montaje según norma de instalación UNE 102043 y exigencias del CTE."]
["PLACA DOBLE",null,46015,"1.1.8","TECHO SIMPLE / ESTRUCTURA SIMPLE ATT® 60 / 400 1x15",400,60,15,"Techo continuo formado por una placa BASIC de 15 mm de espesor compuesta por yeso natural, fibra de vidrio y aditivos inorgánicos que le aportan alta dureza y resistencia mecánica. Reacción al fuego: EUROCLASE A1. Sistema de galces desiguales: las placas encajan entre ellas dejando una entrecalle de 3 mm por donde se inserte la pasta de juntas. Este sistema no utiliza cinta de papel. La pasta de juntas se aplica en las cavidades de las placas y una masilla elástica en los encuentros. Suspendido mediante una estructura simple de perfiles TC60 en acero galvanizado de 0,6 mm de espesor con modulación de 400 mm entre ejes y unidos al forjado mediante varilla roscada galvanizada y horquilla TC60. Incluida la parte proporcional del resto de materiales: tornillería, pasta de juntas, masilla para encuentros perimetrales, fijaciones, junta estanca, etc. Montaje según norma de instalación UNE 102043 y exigencias del CTE.","Techo continuo formado por una placa HIDRO de 15 mm de espesor compuesta por yeso natural, fibra de vidrio y aditivos inorgánicos que le aportan alta dureza y resistencia mecánica. Incorpora tratamiento hidrófugo, disminuyendo así, su capacidad de absorción de agua (menor al 5%). Idónea para proteger las estancias de los efectos adversos de la humedad. Reacción al fuego: EUROCLASE A1. Sistema de galces desiguales: las placas encajan entre ellas dejando una entrecalle de 3 mm por donde se inserte la pasta de juntas. Este sistema no utiliza cinta de papel. La pasta de juntas se aplica en las cavidades de las placas y una masilla elástica en los encuentros. Suspendido mediante una estructura simple de perfiles TC60 en acero galvanizado de 0,6 mm de espesor con modulación de 400 mm entre ejes y unidos al forjado mediante varilla roscada galvanizada y horquilla TC60. Incluida la parte proporcional del resto de materiales: tornillería, pasta de juntas, masilla para encuentros perimetrales, fijaciones, junta estanca, etc. Montaje según norma de instalación UNE 102043 y exigencias del CTE.","Techo continuo formado por una placa FUEGO de 15 mm de espesor compuesta por yeso natural, fibra de vidrio y aditivos inorgánicos que le aportan alta dureza y resistencia mecánica. Incorpora perlita y un aumento en la densidad que la hace idónea para un excelente comportamiento y resistencia frente al fuego. Reacción al fuego: EUROCLASE A1. Sistema de galces desiguales: las placas encajan entre ellas dejando una entrecalle de 3 mm por donde se inserte la pasta de juntas. Este sistema no utiliza cinta de papel. La pasta de juntas se aplica en las cavidades de las placas y una masilla elástica en los encuentros. Suspendido mediante una estructura simple de perfiles TC60 en acero galvanizado de 0,6 mm de espesor con modulación de 400 mm entre ejes y unidos al forjado mediante varilla roscada galvanizada y horquilla TC60. Incluida la parte proporcional del resto de materiales: tornillería, pasta de juntas, masilla para encuentros perimetrales, fijaciones, junta estanca, etc. Montaje según norma de instalación UNE 102043 y exigencias del CTE.","Techo continuo formado por una placa RESIST de 15 mm de espesor compuesta por yeso natural, fibra de vidrio y aditivos inorgánicos que le aportan alta dureza y resistencia mecánica. Con mayor cantidad de fibra de vidrio y dosificación modificada, aumenta su densidad, mejorando notablemente la resistencia mecánica. Idónea para lugares con altas exigencias en cuanto a deterioro y desgaste. Reacción al fuego: EUROCLASE A1. Sistema de galces desiguales: las placas encajan entre ellas dejando una entrecalle de 3 mm por donde se inserte la pasta de juntas. Este sistema no utiliza cinta de papel. La pasta de juntas se aplica en las cavidades de las placas y una masilla elástica en los encuentros. Suspendido mediante una estructura simple de perfiles TC60 en acero galvanizado de 0,6 mm de espesor con modulación de 400 mm entre ejes y unidos al forjado mediante varilla roscada galvanizada y horquilla TC60. Incluida la parte proporcional del resto de materiales: tornillería, pasta de juntas, masilla para encuentros perimetrales, fijaciones, junta estanca, etc. Montaje según norma de instalación UNE 102043 y exigencias del CTE.","Techo continuo formado por una placa HIDROPLUS de 15 mm de espesor compuesta por yeso natural, fibra de vidrio y aditivos inorgánicos que le aportan alta dureza y resistencia mecánica. Incorpora tratamiento hidrófugo y un aumento en su densidad, características claves para una elevada resistencia a la humedad (absorción de agua menor al 3%) y una gran resistencia mecánica. Idónea para zonas de intemperie. Reacción al fuego: EUROCLASE A1. Sistema de galces desiguales: las placas encajan entre ellas dejando una entrecalle de 3 mm por donde se inserte la pasta de juntas. Este sistema no utiliza cinta de papel. La pasta de juntas se aplica en las cavidades de las placas y una masilla elástica en los encuentros. Suspendido mediante una estructura simple de perfiles TC60 en acero galvanizado de 0,6 mm de espesor con modulación de 400 mm entre ejes y unidos al forjado mediante varilla roscada galvanizada y horquilla TC60. Incluida la parte proporcional del resto de materiales: tornillería, pasta de juntas, masilla para encuentros perimetrales, fijaciones, junta estanca, etc. Montaje según norma de instalación UNE 102043 y exigencias del CTE.","Techo continuo formado por una placa SUPREM de 15 mm de espesor compuesta por yeso natural, fibra de vidrio y aditivos inorgánicos que le aportan alta dureza y resistencia mecánica. Incorpora tratamiento hidrófugo, perlita y un aumento en la densidad para conseguir soluciones constructivas que cumplan, altos requisitos frente al fuego y una capacidad reducida de absorción de agua. Reacción al fuego: EUROCLASE A1. Sistema de galces desiguales: las placas encajan entre ellas dejando una entrecalle de 3 mm por donde se inserte la pasta de juntas. Este sistema no utiliza cinta de papel. La pasta de juntas se aplica en las cavidades de las placas y una masilla elástica en los encuentros. Suspendido mediante una estructura simple de perfiles TC60 en acero galvanizado de 0,6 mm de espesor con modulación de 400 mm entre ejes y unidos al forjado mediante varilla roscada galvanizada y horquilla TC60. Incluida la parte proporcional del resto de materiales: tornillería, pasta de juntas, masilla para encuentros perimetrales, fijaciones, junta estanca, etc. Montaje según norma de instalación UNE 102043 y exigencias del CTE."]
[null,null,46020,"1.1.9","TECHO SIMPLE / ESTRUCTURA SIMPLE ATT® 60 / 400 1x20",400,60,20,"Techo continuo formado por una placa BASIC de 20 mm de espesor compuesta por yeso natural, fibra de vidrio y aditivos inorgánicos que le aportan alta dureza y resistencia mecánica. Reacción al fuego: EUROCLASE A1. Sistema de galces desiguales: las placas encajan entre ellas dejando una entrecalle de 3 mm por donde se inserte la pasta de juntas. Este sistema no utiliza cinta de papel. La pasta de juntas se aplica en las cavidades de las placas y una masilla elástica en los encuentros. Suspendido mediante una estructura simple de perfiles TC60 en acero galvanizado de 0,6 mm de espesor con modulación de 400 mm entre ejes y unidos al forjado mediante varilla roscada galvanizada y horquilla TC60. Incluida la parte proporcional del resto de materiales: tornillería, pasta de juntas, masilla para encuentros perimetrales, fijaciones, junta estanca, etc. Montaje según norma de instalación UNE 102043 y exigencias del CTE.","Techo continuo formado por una placa HIDRO de 20 mm de espesor compuesta por yeso natural, fibra de vidrio y aditivos inorgánicos que le aportan alta dureza y resistencia mecánica. Incorpora tratamiento hidrófugo, disminuyendo así, su capacidad de absorción de agua (menor al 5%). Idónea para proteger las estancias de los efectos adversos de la humedad. Reacción al fuego: EUROCLASE A1. Sistema de galces desiguales: las placas encajan entre ellas dejando una entrecalle de 3 mm por donde se inserte la pasta de juntas. Este sistema no utiliza cinta de papel. La pasta de juntas se aplica en las cavidades de las placas y una masilla elástica en los encuentros. Suspendido mediante una estructura simple de perfiles TC60 en acero galvanizado de 0,6 mm de espesor con modulación de 400 mm entre ejes y unidos al forjado mediante varilla roscada galvanizada y horquilla TC60. Incluida la parte proporcional del resto de materiales: tornillería, pasta de juntas, masilla para encuentros perimetrales, fijaciones, junta estanca, etc. Montaje según norma de instalación UNE 102043 y exigencias del CTE.","Techo continuo formado por una placa FUEGO de 20 mm de espesor compuesta por yeso natural, fibra de vidrio y aditivos inorgánicos que le aportan alta dureza y resistencia mecánica. Incorpora perlita y un aumento en la densidad que la hace idónea para un excelente comportamiento y resistencia frente al fuego. Reacción al fuego: EUROCLASE A1. Sistema de galces desiguales: las placas encajan entre ellas dejando una entrecalle de 3 mm por donde se inserte la pasta de juntas. Este sistema no utiliza cinta de papel. La pasta de juntas se aplica en las cavidades de las placas y una masilla elástica en los encuentros. Suspendido mediante una estructura simple de perfiles TC60 en acero galvanizado de 0,6 mm de espesor con modulación de 400 mm entre ejes y unidos al forjado mediante varilla roscada galvanizada y horquilla TC60. Incluida la parte proporcional del resto de materiales: tornillería, pasta de juntas, masilla para encuentros perimetrales, fijaciones, junta estanca, etc. Montaje según norma de instalación UNE 102043 y exigencias del CTE.","Techo continuo formado por una placa RESIST de 20 mm de espesor compuesta por yeso natural, fibra de vidrio y aditivos inorgánicos que le aportan alta dureza y resistencia mecánica. Con mayor cantidad de fibra de vidrio y dosificación modificada, aumenta su densidad, mejorando notablemente la resistencia mecánica. Idónea para lugares con altas exigencias en cuanto a deterioro y desgaste. Reacción al fuego: EUROCLASE A1. Sistema de galces desiguales: las placas encajan entre ellas dejando una entrecalle de 3 mm por donde se inserte la pasta de juntas. Este sistema no utiliza cinta de papel. La pasta de juntas se aplica en las cavidades de las placas y una masilla elástica en los encuentros. Suspendido mediante una estructura simple de perfiles TC60 en acero galvanizado de 0,6 mm de espesor con modulación de 400 mm entre ejes y unidos al forjado mediante varilla roscada galvanizada y horquilla TC60. Incluida la parte proporcional del resto de materiales: tornillería, pasta de juntas, masilla para encuentros perimetrales, fijaciones, junta estanca, etc. Montaje según norma de instalación UNE 102043 y exigencias del CTE.","Techo continuo formado por una placa HIDROPLUS de 20 mm de espesor compuesta por yeso natural, fibra de vidrio y aditivos inorgánicos que le aportan alta dureza y resistencia mecánica. Incorpora tratamiento hidrófugo y un aumento en su densidad, características claves para una elevada resistencia a la humedad (absorción de agua menor al 3%) y una gran resistencia mecánica. Idónea para zonas de intemperie. Reacción al fuego: EUROCLASE A1. Sistema de galces desiguales: las placas encajan entre ellas dejando una entrecalle de 3 mm por donde se inserte la pasta de juntas. Este sistema no utiliza cinta de papel. La pasta de juntas se aplica en las cavidades de las placas y una masilla elástica en los encuentros. Suspendido mediante una estructura simple de perfiles TC60 en acero galvanizado de 0,6 mm de espesor con modulación de 400 mm entre ejes y unidos al forjado mediante varilla roscada galvanizada y horquilla TC60. Incluida la parte proporcional del resto de materiales: tornillería, pasta de juntas, masilla para encuentros perimetrales, fijaciones, junta estanca, etc. Montaje según norma de instalación UNE 102043 y exigencias del CTE.","Techo continuo formado por una placa SUPREM de 20 mm de espesor compuesta por yeso natural, fibra de vidrio y aditivos inorgánicos que le aportan alta dureza y resistencia mecánica. Incorpora tratamiento hidrófugo, perlita y un aumento en la densidad para conseguir soluciones constructivas que cumplan, altos requisitos frente al fuego y una capacidad reducida de absorción de agua. Reacción al fuego: EUROCLASE A1. Sistema de galces desiguales: las placas encajan entre ellas dejando una entrecalle de 3 mm por donde se inserte la pasta de juntas. Este sistema no utiliza cinta de papel. La pasta de juntas se aplica en las cavidades de las placas y una masilla elástica en los encuentros. Suspendido mediante una estructura simple de perfiles TC60 en acero galvanizado de 0,6 mm de espesor con modulación de 400 mm entre ejes y unidos al forjado mediante varilla roscada galvanizada y horquilla TC60. Incluida la parte proporcional del resto de materiales: tornillería, pasta de juntas, masilla para encuentros perimetrales, fijaciones, junta estanca, etc. Montaje según norma de instalación UNE 102043 y exigencias del CTE."]
[null,null,66013,"1.1.10","TECHO SIMPLE / ESTRUCTURA SIMPLE ATT® 60 / 600 1x13 ",600,60,13,"Techo continuo formado por una placa BASIC de 13 mm de espesor compuesta por yeso natural, fibra de vidrio y aditivos inorgánicos que le aportan alta dureza y resistencia mecánica. Reacción al fuego: EUROCLASE A1. Sistema de galces desiguales: las placas encajan entre ellas dejando una entrecalle de 3 mm por donde se inserte la pasta de juntas. Este sistema no utiliza cinta de papel. La pasta de juntas se aplica en las cavidades de las placas y una masilla elástica en los encuentros. Suspendido mediante una estructura simple de perfiles TC60 en acero galvanizado de 0,6 mm de espesor con modulación de 600 mm entre ejes y unidos al forjado mediante varilla roscada galvanizada y horquilla TC60. Incluida la parte proporcional del resto de materiales: tornillería, pasta de juntas, masilla para encuentros perimetrales, fijaciones, junta estanca, etc. Montaje según norma de instalación UNE 102043 y exigencias del CTE.","Techo continuo formado por una placa HIDRO de 13 mm de espesor compuesta por yeso natural, fibra de vidrio y aditivos inorgánicos que le aportan alta dureza y resistencia mecánica. Incorpora tratamiento hidrófugo, disminuyendo así, su capacidad de absorción de agua (menor al 5%). Idónea para proteger las estancias de los efectos adversos de la humedad. Reacción al fuego: EUROCLASE A1. Sistema de galces desiguales: las placas encajan entre ellas dejando una entrecalle de 3 mm por donde se inserte la pasta de juntas. Este sistema no utiliza cinta de papel. La pasta de juntas se aplica en las cavidades de las placas y una masilla elástica en los encuentros. Suspendido mediante una estructura simple de perfiles TC60 en acero galvanizado de 0,6 mm de espesor con modulación de 600 mm entre ejes y unidos al forjado mediante varilla roscada galvanizada y horquilla TC60. Incluida la parte proporcional del resto de materiales: tornillería, pasta de juntas, masilla para encuentros perimetrales, fijaciones, junta estanca, etc. Montaje según norma de instalación UNE 102043 y exigencias del CTE.","Techo continuo formado por una placa FUEGO de 13 mm de espesor compuesta por yeso natural, fibra de vidrio y aditivos inorgánicos que le aportan alta dureza y resistencia mecánica. Incorpora perlita y un aumento en la densidad que la hace idónea para un excelente comportamiento y resistencia frente al fuego. Reacción al fuego: EUROCLASE A1. Sistema de galces desiguales: las placas encajan entre ellas dejando una entrecalle de 3 mm por donde se inserte la pasta de juntas. Este sistema no utiliza cinta de papel. La pasta de juntas se aplica en las cavidades de las placas y una masilla elástica en los encuentros. Suspendido mediante una estructura simple de perfiles TC60 en acero galvanizado de 0,6 mm de espesor con modulación de 600 mm entre ejes y unidos al forjado mediante varilla roscada galvanizada y horquilla TC60. Incluida la parte proporcional del resto de materiales: tornillería, pasta de juntas, masilla para encuentros perimetrales, fijaciones, junta estanca, etc. Montaje según norma de instalación UNE 102043 y exigencias del CTE.","Techo continuo formado por una placa RESIST de 13 mm de espesor compuesta por yeso natural, fibra de vidrio y aditivos inorgánicos que le aportan alta dureza y resistencia mecánica. Con mayor cantidad de fibra de vidrio y dosificación modificada, aumenta su densidad, mejorando notablemente la resistencia mecánica. Idónea para lugares con altas exigencias en cuanto a deterioro y desgaste. Reacción al fuego: EUROCLASE A1. Sistema de galces desiguales: las placas encajan entre ellas dejando una entrecalle de 3 mm por donde se inserte la pasta de juntas. Este sistema no utiliza cinta de papel. La pasta de juntas se aplica en las cavidades de las placas y una masilla elástica en los encuentros. Suspendido mediante una estructura simple de perfiles TC60 en acero galvanizado de 0,6 mm de espesor con modulación de 600 mm entre ejes y unidos al forjado mediante varilla roscada galvanizada y horquilla TC60. Incluida la parte proporcional del resto de materiales: tornillería, pasta de juntas, masilla para encuentros perimetrales, fijaciones, junta estanca, etc. Montaje según norma de instalación UNE 102043 y exigencias del CTE.","Techo continuo formado por una placa HIDROPLUS de 13 mm de espesor compuesta por yeso natural, fibra de vidrio y aditivos inorgánicos que le aportan alta dureza y resistencia mecánica. Incorpora tratamiento hidrófugo y un aumento en su densidad, características claves para una elevada resistencia a la humedad (absorción de agua menor al 3%) y una gran resistencia mecánica. Idónea para zonas de intemperie. Reacción al fuego: EUROCLASE A1. Sistema de galces desiguales: las placas encajan entre ellas dejando una entrecalle de 3 mm por donde se inserte la pasta de juntas. Este sistema no utiliza cinta de papel. La pasta de juntas se aplica en las cavidades de las placas y una masilla elástica en los encuentros. Suspendido mediante una estructura simple de perfiles TC60 en acero galvanizado de 0,6 mm de espesor con modulación de 600 mm entre ejes y unidos al forjado mediante varilla roscada galvanizada y horquilla TC60. Incluida la parte proporcional del resto de materiales: tornillería, pasta de juntas, masilla para encuentros perimetrales, fijaciones, junta estanca, etc. Montaje según norma de instalación UNE 102043 y exigencias del CTE.","Techo continuo formado por una placa SUPREM de 13 mm de espesor compuesta por yeso natural, fibra de vidrio y aditivos inorgánicos que le aportan alta dureza y resistencia mecánica. Incorpora tratamiento hidrófugo, perlita y un aumento en la densidad para conseguir soluciones constructivas que cumplan, altos requisitos frente al fuego y una capacidad reducida de absorción de agua. Reacción al fuego: EUROCLASE A1. Sistema de galces desiguales: las placas encajan entre ellas dejando una entrecalle de 3 mm por donde se inserte la pasta de juntas. Este sistema no utiliza cinta de papel. La pasta de juntas se aplica en las cavidades de las placas y una masilla elástica en los encuentros. Suspendido mediante una estructura simple de perfiles TC60 en acero galvanizado de 0,6 mm de espesor con modulación de 600 mm entre ejes y unidos al forjado mediante varilla roscada galvanizada y horquilla TC60. Incluida la parte proporcional del resto de materiales: tornillería, pasta de juntas, masilla para encuentros perimetrales, fijaciones, junta estanca, etc. Montaje según norma de instalación UNE 102043 y exigencias del CTE."]
[null,null,66015,"1.1.11","TECHO SIMPLE / ESTRUCTURA SIMPLE ATT® 60 / 600 1x15",600,60,15,"Techo continuo formado por una placa BASIC de 15 mm de espesor compuesta por yeso natural, fibra de vidrio y aditivos inorgánicos que le aportan alta dureza y resistencia mecánica. Reacción al fuego: EUROCLASE A1. Sistema de galces desiguales: las placas encajan entre ellas dejando una entrecalle de 3 mm por donde se inserte la pasta de juntas. Este sistema no utiliza cinta de papel. La pasta de juntas se aplica en las cavidades de las placas y una masilla elástica en los encuentros. Suspendido mediante una estructura simple de perfiles TC60 en acero galvanizado de 0,6 mm de espesor con modulación de 600 mm entre ejes y unidos al forjado mediante varilla roscada galvanizada y horquilla TC60. Incluida la parte proporcional del resto de materiales: tornillería, pasta de juntas, masilla para encuentros perimetrales, fijaciones, junta estanca, etc. Montaje según norma de instalación UNE 102043 y exigencias del CTE.","Techo continuo formado por una placa HIDRO de 15 mm de espesor compuesta por yeso natural, fibra de vidrio y aditivos inorgánicos que le aportan alta dureza y resistencia mecánica. Incorpora tratamiento hidrófugo, disminuyendo así, su capacidad de absorción de agua (menor al 5%). Idónea para proteger las estancias de los efectos adversos de la humedad. Reacción al fuego: EUROCLASE A1. Sistema de galces desiguales: las placas encajan entre ellas dejando una entrecalle de 3 mm por donde se inserte la pasta de juntas. Este sistema no utiliza cinta de papel. La pasta de juntas se aplica en las cavidades de las placas y una masilla elástica en los encuentros. Suspendido mediante una estructura simple de perfiles TC60 en acero galvanizado de 0,6 mm de espesor con modulación de 600 mm entre ejes y unidos al forjado mediante varilla roscada galvanizada y horquilla TC60. Incluida la parte proporcional del resto de materiales: tornillería, pasta de juntas, masilla para encuentros perimetrales, fijaciones, junta estanca, etc. Montaje según norma de instalación UNE 102043 y exigencias del CTE.","Techo continuo formado por una placa FUEGO de 15 mm de espesor compuesta por yeso natural, fibra de vidrio y aditivos inorgánicos que le aportan alta dureza y resistencia mecánica. Incorpora perlita y un aumento en la densidad que la hace idónea para un excelente comportamiento y resistencia frente al fuego. Reacción al fuego: EUROCLASE A1. Sistema de galces desiguales: las placas encajan entre ellas dejando una entrecalle de 3 mm por donde se inserte la pasta de juntas. Este sistema no utiliza cinta de papel. La pasta de juntas se aplica en las cavidades de las placas y una masilla elástica en los encuentros. Suspendido mediante una estructura simple de perfiles TC60 en acero galvanizado de 0,6 mm de espesor con modulación de 600 mm entre ejes y unidos al forjado mediante varilla roscada galvanizada y horquilla TC60. Incluida la parte proporcional del resto de materiales: tornillería, pasta de juntas, masilla para encuentros perimetrales, fijaciones, junta estanca, etc. Montaje según norma de instalación UNE 102043 y exigencias del CTE.","Techo continuo formado por una placa RESIST de 15 mm de espesor compuesta por yeso natural, fibra de vidrio y aditivos inorgánicos que le aportan alta dureza y resistencia mecánica. Con mayor cantidad de fibra de vidrio y dosificación modificada, aumenta su densidad, mejorando notablemente la resistencia mecánica. Idónea para lugares con altas exigencias en cuanto a deterioro y desgaste. Reacción al fuego: EUROCLASE A1. Sistema de galces desiguales: las placas encajan entre ellas dejando una entrecalle de 3 mm por donde se inserte la pasta de juntas. Este sistema no utiliza cinta de papel. La pasta de juntas se aplica en las cavidades de las placas y una masilla elástica en los encuentros. Suspendido mediante una estructura simple de perfiles TC60 en acero galvanizado de 0,6 mm de espesor con modulación de 600 mm entre ejes y unidos al forjado mediante varilla roscada galvanizada y horquilla TC60. Incluida la parte proporcional del resto de materiales: tornillería, pasta de juntas, masilla para encuentros perimetrales, fijaciones, junta estanca, etc. Montaje según norma de instalación UNE 102043 y exigencias del CTE.","Techo continuo formado por una placa HIDROPLUS de 15 mm de espesor compuesta por yeso natural, fibra de vidrio y aditivos inorgánicos que le aportan alta dureza y resistencia mecánica. Incorpora tratamiento hidrófugo y un aumento en su densidad, características claves para una elevada resistencia a la humedad (absorción de agua menor al 3%) y una gran resistencia mecánica. Idónea para zonas de intemperie. Reacción al fuego: EUROCLASE A1. Sistema de galces desiguales: las placas encajan entre ellas dejando una entrecalle de 3 mm por donde se inserte la pasta de juntas. Este sistema no utiliza cinta de papel. La pasta de juntas se aplica en las cavidades de las placas y una masilla elástica en los encuentros. Suspendido mediante una estructura simple de perfiles TC60 en acero galvanizado de 0,6 mm de espesor con modulación de 600 mm entre ejes y unidos al forjado mediante varilla roscada galvanizada y horquilla TC60. Incluida la parte proporcional del resto de materiales: tornillería, pasta de juntas, masilla para encuentros perimetrales, fijaciones, junta estanca, etc. Montaje según norma de instalación UNE 102043 y exigencias del CTE.","Techo continuo formado por una placa SUPREM de 15 mm de espesor compuesta por yeso natural, fibra de vidrio y aditivos inorgánicos que le aportan alta dureza y resistencia mecánica. Incorpora tratamiento hidrófugo, perlita y un aumento en la densidad para conseguir soluciones constructivas que cumplan, altos requisitos frente al fuego y una capacidad reducida de absorción de agua. Reacción al fuego: EUROCLASE A1. Sistema de galces desiguales: las placas encajan entre ellas dejando una entrecalle de 3 mm por donde se inserte la pasta de juntas. Este sistema no utiliza cinta de papel. La pasta de juntas se aplica en las cavidades de las placas y una masilla elástica en los encuentros. Suspendido mediante una estructura simple de perfiles TC60 en acero galvanizado de 0,6 mm de espesor con modulación de 600 mm entre ejes y unidos al forjado mediante varilla roscada galvanizada y horquilla TC60. Incluida la parte proporcional del resto de materiales: tornillería, pasta de juntas, masilla para encuentros perimetrales, fijaciones, junta estanca, etc. Montaje según norma de instalación UNE 102043 y exigencias del CTE."]
[null,null,66020,"1.1.12","TECHO SIMPLE / ESTRUCTURA SIMPLE ATT® 60 / 600 1x20",600,60,20,"Techo continuo formado por una placa BASIC de 20 mm de espesor compuesta por yeso natural, fibra de vidrio y aditivos inorgánicos que le aportan alta dureza y resistencia mecánica. Reacción al fuego: EUROCLASE A1. Sistema de galces desiguales: las placas encajan entre ellas dejando una entrecalle de 3 mm por donde se inserte la pasta de juntas. Este sistema no utiliza cinta de papel. La pasta de juntas se aplica en las cavidades de las placas y una masilla elástica en los encuentros. Suspendido mediante una estructura simple de perfiles TC60 en acero galvanizado de 0,6 mm de espesor con modulación de 600 mm entre ejes y unidos al forjado mediante varilla roscada galvanizada y horquilla TC60. Incluida la parte proporcional del resto de materiales: tornillería, pasta de juntas, masilla para encuentros perimetrales, fijaciones, junta estanca, etc. Montaje según norma de instalación UNE 102043 y exigencias del CTE.","Techo continuo formado por una placa HIDRO de 20 mm de espesor compuesta por yeso natural, fibra de vidrio y aditivos inorgánicos que le aportan alta dureza y resistencia mecánica. Incorpora tratamiento hidrófugo, disminuyendo así, su capacidad de absorción de agua (menor al 5%). Idónea para proteger las estancias de los efectos adversos de la humedad. Reacción al fuego: EUROCLASE A1. Sistema de galces desiguales: las placas encajan entre ellas dejando una entrecalle de 3 mm por donde se inserte la pasta de juntas. Este sistema no utiliza cinta de papel. La pasta de juntas se aplica en las cavidades de las placas y una masilla elástica en los encuentros. Suspendido mediante una estructura simple de perfiles TC60 en acero galvanizado de 0,6 mm de espesor con modulación de 600 mm entre ejes y unidos al forjado mediante varilla roscada galvanizada y horquilla TC60. Incluida la parte proporcional del resto de materiales: tornillería, pasta de juntas, masilla para encuentros perimetrales, fijaciones, junta estanca, etc. Montaje según norma de instalación UNE 102043 y exigencias del CTE.","Techo continuo formado por una placa FUEGO de 20 mm de espesor compuesta por yeso natural, fibra de vidrio y aditivos inorgánicos que le aportan alta dureza y resistencia mecánica. Incorpora perlita y un aumento en la densidad que la hace idónea para un excelente comportamiento y resistencia frente al fuego. Reacción al fuego: EUROCLASE A1. Sistema de galces desiguales: las placas encajan entre ellas dejando una entrecalle de 3 mm por donde se inserte la pasta de juntas. Este sistema no utiliza cinta de papel. La pasta de juntas se aplica en las cavidades de las placas y una masilla elástica en los encuentros. Suspendido mediante una estructura simple de perfiles TC60 en acero galvanizado de 0,6 mm de espesor con modulación de 600 mm entre ejes y unidos al forjado mediante varilla roscada galvanizada y horquilla TC60. Incluida la parte proporcional del resto de materiales: tornillería, pasta de juntas, masilla para encuentros perimetrales, fijaciones, junta estanca, etc. Montaje según norma de instalación UNE 102043 y exigencias del CTE.","Techo continuo formado por una placa RESIST de 20 mm de espesor compuesta por yeso natural, fibra de vidrio y aditivos inorgánicos que le aportan alta dureza y resistencia mecánica. Con mayor cantidad de fibra de vidrio y dosificación modificada, aumenta su densidad, mejorando notablemente la resistencia mecánica. Idónea para lugares con altas exigencias en cuanto a deterioro y desgaste. Reacción al fuego: EUROCLASE A1. Sistema de galces desiguales: las placas encajan entre ellas dejando una entrecalle de 3 mm por donde se inserte la pasta de juntas. Este sistema no utiliza cinta de papel. La pasta de juntas se aplica en las cavidades de las placas y una masilla elástica en los encuentros. Suspendido mediante una estructura simple de perfiles TC60 en acero galvanizado de 0,6 mm de espesor con modulación de 600 mm entre ejes y unidos al forjado mediante varilla roscada galvanizada y horquilla TC60. Incluida la parte proporcional del resto de materiales: tornillería, pasta de juntas, masilla para encuentros perimetrales, fijaciones, junta estanca, etc. Montaje según norma de instalación UNE 102043 y exigencias del CTE.","Techo continuo formado por una placa HIDROPLUS de 20 mm de espesor compuesta por yeso natural, fibra de vidrio y aditivos inorgánicos que le aportan alta dureza y resistencia mecánica. Incorpora tratamiento hidrófugo y un aumento en su densidad, características claves para una elevada resistencia a la humedad (absorción de agua menor al 3%) y una gran resistencia mecánica. Idónea para zonas de intemperie. Reacción al fuego: EUROCLASE A1. Sistema de galces desiguales: las placas encajan entre ellas dejando una entrecalle de 3 mm por donde se inserte la pasta de juntas. Este sistema no utiliza cinta de papel. La pasta de juntas se aplica en las cavidades de las placas y una masilla elástica en los encuentros. Suspendido mediante una estructura simple de perfiles TC60 en acero galvanizado de 0,6 mm de espesor con modulación de 600 mm entre ejes y unidos al forjado mediante varilla roscada galvanizada y horquilla TC60. Incluida la parte proporcional del resto de materiales: tornillería, pasta de juntas, masilla para encuentros perimetrales, fijaciones, junta estanca, etc. Montaje según norma de instalación UNE 102043 y exigencias del CTE.","Techo continuo formado por una placa SUPREM de 20 mm de espesor compuesta por yeso natural, fibra de vidrio y aditivos inorgánicos que le aportan alta dureza y resistencia mecánica. Incorpora tratamiento hidrófugo, perlita y un aumento en la densidad para conseguir soluciones constructivas que cumplan, altos requisitos frente al fuego y una capacidad reducida de absorción de agua. Reacción al fuego: EUROCLASE A1. Sistema de galces desiguales: las placas encajan entre ellas dejando una entrecalle de 3 mm por donde se inserte la pasta de juntas. Este sistema no utiliza cinta de papel. La pasta de juntas se aplica en las cavidades de las placas y una masilla elástica en los encuentros. Suspendido mediante una estructura simple de perfiles TC60 en acero galvanizado de 0,6 mm de espesor con modulación de 600 mm entre ejes y unidos al forjado mediante varilla roscada galvanizada y horquilla TC60. Incluida la parte proporcional del resto de materiales: tornillería, pasta de juntas, masilla para encuentros perimetrales, fijaciones, junta estanca, etc. Montaje según norma de instalación UNE 102043 y exigencias del CTE."]
[null,null,44726,"1.2.1","TECHO DOBLE / ESTRUCTURA SIMPLE ATT® 47 / 400 2x13 ",400,47,26,"Techo continuo formado por dos placas BASIC de 13 mm de espesor compuestas por yeso natural, fibra de vidrio y aditivos inorgánicos que le aportan alta dureza y resistencia mecánica. Reacción al fuego: EUROCLASE A1. Sistema de galces desiguales: las placas encajan entre ellas dejando una entrecalle de 3 mm por donde se inserte la pasta de juntas. Este sistema no utiliza cinta de papel. La pasta de juntas se aplica en las cavidades de las placas y una masilla elástica en los encuentros. Suspendido mediante una estructura simple de perfiles TC47 en acero galvanizado de 0,6 mm de espesor con modulación de 400 mm entre ejes y unidos al forjado mediante varilla roscada galvanizada y horquilla TC47. Incluida la parte proporcional del resto de materiales: tornillería, pasta de juntas, masilla para encuentros perimetrales, fijaciones, junta estanca, etc. Montaje según norma de instalación UNE 102043 y exigencias del CTE.","Techo continuo formado por dos placas HIDRO de 13 mm de espesor compuestas por yeso natural, fibra de vidrio y aditivos inorgánicos que le aportan alta dureza y resistencia mecánica. Incorpora tratamiento hidrófugo, disminuyendo así, su capacidad de absorción de agua (menor al 5%). Idónea para proteger las estancias de los efectos adversos de la humedad. Reacción al fuego: EUROCLASE A1. Sistema de galces desiguales: las placas encajan entre ellas dejando una entrecalle de 3 mm por donde se inserte la pasta de juntas. Este sistema no utiliza cinta de papel. La pasta de juntas se aplica en las cavidades de las placas y una masilla elástica en los encuentros. Suspendido mediante una estructura simple de perfiles TC47 en acero galvanizado de 0,6 mm de espesor con modulación de 400 mm entre ejes y unidos al forjado mediante varilla roscada galvanizada y horquilla TC47. Incluida la parte proporcional del resto de materiales: tornillería, pasta de juntas, masilla para encuentros perimetrales, fijaciones, junta estanca, etc. Montaje según norma de instalación UNE 102043 y exigencias del CTE.","Techo continuo formado por dos placas FUEGO de 13 mm de espesor compuestas por yeso natural, fibra de vidrio y aditivos inorgánicos que le aportan alta dureza y resistencia mecánica. Incorpora perlita y un aumento en la densidad que la hace idónea para un excelente comportamiento y resistencia frente al fuego. Reacción al fuego: EUROCLASE A1. Sistema de galces desiguales: las placas encajan entre ellas dejando una entrecalle de 3 mm por donde se inserte la pasta de juntas. Este sistema no utiliza cinta de papel. La pasta de juntas se aplica en las cavidades de las placas y una masilla elástica en los encuentros. Suspendido mediante una estructura simple de perfiles TC47 en acero galvanizado de 0,6 mm de espesor con modulación de 400 mm entre ejes y unidos al forjado mediante varilla roscada galvanizada y horquilla TC47. Incluida la parte proporcional del resto de materiales: tornillería, pasta de juntas, masilla para encuentros perimetrales, fijaciones, junta estanca, etc. Montaje según norma de instalación UNE 102043 y exigencias del CTE.","Techo continuo formado por dos placas RESIST de 13 mm de espesor compuestas por yeso natural, fibra de vidrio y aditivos inorgánicos que le aportan alta dureza y resistencia mecánica. Con mayor cantidad de fibra de vidrio y dosificación modificada, aumenta su densidad, mejorando notablemente la resistencia mecánica. Idónea para lugares con altas exigencias en cuanto a deterioro y desgaste. Reacción al fuego: EUROCLASE A1. Sistema de galces desiguales: las placas encajan entre ellas dejando una entrecalle de 3 mm por donde se inserte la pasta de juntas. Este sistema no utiliza cinta de papel. La pasta de juntas se aplica en las cavidades de las placas y una masilla elástica en los encuentros. Suspendido mediante una estructura simple de perfiles TC47 en acero galvanizado de 0,6 mm de espesor con modulación de 400 mm entre ejes y unidos al forjado mediante varilla roscada galvanizada y horquilla TC47. Incluida la parte proporcional del resto de materiales: tornillería, pasta de juntas, masilla para encuentros perimetrales, fijaciones, junta estanca, etc. Montaje según norma de instalación UNE 102043 y exigencias del CTE.","Techo continuo formado por dos placas HIDROPLUS de 13 mm de espesor compuestas por yeso natural, fibra de vidrio y aditivos inorgánicos que le aportan alta dureza y resistencia mecánica. Incorpora tratamiento hidrófugo y un aumento en su densidad, características claves para una elevada resistencia a la humedad (absorción de agua menor al 3%) y una gran resistencia mecánica. Idónea para zonas de intemperie. Reacción al fuego: EUROCLASE A1. Sistema de galces desiguales: las placas encajan entre ellas dejando una entrecalle de 3 mm por donde se inserte la pasta de juntas. Este sistema no utiliza cinta de papel. La pasta de juntas se aplica en las cavidades de las placas y una masilla elástica en los encuentros. Suspendido mediante una estructura simple de perfiles TC47 en acero galvanizado de 0,6 mm de espesor con modulación de 400 mm entre ejes y unidos al forjado mediante varilla roscada galvanizada y horquilla TC47. Incluida la parte proporcional del resto de materiales: tornillería, pasta de juntas, masilla para encuentros perimetrales, fijaciones, junta estanca, etc. Montaje según norma de instalación UNE 102043 y exigencias del CTE.","Techo continuo formado por dos placas SUPREM de 13 mm de espesor compuestas por yeso natural, fibra de vidrio y aditivos inorgánicos que le aportan alta dureza y resistencia mecánica. Incorpora tratamiento hidrófugo, perlita y un aumento en la densidad para conseguir soluciones constructivas que cumplan, altos requisitos frente al fuego y una capacidad reducida de absorción de agua. Reacción al fuego: EUROCLASE A1. Sistema de galces desiguales: las placas encajan entre ellas dejando una entrecalle de 3 mm por donde se inserte la pasta de juntas. Este sistema no utiliza cinta de papel. La pasta de juntas se aplica en las cavidades de las placas y una masilla elástica en los encuentros. Suspendido mediante una estructura simple de perfiles TC47 en acero galvanizado de 0,6 mm de espesor con modulación de 400 mm entre ejes y unidos al forjado mediante varilla roscada galvanizada y horquilla TC47. Incluida la parte proporcional del resto de materiales: tornillería, pasta de juntas, masilla para encuentros perimetrales, fijaciones, junta estanca, etc. Montaje según norma de instalación UNE 102043 y exigencias del CTE."]
[null,null,44730,"1.2.2","TECHO DOBLE / ESTRUCTURA SIMPLE ATT® 47 / 400 2x15",400,47,30,"Techo continuo formado por dos placas BASIC de 15 mm de espesor compuestas por yeso natural, fibra de vidrio y aditivos inorgánicos que le aportan alta dureza y resistencia mecánica. Reacción al fuego: EUROCLASE A1. Sistema de galces desiguales: las placas encajan entre ellas dejando una entrecalle de 3 mm por donde se inserte la pasta de juntas. Este sistema no utiliza cinta de papel. La pasta de juntas se aplica en las cavidades de las placas y una masilla elástica en los encuentros. Suspendido mediante una estructura simple de perfiles TC47 en acero galvanizado de 0,6 mm de espesor con modulación de 400 mm entre ejes y unidos al forjado mediante varilla roscada galvanizada y horquilla TC47. Incluida la parte proporcional del resto de materiales: tornillería, pasta de juntas, masilla para encuentros perimetrales, fijaciones, junta estanca, etc. Montaje según norma de instalación UNE 102043 y exigencias del CTE.","Techo continuo formado por dos placas HIDRO de 15 mm de espesor compuestas por yeso natural, fibra de vidrio y aditivos inorgánicos que le aportan alta dureza y resistencia mecánica. Incorpora tratamiento hidrófugo, disminuyendo así, su capacidad de absorción de agua (menor al 5%). Idónea para proteger las estancias de los efectos adversos de la humedad. Reacción al fuego: EUROCLASE A1. Sistema de galces desiguales: las placas encajan entre ellas dejando una entrecalle de 3 mm por donde se inserte la pasta de juntas. Este sistema no utiliza cinta de papel. La pasta de juntas se aplica en las cavidades de las placas y una masilla elástica en los encuentros. Suspendido mediante una estructura simple de perfiles TC47 en acero galvanizado de 0,6 mm de espesor con modulación de 400 mm entre ejes y unidos al forjado mediante varilla roscada galvanizada y horquilla TC47. Incluida la parte proporcional del resto de materiales: tornillería, pasta de juntas, masilla para encuentros perimetrales, fijaciones, junta estanca, etc. Montaje según norma de instalación UNE 102043 y exigencias del CTE.","Techo continuo formado por dos placas FUEGO de 15 mm de espesor compuestas por yeso natural, fibra de vidrio y aditivos inorgánicos que le aportan alta dureza y resistencia mecánica. Incorpora perlita y un aumento en la densidad que la hace idónea para un excelente comportamiento y resistencia frente al fuego. Reacción al fuego: EUROCLASE A1. Sistema de galces desiguales: las placas encajan entre ellas dejando una entrecalle de 3 mm por donde se inserte la pasta de juntas. Este sistema no utiliza cinta de papel. La pasta de juntas se aplica en las cavidades de las placas y una masilla elástica en los encuentros. Suspendido mediante una estructura simple de perfiles TC47 en acero galvanizado de 0,6 mm de espesor con modulación de 400 mm entre ejes y unidos al forjado mediante varilla roscada galvanizada y horquilla TC47. Incluida la parte proporcional del resto de materiales: tornillería, pasta de juntas, masilla para encuentros perimetrales, fijaciones, junta estanca, etc. Montaje según norma de instalación UNE 102043 y exigencias del CTE.","Techo continuo formado por dos placas RESIST de 15 mm de espesor compuestas por yeso natural, fibra de vidrio y aditivos inorgánicos que le aportan alta dureza y resistencia mecánica. Con mayor cantidad de fibra de vidrio y dosificación modificada, aumenta su densidad, mejorando notablemente la resistencia mecánica. Idónea para lugares con altas exigencias en cuanto a deterioro y desgaste. Reacción al fuego: EUROCLASE A1. Sistema de galces desiguales: las placas encajan entre ellas dejando una entrecalle de 3 mm por donde se inserte la pasta de juntas. Este sistema no utiliza cinta de papel. La pasta de juntas se aplica en las cavidades de las placas y una masilla elástica en los encuentros. Suspendido mediante una estructura simple de perfiles TC47 en acero galvanizado de 0,6 mm de espesor con modulación de 400 mm entre ejes y unidos al forjado mediante varilla roscada galvanizada y horquilla TC47. Incluida la parte proporcional del resto de materiales: tornillería, pasta de juntas, masilla para encuentros perimetrales, fijaciones, junta estanca, etc. Montaje según norma de instalación UNE 102043 y exigencias del CTE.","Techo continuo formado por dos placas HIDROPLUS de 15 mm de espesor compuestas por yeso natural, fibra de vidrio y aditivos inorgánicos que le aportan alta dureza y resistencia mecánica. Incorpora tratamiento hidrófugo y un aumento en su densidad, características claves para una elevada resistencia a la humedad (absorción de agua menor al 3%) y una gran resistencia mecánica. Idónea para zonas de intemperie. Reacción al fuego: EUROCLASE A1. Sistema de galces desiguales: las placas encajan entre ellas dejando una entrecalle de 3 mm por donde se inserte la pasta de juntas. Este sistema no utiliza cinta de papel. La pasta de juntas se aplica en las cavidades de las placas y una masilla elástica en los encuentros. Suspendido mediante una estructura simple de perfiles TC47 en acero galvanizado de 0,6 mm de espesor con modulación de 400 mm entre ejes y unidos al forjado mediante varilla roscada galvanizada y horquilla TC47. Incluida la parte proporcional del resto de materiales: tornillería, pasta de juntas, masilla para encuentros perimetrales, fijaciones, junta estanca, etc. Montaje según norma de instalación UNE 102043 y exigencias del CTE.","Techo continuo formado por dos placas SUPREM de 15 mm de espesor compuestas por yeso natural, fibra de vidrio y aditivos inorgánicos que le aportan alta dureza y resistencia mecánica. Incorpora tratamiento hidrófugo, perlita y un aumento en la densidad para conseguir soluciones constructivas que cumplan, altos requisitos frente al fuego y una capacidad reducida de absorción de agua. Reacción al fuego: EUROCLASE A1. Sistema de galces desiguales: las placas encajan entre ellas dejando una entrecalle de 3 mm por donde se inserte la pasta de juntas. Este sistema no utiliza cinta de papel. La pasta de juntas se aplica en las cavidades de las placas y una masilla elástica en los encuentros. Suspendido mediante una estructura simple de perfiles TC47 en acero galvanizado de 0,6 mm de espesor con modulación de 400 mm entre ejes y unidos al forjado mediante varilla roscada galvanizada y horquilla TC47. Incluida la parte proporcional del resto de materiales: tornillería, pasta de juntas, masilla para encuentros perimetrales, fijaciones, junta estanca, etc. Montaje según norma de instalación UNE 102043 y exigencias del CTE."]
[null,null,44740,"1.2.3","TECHO DOBLE / ESTRUCTURA SIMPLE ATT® 47 / 400 2x20",400,47,40,"Techo continuo formado por dos placas BASIC de 20 mm de espesor compuestas por yeso natural, fibra de vidrio y aditivos inorgánicos que le aportan alta dureza y resistencia mecánica. Reacción al fuego: EUROCLASE A1. Sistema de galces desiguales: las placas encajan entre ellas dejando una entrecalle de 3 mm por donde se inserte la pasta de juntas. Este sistema no utiliza cinta de papel. La pasta de juntas se aplica en las cavidades de las placas y una masilla elástica en los encuentros. Suspendido mediante una estructura simple de perfiles TC47 en acero galvanizado de 0,6 mm de espesor con modulación de 400 mm entre ejes y unidos al forjado mediante varilla roscada galvanizada y horquilla TC47. Incluida la parte proporcional del resto de materiales: tornillería, pasta de juntas, masilla para encuentros perimetrales, fijaciones, junta estanca, etc. Montaje según norma de instalación UNE 102043 y exigencias del CTE.","Techo continuo formado por dos placas HIDRO de 20 mm de espesor compuestas por yeso natural, fibra de vidrio y aditivos inorgánicos que le aportan alta dureza y resistencia mecánica. Incorpora tratamiento hidrófugo, disminuyendo así, su capacidad de absorción de agua (menor al 5%). Idónea para proteger las estancias de los efectos adversos de la humedad. Reacción al fuego: EUROCLASE A1. Sistema de galces desiguales: las placas encajan entre ellas dejando una entrecalle de 3 mm por donde se inserte la pasta de juntas. Este sistema no utiliza cinta de papel. La pasta de juntas se aplica en las cavidades de las placas y una masilla elástica en los encuentros. Suspendido mediante una estructura simple de perfiles TC47 en acero galvanizado de 0,6 mm de espesor con modulación de 400 mm entre ejes y unidos al forjado mediante varilla roscada galvanizada y horquilla TC47. Incluida la parte proporcional del resto de materiales: tornillería, pasta de juntas, masilla para encuentros perimetrales, fijaciones, junta estanca, etc. Montaje según norma de instalación UNE 102043 y exigencias del CTE.","Techo continuo formado por dos placas FUEGO de 20 mm de espesor compuestas por yeso natural, fibra de vidrio y aditivos inorgánicos que le aportan alta dureza y resistencia mecánica. Incorpora perlita y un aumento en la densidad que la hace idónea para un excelente comportamiento y resistencia frente al fuego. Reacción al fuego: EUROCLASE A1. Sistema de galces desiguales: las placas encajan entre ellas dejando una entrecalle de 3 mm por donde se inserte la pasta de juntas. Este sistema no utiliza cinta de papel. La pasta de juntas se aplica en las cavidades de las placas y una masilla elástica en los encuentros. Suspendido mediante una estructura simple de perfiles TC47 en acero galvanizado de 0,6 mm de espesor con modulación de 400 mm entre ejes y unidos al forjado mediante varilla roscada galvanizada y horquilla TC47. Incluida la parte proporcional del resto de materiales: tornillería, pasta de juntas, masilla para encuentros perimetrales, fijaciones, junta estanca, etc. Montaje según norma de instalación UNE 102043 y exigencias del CTE.","Techo continuo formado por dos placas RESIST de 20 mm de espesor compuestas por yeso natural, fibra de vidrio y aditivos inorgánicos que le aportan alta dureza y resistencia mecánica. Con mayor cantidad de fibra de vidrio y dosificación modificada, aumenta su densidad, mejorando notablemente la resistencia mecánica. Idónea para lugares con altas exigencias en cuanto a deterioro y desgaste. Reacción al fuego: EUROCLASE A1. Sistema de galces desiguales: las placas encajan entre ellas dejando una entrecalle de 3 mm por donde se inserte la pasta de juntas. Este sistema no utiliza cinta de papel. La pasta de juntas se aplica en las cavidades de las placas y una masilla elástica en los encuentros. Suspendido mediante una estructura simple de perfiles TC47 en acero galvanizado de 0,6 mm de espesor con modulación de 400 mm entre ejes y unidos al forjado mediante varilla roscada galvanizada y horquilla TC47. Incluida la parte proporcional del resto de materiales: tornillería, pasta de juntas, masilla para encuentros perimetrales, fijaciones, junta estanca, etc. Montaje según norma de instalación UNE 102043 y exigencias del CTE.","Techo continuo formado por dos placas HIDROPLUS de 20 mm de espesor compuestas por yeso natural, fibra de vidrio y aditivos inorgánicos que le aportan alta dureza y resistencia mecánica. Incorpora tratamiento hidrófugo y un aumento en su densidad, características claves para una elevada resistencia a la humedad (absorción de agua menor al 3%) y una gran resistencia mecánica. Idónea para zonas de intemperie. Reacción al fuego: EUROCLASE A1. Sistema de galces desiguales: las placas encajan entre ellas dejando una entrecalle de 3 mm por donde se inserte la pasta de juntas. Este sistema no utiliza cinta de papel. La pasta de juntas se aplica en las cavidades de las placas y una masilla elástica en los encuentros. Suspendido mediante una estructura simple de perfiles TC47 en acero galvanizado de 0,6 mm de espesor con modulación de 400 mm entre ejes y unidos al forjado mediante varilla roscada galvanizada y horquilla TC47. Incluida la parte proporcional del resto de materiales: tornillería, pasta de juntas, masilla para encuentros perimetrales, fijaciones, junta estanca, etc. Montaje según norma de instalación UNE 102043 y exigencias del CTE.","Techo continuo formado por dos placas SUPREM de 20 mm de espesor compuestas por yeso natural, fibra de vidrio y aditivos inorgánicos que le aportan alta dureza y resistencia mecánica. Incorpora tratamiento hidrófugo, perlita y un aumento en la densidad para conseguir soluciones constructivas que cumplan, altos requisitos frente al fuego y una capacidad reducida de absorción de agua. Reacción al fuego: EUROCLASE A1. Sistema de galces desiguales: las placas encajan entre ellas dejando una entrecalle de 3 mm por donde se inserte la pasta de juntas. Este sistema no utiliza cinta de papel. La pasta de juntas se aplica en las cavidades de las placas y una masilla elástica en los encuentros. Suspendido mediante una estructura simple de perfiles TC47 en acero galvanizado de 0,6 mm de espesor con modulación de 400 mm entre ejes y unidos al forjado mediante varilla roscada galvanizada y horquilla TC47. Incluida la parte proporcional del resto de materiales: tornillería, pasta de juntas, masilla para encuentros perimetrales, fijaciones, junta estanca, etc. Montaje según norma de instalación UNE 102043 y exigencias del CTE."]
[null,null,64726,"1.2.4","TECHO DOBLE / ESTRUCTURA SIMPLE ATT® 47 / 600 2x13 ",600,47,26,"Techo continuo formado por dos placas BASIC de 13 mm de espesor compuestas por yeso natural, fibra de vidrio y aditivos inorgánicos que le aportan alta dureza y resistencia mecánica. Reacción al fuego: EUROCLASE A1. Sistema de galces desiguales: las placas encajan entre ellas dejando una entrecalle de 3 mm por donde se inserte la pasta de juntas. Este sistema no utiliza cinta de papel. La pasta de juntas se aplica en las cavidades de las placas y una masilla elástica en los encuentros. Suspendido mediante una estructura simple de perfiles TC47 en acero galvanizado de 0,6 mm de espesor con modulación de 600 mm entre ejes y unidos al forjado mediante varilla roscada galvanizada y horquilla TC47. Incluida la parte proporcional del resto de materiales: tornillería, pasta de juntas, masilla para encuentros perimetrales, fijaciones, junta estanca, etc. Montaje según norma de instalación UNE 102043 y exigencias del CTE.","Techo continuo formado por dos placas HIDRO de 13 mm de espesor compuestas por yeso natural, fibra de vidrio y aditivos inorgánicos que le aportan alta dureza y resistencia mecánica. Incorpora tratamiento hidrófugo, disminuyendo así, su capacidad de absorción de agua (menor al 5%). Idónea para proteger las estancias de los efectos adversos de la humedad. Reacción al fuego: EUROCLASE A1. Sistema de galces desiguales: las placas encajan entre ellas dejando una entrecalle de 3 mm por donde se inserte la pasta de juntas. Este sistema no utiliza cinta de papel. La pasta de juntas se aplica en las cavidades de las placas y una masilla elástica en los encuentros. Suspendido mediante una estructura simple de perfiles TC47 en acero galvanizado de 0,6 mm de espesor con modulación de 600 mm entre ejes y unidos al forjado mediante varilla roscada galvanizada y horquilla TC47. Incluida la parte proporcional del resto de materiales: tornillería, pasta de juntas, masilla para encuentros perimetrales, fijaciones, junta estanca, etc. Montaje según norma de instalación UNE 102043 y exigencias del CTE.","Techo continuo formado por dos placas FUEGO de 13 mm de espesor compuestas por yeso natural, fibra de vidrio y aditivos inorgánicos que le aportan alta dureza y resistencia mecánica. Incorpora perlita y un aumento en la densidad que la hace idónea para un excelente comportamiento y resistencia frente al fuego. Reacción al fuego: EUROCLASE A1. Sistema de galces desiguales: las placas encajan entre ellas dejando una entrecalle de 3 mm por donde se inserte la pasta de juntas. Este sistema no utiliza cinta de papel. La pasta de juntas se aplica en las cavidades de las placas y una masilla elástica en los encuentros. Suspendido mediante una estructura simple de perfiles TC47 en acero galvanizado de 0,6 mm de espesor con modulación de 600 mm entre ejes y unidos al forjado mediante varilla roscada galvanizada y horquilla TC47. Incluida la parte proporcional del resto de materiales: tornillería, pasta de juntas, masilla para encuentros perimetrales, fijaciones, junta estanca, etc. Montaje según norma de instalación UNE 102043 y exigencias del CTE.","Techo continuo formado por dos placas RESIST de 13 mm de espesor compuestas por yeso natural, fibra de vidrio y aditivos inorgánicos que le aportan alta dureza y resistencia mecánica. Con mayor cantidad de fibra de vidrio y dosificación modificada, aumenta su densidad, mejorando notablemente la resistencia mecánica. Idónea para lugares con altas exigencias en cuanto a deterioro y desgaste. Reacción al fuego: EUROCLASE A1. Sistema de galces desiguales: las placas encajan entre ellas dejando una entrecalle de 3 mm por donde se inserte la pasta de juntas. Este sistema no utiliza cinta de papel. La pasta de juntas se aplica en las cavidades de las placas y una masilla elástica en los encuentros. Suspendido mediante una estructura simple de perfiles TC47 en acero galvanizado de 0,6 mm de espesor con modulación de 600 mm entre ejes y unidos al forjado mediante varilla roscada galvanizada y horquilla TC47. Incluida la parte proporcional del resto de materiales: tornillería, pasta de juntas, masilla para encuentros perimetrales, fijaciones, junta estanca, etc. Montaje según norma de instalación UNE 102043 y exigencias del CTE.","Techo continuo formado por dos placas HIDROPLUS de 13 mm de espesor compuestas por yeso natural, fibra de vidrio y aditivos inorgánicos que le aportan alta dureza y resistencia mecánica. Incorpora tratamiento hidrófugo y un aumento en su densidad, características claves para una elevada resistencia a la humedad (absorción de agua menor al 3%) y una gran resistencia mecánica. Idónea para zonas de intemperie. Reacción al fuego: EUROCLASE A1. Sistema de galces desiguales: las placas encajan entre ellas dejando una entrecalle de 3 mm por donde se inserte la pasta de juntas. Este sistema no utiliza cinta de papel. La pasta de juntas se aplica en las cavidades de las placas y una masilla elástica en los encuentros. Suspendido mediante una estructura simple de perfiles TC47 en acero galvanizado de 0,6 mm de espesor con modulación de 600 mm entre ejes y unidos al forjado mediante varilla roscada galvanizada y horquilla TC47. Incluida la parte proporcional del resto de materiales: tornillería, pasta de juntas, masilla para encuentros perimetrales, fijaciones, junta estanca, etc. Montaje según norma de instalación UNE 102043 y exigencias del CTE.","Techo continuo formado por dos placas SUPREM de 13 mm de espesor compuestas por yeso natural, fibra de vidrio y aditivos inorgánicos que le aportan alta dureza y resistencia mecánica. Incorpora tratamiento hidrófugo, perlita y un aumento en la densidad para conseguir soluciones constructivas que cumplan, altos requisitos frente al fuego y una capacidad reducida de absorción de agua. Reacción al fuego: EUROCLASE A1. Sistema de galces desiguales: las placas encajan entre ellas dejando una entrecalle de 3 mm por donde se inserte la pasta de juntas. Este sistema no utiliza cinta de papel. La pasta de juntas se aplica en las cavidades de las placas y una masilla elástica en los encuentros. Suspendido mediante una estructura simple de perfiles TC47 en acero galvanizado de 0,6 mm de espesor con modulación de 600 mm entre ejes y unidos al forjado mediante varilla roscada galvanizada y horquilla TC47. Incluida la parte proporcional del resto de materiales: tornillería, pasta de juntas, masilla para encuentros perimetrales, fijaciones, junta estanca, etc. Montaje según norma de instalación UNE 102043 y exigencias del CTE."]
[null,null,64730,"1.2.5","TECHO DOBLE / ESTRUCTURA SIMPLE ATT® 47 / 600 2x15",600,47,30,"Techo continuo formado por dos placas BASIC de 15 mm de espesor compuestas por yeso natural, fibra de vidrio y aditivos inorgánicos que le aportan alta dureza y resistencia mecánica. Reacción al fuego: EUROCLASE A1. Sistema de galces desiguales: las placas encajan entre ellas dejando una entrecalle de 3 mm por donde se inserte la pasta de juntas. Este sistema no utiliza cinta de papel. La pasta de juntas se aplica en las cavidades de las placas y una masilla elástica en los encuentros. Suspendido mediante una estructura simple de perfiles TC47 en acero galvanizado de 0,6 mm de espesor con modulación de 600 mm entre ejes y unidos al forjado mediante varilla roscada galvanizada y horquilla TC47. Incluida la parte proporcional del resto de materiales: tornillería, pasta de juntas, masilla para encuentros perimetrales, fijaciones, junta estanca, etc. Montaje según norma de instalación UNE 102043 y exigencias del CTE.","Techo continuo formado por dos placas HIDRO de 15 mm de espesor compuestas por yeso natural, fibra de vidrio y aditivos inorgánicos que le aportan alta dureza y resistencia mecánica. Incorpora tratamiento hidrófugo, disminuyendo así, su capacidad de absorción de agua (menor al 5%). Idónea para proteger las estancias de los efectos adversos de la humedad. Reacción al fuego: EUROCLASE A1. Sistema de galces desiguales: las placas encajan entre ellas dejando una entrecalle de 3 mm por donde se inserte la pasta de juntas. Este sistema no utiliza cinta de papel. La pasta de juntas se aplica en las cavidades de las placas y una masilla elástica en los encuentros. Suspendido mediante una estructura simple de perfiles TC47 en acero galvanizado de 0,6 mm de espesor con modulación de 600 mm entre ejes y unidos al forjado mediante varilla roscada galvanizada y horquilla TC47. Incluida la parte proporcional del resto de materiales: tornillería, pasta de juntas, masilla para encuentros perimetrales, fijaciones, junta estanca, etc. Montaje según norma de instalación UNE 102043 y exigencias del CTE.","Techo continuo formado por dos placas FUEGO de 15 mm de espesor compuestas por yeso natural, fibra de vidrio y aditivos inorgánicos que le aportan alta dureza y resistencia mecánica. Incorpora perlita y un aumento en la densidad que la hace idónea para un excelente comportamiento y resistencia frente al fuego. Reacción al fuego: EUROCLASE A1. Sistema de galces desiguales: las placas encajan entre ellas dejando una entrecalle de 3 mm por donde se inserte la pasta de juntas. Este sistema no utiliza cinta de papel. La pasta de juntas se aplica en las cavidades de las placas y una masilla elástica en los encuentros. Suspendido mediante una estructura simple de perfiles TC47 en acero galvanizado de 0,6 mm de espesor con modulación de 600 mm entre ejes y unidos al forjado mediante varilla roscada galvanizada y horquilla TC47. Incluida la parte proporcional del resto de materiales: tornillería, pasta de juntas, masilla para encuentros perimetrales, fijaciones, junta estanca, etc. Montaje según norma de instalación UNE 102043 y exigencias del CTE.","Techo continuo formado por dos placas RESIST de 15 mm de espesor compuestas por yeso natural, fibra de vidrio y aditivos inorgánicos que le aportan alta dureza y resistencia mecánica. Con mayor cantidad de fibra de vidrio y dosificación modificada, aumenta su densidad, mejorando notablemente la resistencia mecánica. Idónea para lugares con altas exigencias en cuanto a deterioro y desgaste. Reacción al fuego: EUROCLASE A1. Sistema de galces desiguales: las placas encajan entre ellas dejando una entrecalle de 3 mm por donde se inserte la pasta de juntas. Este sistema no utiliza cinta de papel. La pasta de juntas se aplica en las cavidades de las placas y una masilla elástica en los encuentros. Suspendido mediante una estructura simple de perfiles TC47 en acero galvanizado de 0,6 mm de espesor con modulación de 600 mm entre ejes y unidos al forjado mediante varilla roscada galvanizada y horquilla TC47. Incluida la parte proporcional del resto de materiales: tornillería, pasta de juntas, masilla para encuentros perimetrales, fijaciones, junta estanca, etc. Montaje según norma de instalación UNE 102043 y exigencias del CTE.","Techo continuo formado por dos placas HIDROPLUS de 15 mm de espesor compuestas por yeso natural, fibra de vidrio y aditivos inorgánicos que le aportan alta dureza y resistencia mecánica. Incorpora tratamiento hidrófugo y un aumento en su densidad, características claves para una elevada resistencia a la humedad (absorción de agua menor al 3%) y una gran resistencia mecánica. Idónea para zonas de intemperie. Reacción al fuego: EUROCLASE A1. Sistema de galces desiguales: las placas encajan entre ellas dejando una entrecalle de 3 mm por donde se inserte la pasta de juntas. Este sistema no utiliza cinta de papel. La pasta de juntas se aplica en las cavidades de las placas y una masilla elástica en los encuentros. Suspendido mediante una estructura simple de perfiles TC47 en acero galvanizado de 0,6 mm de espesor con modulación de 600 mm entre ejes y unidos al forjado mediante varilla roscada galvanizada y horquilla TC47. Incluida la parte proporcional del resto de materiales: tornillería, pasta de juntas, masilla para encuentros perimetrales, fijaciones, junta estanca, etc. Montaje según norma de instalación UNE 102043 y exigencias del CTE.","Techo continuo formado por dos placas SUPREM de 15 mm de espesor compuestas por yeso natural, fibra de vidrio y aditivos inorgánicos que le aportan alta dureza y resistencia mecánica. Incorpora tratamiento hidrófugo, perlita y un aumento en la densidad para conseguir soluciones constructivas que cumplan, altos requisitos frente al fuego y una capacidad reducida de absorción de agua. Reacción al fuego: EUROCLASE A1. Sistema de galces desiguales: las placas encajan entre ellas dejando una entrecalle de 3 mm por donde se inserte la pasta de juntas. Este sistema no utiliza cinta de papel. La pasta de juntas se aplica en las cavidades de las placas y una masilla elástica en los encuentros. Suspendido mediante una estructura simple de perfiles TC47 en acero galvanizado de 0,6 mm de espesor con modulación de 600 mm entre ejes y unidos al forjado mediante varilla roscada galvanizada y horquilla TC47. Incluida la parte proporcional del resto de materiales: tornillería, pasta de juntas, masilla para encuentros perimetrales, fijaciones, junta estanca, etc. Montaje según norma de instalación UNE 102043 y exigencias del CTE."]
[null,null,64740,"1.2.6","TECHO DOBLE / ESTRUCTURA SIMPLE ATT® 47 / 600 2x20",600,47,40,"Techo continuo formado por dos placas BASIC de 20 mm de espesor compuestas por yeso natural, fibra de vidrio y aditivos inorgánicos que le aportan alta dureza y resistencia mecánica. Reacción al fuego: EUROCLASE A1. Sistema de galces desiguales: las placas encajan entre ellas dejando una entrecalle de 3 mm por donde se inserte la pasta de juntas. Este sistema no utiliza cinta de papel. La pasta de juntas se aplica en las cavidades de las placas y una masilla elástica en los encuentros. Suspendido mediante una estructura simple de perfiles TC47 en acero galvanizado de 0,6 mm de espesor con modulación de 600 mm entre ejes y unidos al forjado mediante varilla roscada galvanizada y horquilla TC47. Incluida la parte proporcional del resto de materiales: tornillería, pasta de juntas, masilla para encuentros perimetrales, fijaciones, junta estanca, etc. Montaje según norma de instalación UNE 102043 y exigencias del CTE.","Techo continuo formado por dos placas HIDRO de 20 mm de espesor compuestas por yeso natural, fibra de vidrio y aditivos inorgánicos que le aportan alta dureza y resistencia mecánica. Incorpora tratamiento hidrófugo, disminuyendo así, su capacidad de absorción de agua (menor al 5%). Idónea para proteger las estancias de los efectos adversos de la humedad. Reacción al fuego: EUROCLASE A1. Sistema de galces desiguales: las placas encajan entre ellas dejando una entrecalle de 3 mm por donde se inserte la pasta de juntas. Este sistema no utiliza cinta de papel. La pasta de juntas se aplica en las cavidades de las placas y una masilla elástica en los encuentros. Suspendido mediante una estructura simple de perfiles TC47 en acero galvanizado de 0,6 mm de espesor con modulación de 600 mm entre ejes y unidos al forjado mediante varilla roscada galvanizada y horquilla TC47. Incluida la parte proporcional del resto de materiales: tornillería, pasta de juntas, masilla para encuentros perimetrales, fijaciones, junta estanca, etc. Montaje según norma de instalación UNE 102043 y exigencias del CTE.","Techo continuo formado por dos placas FUEGO de 20 mm de espesor compuestas por yeso natural, fibra de vidrio y aditivos inorgánicos que le aportan alta dureza y resistencia mecánica. Incorpora perlita y un aumento en la densidad que la hace idónea para un excelente comportamiento y resistencia frente al fuego. Reacción al fuego: EUROCLASE A1. Sistema de galces desiguales: las placas encajan entre ellas dejando una entrecalle de 3 mm por donde se inserte la pasta de juntas. Este sistema no utiliza cinta de papel. La pasta de juntas se aplica en las cavidades de las placas y una masilla elástica en los encuentros. Suspendido mediante una estructura simple de perfiles TC47 en acero galvanizado de 0,6 mm de espesor con modulación de 600 mm entre ejes y unidos al forjado mediante varilla roscada galvanizada y horquilla TC47. Incluida la parte proporcional del resto de materiales: tornillería, pasta de juntas, masilla para encuentros perimetrales, fijaciones, junta estanca, etc. Montaje según norma de instalación UNE 102043 y exigencias del CTE.","Techo continuo formado por dos placas RESIST de 20 mm de espesor compuestas por yeso natural, fibra de vidrio y aditivos inorgánicos que le aportan alta dureza y resistencia mecánica. Con mayor cantidad de fibra de vidrio y dosificación modificada, aumenta su densidad, mejorando notablemente la resistencia mecánica. Idónea para lugares con altas exigencias en cuanto a deterioro y desgaste. Reacción al fuego: EUROCLASE A1. Sistema de galces desiguales: las placas encajan entre ellas dejando una entrecalle de 3 mm por donde se inserte la pasta de juntas. Este sistema no utiliza cinta de papel. La pasta de juntas se aplica en las cavidades de las placas y una masilla elástica en los encuentros. Suspendido mediante una estructura simple de perfiles TC47 en acero galvanizado de 0,6 mm de espesor con modulación de 600 mm entre ejes y unidos al forjado mediante varilla roscada galvanizada y horquilla TC47. Incluida la parte proporcional del resto de materiales: tornillería, pasta de juntas, masilla para encuentros perimetrales, fijaciones, junta estanca, etc. Montaje según norma de instalación UNE 102043 y exigencias del CTE.","Techo continuo formado por dos placas HIDROPLUS de 20 mm de espesor compuestas por yeso natural, fibra de vidrio y aditivos inorgánicos que le aportan alta dureza y resistencia mecánica. Incorpora tratamiento hidrófugo y un aumento en su densidad, características claves para una elevada resistencia a la humedad (absorción de agua menor al 3%) y una gran resistencia mecánica. Idónea para zonas de intemperie. Reacción al fuego: EUROCLASE A1. Sistema de galces desiguales: las placas encajan entre ellas dejando una entrecalle de 3 mm por donde se inserte la pasta de juntas. Este sistema no utiliza cinta de papel. La pasta de juntas se aplica en las cavidades de las placas y una masilla elástica en los encuentros. Suspendido mediante una estructura simple de perfiles TC47 en acero galvanizado de 0,6 mm de espesor con modulación de 600 mm entre ejes y unidos al forjado mediante varilla roscada galvanizada y horquilla TC47. Incluida la parte proporcional del resto de materiales: tornillería, pasta de juntas, masilla para encuentros perimetrales, fijaciones, junta estanca, etc. Montaje según norma de instalación UNE 102043 y exigencias del CTE.","Techo continuo formado por dos placas SUPREM de 20 mm de espesor compuestas por yeso natural, fibra de vidrio y aditivos inorgánicos que le aportan alta dureza y resistencia mecánica. Incorpora tratamiento hidrófugo, perlita y un aumento en la densidad para conseguir soluciones constructivas que cumplan, altos requisitos frente al fuego y una capacidad reducida de absorción de agua. Reacción al fuego: EUROCLASE A1. Sistema de galces desiguales: las placas encajan entre ellas dejando una entrecalle de 3 mm por donde se inserte la pasta de juntas. Este sistema no utiliza cinta de papel. La pasta de juntas se aplica en las cavidades de las placas y una masilla elástica en los encuentros. Suspendido mediante una estructura simple de perfiles TC47 en acero galvanizado de 0,6 mm de espesor con modulación de 600 mm entre ejes y unidos al forjado mediante varilla roscada galvanizada y horquilla TC47. Incluida la parte proporcional del resto de materiales: tornillería, pasta de juntas, masilla para encuentros perimetrales, fijaciones, junta estanca, etc. Montaje según norma de instalación UNE 102043 y exigencias del CTE."]
[null,null,46026,"1.2.7","TECHO DOBLE / ESTRUCTURA SIMPLE ATT® 60 / 400 2x13 ",400,60,26,"Techo continuo formado por dos placas BASIC de 13 mm de espesor compuestas por yeso natural, fibra de vidrio y aditivos inorgánicos que le aportan alta dureza y resistencia mecánica. Reacción al fuego: EUROCLASE A1. Sistema de galces desiguales: las placas encajan entre ellas dejando una entrecalle de 3 mm por donde se inserte la pasta de juntas. Este sistema no utiliza cinta de papel. La pasta de juntas se aplica en las cavidades de las placas y una masilla elástica en los encuentros. Suspendido mediante una estructura simple de perfiles TC60 en acero galvanizado de 0,6 mm de espesor con modulación de 400 mm entre ejes y unidos al forjado mediante varilla roscada galvanizada y horquilla TC60. Incluida la parte proporcional del resto de materiales: tornillería, pasta de juntas, masilla para encuentros perimetrales, fijaciones, junta estanca, etc. Montaje según norma de instalación UNE 102043 y exigencias del CTE.","Techo continuo formado por dos placas HIDRO de 13 mm de espesor compuestas por yeso natural, fibra de vidrio y aditivos inorgánicos que le aportan alta dureza y resistencia mecánica. Incorpora tratamiento hidrófugo, disminuyendo así, su capacidad de absorción de agua (menor al 5%). Idónea para proteger las estancias de los efectos adversos de la humedad. Reacción al fuego: EUROCLASE A1. Sistema de galces desiguales: las placas encajan entre ellas dejando una entrecalle de 3 mm por donde se inserte la pasta de juntas. Este sistema no utiliza cinta de papel. La pasta de juntas se aplica en las cavidades de las placas y una masilla elástica en los encuentros. Suspendido mediante una estructura simple de perfiles TC60 en acero galvanizado de 0,6 mm de espesor con modulación de 400 mm entre ejes y unidos al forjado mediante varilla roscada galvanizada y horquilla TC60. Incluida la parte proporcional del resto de materiales: tornillería, pasta de juntas, masilla para encuentros perimetrales, fijaciones, junta estanca, etc. Montaje según norma de instalación UNE 102043 y exigencias del CTE.","Techo continuo formado por dos placas FUEGO de 13 mm de espesor compuestas por yeso natural, fibra de vidrio y aditivos inorgánicos que le aportan alta dureza y resistencia mecánica. Incorpora perlita y un aumento en la densidad que la hace idónea para un excelente comportamiento y resistencia frente al fuego. Reacción al fuego: EUROCLASE A1. Sistema de galces desiguales: las placas encajan entre ellas dejando una entrecalle de 3 mm por donde se inserte la pasta de juntas. Este sistema no utiliza cinta de papel. La pasta de juntas se aplica en las cavidades de las placas y una masilla elástica en los encuentros. Suspendido mediante una estructura simple de perfiles TC60 en acero galvanizado de 0,6 mm de espesor con modulación de 400 mm entre ejes y unidos al forjado mediante varilla roscada galvanizada y horquilla TC60. Incluida la parte proporcional del resto de materiales: tornillería, pasta de juntas, masilla para encuentros perimetrales, fijaciones, junta estanca, etc. Montaje según norma de instalación UNE 102043 y exigencias del CTE.","Techo continuo formado por dos placas RESIST de 13 mm de espesor compuestas por yeso natural, fibra de vidrio y aditivos inorgánicos que le aportan alta dureza y resistencia mecánica. Con mayor cantidad de fibra de vidrio y dosificación modificada, aumenta su densidad, mejorando notablemente la resistencia mecánica. Idónea para lugares con altas exigencias en cuanto a deterioro y desgaste. Reacción al fuego: EUROCLASE A1. Sistema de galces desiguales: las placas encajan entre ellas dejando una entrecalle de 3 mm por donde se inserte la pasta de juntas. Este sistema no utiliza cinta de papel. La pasta de juntas se aplica en las cavidades de las placas y una masilla elástica en los encuentros. Suspendido mediante una estructura simple de perfiles TC60 en acero galvanizado de 0,6 mm de espesor con modulación de 400 mm entre ejes y unidos al forjado mediante varilla roscada galvanizada y horquilla TC60. Incluida la parte proporcional del resto de materiales: tornillería, pasta de juntas, masilla para encuentros perimetrales, fijaciones, junta estanca, etc. Montaje según norma de instalación UNE 102043 y exigencias del CTE.","Techo continuo formado por dos placas HIDROPLUS de 13 mm de espesor compuestas por yeso natural, fibra de vidrio y aditivos inorgánicos que le aportan alta dureza y resistencia mecánica. Incorpora tratamiento hidrófugo y un aumento en su densidad, características claves para una elevada resistencia a la humedad (absorción de agua menor al 3%) y una gran resistencia mecánica. Idónea para zonas de intemperie. Reacción al fuego: EUROCLASE A1. Sistema de galces desiguales: las placas encajan entre ellas dejando una entrecalle de 3 mm por donde se inserte la pasta de juntas. Este sistema no utiliza cinta de papel. La pasta de juntas se aplica en las cavidades de las placas y una masilla elástica en los encuentros. Suspendido mediante una estructura simple de perfiles TC60 en acero galvanizado de 0,6 mm de espesor con modulación de 400 mm entre ejes y unidos al forjado mediante varilla roscada galvanizada y horquilla TC60. Incluida la parte proporcional del resto de materiales: tornillería, pasta de juntas, masilla para encuentros perimetrales, fijaciones, junta estanca, etc. Montaje según norma de instalación UNE 102043 y exigencias del CTE.","Techo continuo formado por dos placas SUPREM de 13 mm de espesor compuestas por yeso natural, fibra de vidrio y aditivos inorgánicos que le aportan alta dureza y resistencia mecánica. Incorpora tratamiento hidrófugo, perlita y un aumento en la densidad para conseguir soluciones constructivas que cumplan, altos requisitos frente al fuego y una capacidad reducida de absorción de agua. Reacción al fuego: EUROCLASE A1. Sistema de galces desiguales: las placas encajan entre ellas dejando una entrecalle de 3 mm por donde se inserte la pasta de juntas. Este sistema no utiliza cinta de papel. La pasta de juntas se aplica en las cavidades de las placas y una masilla elástica en los encuentros. Suspendido mediante una estructura simple de perfiles TC60 en acero galvanizado de 0,6 mm de espesor con modulación de 400 mm entre ejes y unidos al forjado mediante varilla roscada galvanizada y horquilla TC60. Incluida la parte proporcional del resto de materiales: tornillería, pasta de juntas, masilla para encuentros perimetrales, fijaciones, junta estanca, etc. Montaje según norma de instalación UNE 102043 y exigencias del CTE."]
[null,null,46030,"1.2.8","TECHO DOBLE / ESTRUCTURA SIMPLE ATT® 60 / 400 2x15",400,60,30,"Techo continuo formado por dos placas BASIC de 15 mm de espesor compuestas por yeso natural, fibra de vidrio y aditivos inorgánicos que le aportan alta dureza y resistencia mecánica. Reacción al fuego: EUROCLASE A1. Sistema de galces desiguales: las placas encajan entre ellas dejando una entrecalle de 3 mm por donde se inserte la pasta de juntas. Este sistema no utiliza cinta de papel. La pasta de juntas se aplica en las cavidades de las placas y una masilla elástica en los encuentros. Suspendido mediante una estructura simple de perfiles TC60 en acero galvanizado de 0,6 mm de espesor con modulación de 400 mm entre ejes y unidos al forjado mediante varilla roscada galvanizada y horquilla TC60. Incluida la parte proporcional del resto de materiales: tornillería, pasta de juntas, masilla para encuentros perimetrales, fijaciones, junta estanca, etc. Montaje según norma de instalación UNE 102043 y exigencias del CTE.","Techo continuo formado por dos placas HIDRO de 15 mm de espesor compuestas por yeso natural, fibra de vidrio y aditivos inorgánicos que le aportan alta dureza y resistencia mecánica. Incorpora tratamiento hidrófugo, disminuyendo así, su capacidad de absorción de agua (menor al 5%). Idónea para proteger las estancias de los efectos adversos de la humedad. Reacción al fuego: EUROCLASE A1. Sistema de galces desiguales: las placas encajan entre ellas dejando una entrecalle de 3 mm por donde se inserte la pasta de juntas. Este sistema no utiliza cinta de papel. La pasta de juntas se aplica en las cavidades de las placas y una masilla elástica en los encuentros. Suspendido mediante una estructura simple de perfiles TC60 en acero galvanizado de 0,6 mm de espesor con modulación de 400 mm entre ejes y unidos al forjado mediante varilla roscada galvanizada y horquilla TC60. Incluida la parte proporcional del resto de materiales: tornillería, pasta de juntas, masilla para encuentros perimetrales, fijaciones, junta estanca, etc. Montaje según norma de instalación UNE 102043 y exigencias del CTE.","Techo continuo formado por dos placas FUEGO de 15 mm de espesor compuestas por yeso natural, fibra de vidrio y aditivos inorgánicos que le aportan alta dureza y resistencia mecánica. Incorpora perlita y un aumento en la densidad que la hace idónea para un excelente comportamiento y resistencia frente al fuego. Reacción al fuego: EUROCLASE A1. Sistema de galces desiguales: las placas encajan entre ellas dejando una entrecalle de 3 mm por donde se inserte la pasta de juntas. Este sistema no utiliza cinta de papel. La pasta de juntas se aplica en las cavidades de las placas y una masilla elástica en los encuentros. Suspendido mediante una estructura simple de perfiles TC60 en acero galvanizado de 0,6 mm de espesor con modulación de 400 mm entre ejes y unidos al forjado mediante varilla roscada galvanizada y horquilla TC60. Incluida la parte proporcional del resto de materiales: tornillería, pasta de juntas, masilla para encuentros perimetrales, fijaciones, junta estanca, etc. Montaje según norma de instalación UNE 102043 y exigencias del CTE.","Techo continuo formado por dos placas RESIST de 15 mm de espesor compuestas por yeso natural, fibra de vidrio y aditivos inorgánicos que le aportan alta dureza y resistencia mecánica. Con mayor cantidad de fibra de vidrio y dosificación modificada, aumenta su densidad, mejorando notablemente la resistencia mecánica. Idónea para lugares con altas exigencias en cuanto a deterioro y desgaste. Reacción al fuego: EUROCLASE A1. Sistema de galces desiguales: las placas encajan entre ellas dejando una entrecalle de 3 mm por donde se inserte la pasta de juntas. Este sistema no utiliza cinta de papel. La pasta de juntas se aplica en las cavidades de las placas y una masilla elástica en los encuentros. Suspendido mediante una estructura simple de perfiles TC60 en acero galvanizado de 0,6 mm de espesor con modulación de 400 mm entre ejes y unidos al forjado mediante varilla roscada galvanizada y horquilla TC60. Incluida la parte proporcional del resto de materiales: tornillería, pasta de juntas, masilla para encuentros perimetrales, fijaciones, junta estanca, etc. Montaje según norma de instalación UNE 102043 y exigencias del CTE.","Techo continuo formado por dos placas HIDROPLUS de 15 mm de espesor compuestas por yeso natural, fibra de vidrio y aditivos inorgánicos que le aportan alta dureza y resistencia mecánica. Incorpora tratamiento hidrófugo y un aumento en su densidad, características claves para una elevada resistencia a la humedad (absorción de agua menor al 3%) y una gran resistencia mecánica. Idónea para zonas de intemperie. Reacción al fuego: EUROCLASE A1. Sistema de galces desiguales: las placas encajan entre ellas dejando una entrecalle de 3 mm por donde se inserte la pasta de juntas. Este sistema no utiliza cinta de papel. La pasta de juntas se aplica en las cavidades de las placas y una masilla elástica en los encuentros. Suspendido mediante una estructura simple de perfiles TC60 en acero galvanizado de 0,6 mm de espesor con modulación de 400 mm entre ejes y unidos al forjado mediante varilla roscada galvanizada y horquilla TC60. Incluida la parte proporcional del resto de materiales: tornillería, pasta de juntas, masilla para encuentros perimetrales, fijaciones, junta estanca, etc. Montaje según norma de instalación UNE 102043 y exigencias del CTE.","Techo continuo formado por dos placas SUPREM de 15 mm de espesor compuestas por yeso natural, fibra de vidrio y aditivos inorgánicos que le aportan alta dureza y resistencia mecánica. Incorpora tratamiento hidrófugo, perlita y un aumento en la densidad para conseguir soluciones constructivas que cumplan, altos requisitos frente al fuego y una capacidad reducida de absorción de agua. Reacción al fuego: EUROCLASE A1. Sistema de galces desiguales: las placas encajan entre ellas dejando una entrecalle de 3 mm por donde se inserte la pasta de juntas. Este sistema no utiliza cinta de papel. La pasta de juntas se aplica en las cavidades de las placas y una masilla elástica en los encuentros. Suspendido mediante una estructura simple de perfiles TC60 en acero galvanizado de 0,6 mm de espesor con modulación de 400 mm entre ejes y unidos al forjado mediante varilla roscada galvanizada y horquilla TC60. Incluida la parte proporcional del resto de materiales: tornillería, pasta de juntas, masilla para encuentros perimetrales, fijaciones, junta estanca, etc. Montaje según norma de instalación UNE 102043 y exigencias del CTE."]
[null,null,46040,"1.2.9","TECHO DOBLE / ESTRUCTURA SIMPLE ATT® 60 / 400 2x20",400,60,40,"Techo continuo formado por dos placas BASIC de 20 mm de espesor compuestas por yeso natural, fibra de vidrio y aditivos inorgánicos que le aportan alta dureza y resistencia mecánica. Reacción al fuego: EUROCLASE A1. Sistema de galces desiguales: las placas encajan entre ellas dejando una entrecalle de 3 mm por donde se inserte la pasta de juntas. Este sistema no utiliza cinta de papel. La pasta de juntas se aplica en las cavidades de las placas y una masilla elástica en los encuentros. Suspendido mediante una estructura simple de perfiles TC60 en acero galvanizado de 0,6 mm de espesor con modulación de 400 mm entre ejes y unidos al forjado mediante varilla roscada galvanizada y horquilla TC60. Incluida la parte proporcional del resto de materiales: tornillería, pasta de juntas, masilla para encuentros perimetrales, fijaciones, junta estanca, etc. Montaje según norma de instalación UNE 102043 y exigencias del CTE.","Techo continuo formado por dos placas HIDRO de 20 mm de espesor compuestas por yeso natural, fibra de vidrio y aditivos inorgánicos que le aportan alta dureza y resistencia mecánica. Incorpora tratamiento hidrófugo, disminuyendo así, su capacidad de absorción de agua (menor al 5%). Idónea para proteger las estancias de los efectos adversos de la humedad. Reacción al fuego: EUROCLASE A1. Sistema de galces desiguales: las placas encajan entre ellas dejando una entrecalle de 3 mm por donde se inserte la pasta de juntas. Este sistema no utiliza cinta de papel. La pasta de juntas se aplica en las cavidades de las placas y una masilla elástica en los encuentros. Suspendido mediante una estructura simple de perfiles TC60 en acero galvanizado de 0,6 mm de espesor con modulación de 400 mm entre ejes y unidos al forjado mediante varilla roscada galvanizada y horquilla TC60. Incluida la parte proporcional del resto de materiales: tornillería, pasta de juntas, masilla para encuentros perimetrales, fijaciones, junta estanca, etc. Montaje según norma de instalación UNE 102043 y exigencias del CTE.","Techo continuo formado por dos placas FUEGO de 20 mm de espesor compuestas por yeso natural, fibra de vidrio y aditivos inorgánicos que le aportan alta dureza y resistencia mecánica. Incorpora perlita y un aumento en la densidad que la hace idónea para un excelente comportamiento y resistencia frente al fuego. Reacción al fuego: EUROCLASE A1. Sistema de galces desiguales: las placas encajan entre ellas dejando una entrecalle de 3 mm por donde se inserte la pasta de juntas. Este sistema no utiliza cinta de papel. La pasta de juntas se aplica en las cavidades de las placas y una masilla elástica en los encuentros. Suspendido mediante una estructura simple de perfiles TC60 en acero galvanizado de 0,6 mm de espesor con modulación de 400 mm entre ejes y unidos al forjado mediante varilla roscada galvanizada y horquilla TC60. Incluida la parte proporcional del resto de materiales: tornillería, pasta de juntas, masilla para encuentros perimetrales, fijaciones, junta estanca, etc. Montaje según norma de instalación UNE 102043 y exigencias del CTE.","Techo continuo formado por dos placas RESIST de 20 mm de espesor compuestas por yeso natural, fibra de vidrio y aditivos inorgánicos que le aportan alta dureza y resistencia mecánica. Con mayor cantidad de fibra de vidrio y dosificación modificada, aumenta su densidad, mejorando notablemente la resistencia mecánica. Idónea para lugares con altas exigencias en cuanto a deterioro y desgaste. Reacción al fuego: EUROCLASE A1. Sistema de galces desiguales: las placas encajan entre ellas dejando una entrecalle de 3 mm por donde se inserte la pasta de juntas. Este sistema no utiliza cinta de papel. La pasta de juntas se aplica en las cavidades de las placas y una masilla elástica en los encuentros. Suspendido mediante una estructura simple de perfiles TC60 en acero galvanizado de 0,6 mm de espesor con modulación de 400 mm entre ejes y unidos al forjado mediante varilla roscada galvanizada y horquilla TC60. Incluida la parte proporcional del resto de materiales: tornillería, pasta de juntas, masilla para encuentros perimetrales, fijaciones, junta estanca, etc. Montaje según norma de instalación UNE 102043 y exigencias del CTE.","Techo continuo formado por dos placas HIDROPLUS de 20 mm de espesor compuestas por yeso natural, fibra de vidrio y aditivos inorgánicos que le aportan alta dureza y resistencia mecánica. Incorpora tratamiento hidrófugo y un aumento en su densidad, características claves para una elevada resistencia a la humedad (absorción de agua menor al 3%) y una gran resistencia mecánica. Idónea para zonas de intemperie. Reacción al fuego: EUROCLASE A1. Sistema de galces desiguales: las placas encajan entre ellas dejando una entrecalle de 3 mm por donde se inserte la pasta de juntas. Este sistema no utiliza cinta de papel. La pasta de juntas se aplica en las cavidades de las placas y una masilla elástica en los encuentros. Suspendido mediante una estructura simple de perfiles TC60 en acero galvanizado de 0,6 mm de espesor con modulación de 400 mm entre ejes y unidos al forjado mediante varilla roscada galvanizada y horquilla TC60. Incluida la parte proporcional del resto de materiales: tornillería, pasta de juntas, masilla para encuentros perimetrales, fijaciones, junta estanca, etc. Montaje según norma de instalación UNE 102043 y exigencias del CTE.","Techo continuo formado por dos placas SUPREM de 20 mm de espesor compuestas por yeso natural, fibra de vidrio y aditivos inorgánicos que le aportan alta dureza y resistencia mecánica. Incorpora tratamiento hidrófugo, perlita y un aumento en la densidad para conseguir soluciones constructivas que cumplan, altos requisitos frente al fuego y una capacidad reducida de absorción de agua. Reacción al fuego: EUROCLASE A1. Sistema de galces desiguales: las placas encajan entre ellas dejando una entrecalle de 3 mm por donde se inserte la pasta de juntas. Este sistema no utiliza cinta de papel. La pasta de juntas se aplica en las cavidades de las placas y una masilla elástica en los encuentros. Suspendido mediante una estructura simple de perfiles TC60 en acero galvanizado de 0,6 mm de espesor con modulación de 400 mm entre ejes y unidos al forjado mediante varilla roscada galvanizada y horquilla TC60. Incluida la parte proporcional del resto de materiales: tornillería, pasta de juntas, masilla para encuentros perimetrales, fijaciones, junta estanca, etc. Montaje según norma de instalación UNE 102043 y exigencias del CTE."]
[null,null,66026,"1.2.10","TECHO DOBLE / ESTRUCTURA SIMPLE ATT® 60 / 600 2x13 ",600,60,26,"Techo continuo formado por dos placas BASIC de 13 mm de espesor compuestas por yeso natural, fibra de vidrio y aditivos inorgánicos que le aportan alta dureza y resistencia mecánica. Reacción al fuego: EUROCLASE A1. Sistema de galces desiguales: las placas encajan entre ellas dejando una entrecalle de 3 mm por donde se inserte la pasta de juntas. Este sistema no utiliza cinta de papel. La pasta de juntas se aplica en las cavidades de las placas y una masilla elástica en los encuentros. Suspendido mediante una estructura simple de perfiles TC60 en acero galvanizado de 0,6 mm de espesor con modulación de 600 mm entre ejes y unidos al forjado mediante varilla roscada galvanizada y horquilla TC60. Incluida la parte proporcional del resto de materiales: tornillería, pasta de juntas, masilla para encuentros perimetrales, fijaciones, junta estanca, etc. Montaje según norma de instalación UNE 102043 y exigencias del CTE.","Techo continuo formado por dos placas HIDRO de 13 mm de espesor compuestas por yeso natural, fibra de vidrio y aditivos inorgánicos que le aportan alta dureza y resistencia mecánica. Incorpora tratamiento hidrófugo, disminuyendo así, su capacidad de absorción de agua (menor al 5%). Idónea para proteger las estancias de los efectos adversos de la humedad. Reacción al fuego: EUROCLASE A1. Sistema de galces desiguales: las placas encajan entre ellas dejando una entrecalle de 3 mm por donde se inserte la pasta de juntas. Este sistema no utiliza cinta de papel. La pasta de juntas se aplica en las cavidades de las placas y una masilla elástica en los encuentros. Suspendido mediante una estructura simple de perfiles TC60 en acero galvanizado de 0,6 mm de espesor con modulación de 600 mm entre ejes y unidos al forjado mediante varilla roscada galvanizada y horquilla TC60. Incluida la parte proporcional del resto de materiales: tornillería, pasta de juntas, masilla para encuentros perimetrales, fijaciones, junta estanca, etc. Montaje según norma de instalación UNE 102043 y exigencias del CTE.","Techo continuo formado por dos placas FUEGO de 13 mm de espesor compuestas por yeso natural, fibra de vidrio y aditivos inorgánicos que le aportan alta dureza y resistencia mecánica. Incorpora perlita y un aumento en la densidad que la hace idónea para un excelente comportamiento y resistencia frente al fuego. Reacción al fuego: EUROCLASE A1. Sistema de galces desiguales: las placas encajan entre ellas dejando una entrecalle de 3 mm por donde se inserte la pasta de juntas. Este sistema no utiliza cinta de papel. La pasta de juntas se aplica en las cavidades de las placas y una masilla elástica en los encuentros. Suspendido mediante una estructura simple de perfiles TC60 en acero galvanizado de 0,6 mm de espesor con modulación de 600 mm entre ejes y unidos al forjado mediante varilla roscada galvanizada y horquilla TC60. Incluida la parte proporcional del resto de materiales: tornillería, pasta de juntas, masilla para encuentros perimetrales, fijaciones, junta estanca, etc. Montaje según norma de instalación UNE 102043 y exigencias del CTE.","Techo continuo formado por dos placas RESIST de 13 mm de espesor compuestas por yeso natural, fibra de vidrio y aditivos inorgánicos que le aportan alta dureza y resistencia mecánica. Con mayor cantidad de fibra de vidrio y dosificación modificada, aumenta su densidad, mejorando notablemente la resistencia mecánica. Idónea para lugares con altas exigencias en cuanto a deterioro y desgaste. Reacción al fuego: EUROCLASE A1. Sistema de galces desiguales: las placas encajan entre ellas dejando una entrecalle de 3 mm por donde se inserte la pasta de juntas. Este sistema no utiliza cinta de papel. La pasta de juntas se aplica en las cavidades de las placas y una masilla elástica en los encuentros. Suspendido mediante una estructura simple de perfiles TC60 en acero galvanizado de 0,6 mm de espesor con modulación de 600 mm entre ejes y unidos al forjado mediante varilla roscada galvanizada y horquilla TC60. Incluida la parte proporcional del resto de materiales: tornillería, pasta de juntas, masilla para encuentros perimetrales, fijaciones, junta estanca, etc. Montaje según norma de instalación UNE 102043 y exigencias del CTE.","Techo continuo formado por dos placas HIDROPLUS de 13 mm de espesor compuestas por yeso natural, fibra de vidrio y aditivos inorgánicos que le aportan alta dureza y resistencia mecánica. Incorpora tratamiento hidrófugo y un aumento en su densidad, características claves para una elevada resistencia a la humedad (absorción de agua menor al 3%) y una gran resistencia mecánica. Idónea para zonas de intemperie. Reacción al fuego: EUROCLASE A1. Sistema de galces desiguales: las placas encajan entre ellas dejando una entrecalle de 3 mm por donde se inserte la pasta de juntas. Este sistema no utiliza cinta de papel. La pasta de juntas se aplica en las cavidades de las placas y una masilla elástica en los encuentros. Suspendido mediante una estructura simple de perfiles TC60 en acero galvanizado de 0,6 mm de espesor con modulación de 600 mm entre ejes y unidos al forjado mediante varilla roscada galvanizada y horquilla TC60. Incluida la parte proporcional del resto de materiales: tornillería, pasta de juntas, masilla para encuentros perimetrales, fijaciones, junta estanca, etc. Montaje según norma de instalación UNE 102043 y exigencias del CTE.","Techo continuo formado por dos placas SUPREM de 13 mm de espesor compuestas por yeso natural, fibra de vidrio y aditivos inorgánicos que le aportan alta dureza y resistencia mecánica. Incorpora tratamiento hidrófugo, perlita y un aumento en la densidad para conseguir soluciones constructivas que cumplan, altos requisitos frente al fuego y una capacidad reducida de absorción de agua. Reacción al fuego: EUROCLASE A1. Sistema de galces desiguales: las placas encajan entre ellas dejando una entrecalle de 3 mm por donde se inserte la pasta de juntas. Este sistema no utiliza cinta de papel. La pasta de juntas se aplica en las cavidades de las placas y una masilla elástica en los encuentros. Suspendido mediante una estructura simple de perfiles TC60 en acero galvanizado de 0,6 mm de espesor con modulación de 600 mm entre ejes y unidos al forjado mediante varilla roscada galvanizada y horquilla TC60. Incluida la parte proporcional del resto de materiales: tornillería, pasta de juntas, masilla para encuentros perimetrales, fijaciones, junta estanca, etc. Montaje según norma de instalación UNE 102043 y exigencias del CTE."]
[null,null,66030,"1.2.11","TECHO DOBLE / ESTRUCTURA SIMPLE ATT® 60 / 600 2x15",600,60,30,"Techo continuo formado por dos placas BASIC de 15 mm de espesor compuestas por yeso natural, fibra de vidrio y aditivos inorgánicos que le aportan alta dureza y resistencia mecánica. Reacción al fuego: EUROCLASE A1. Sistema de galces desiguales: las placas encajan entre ellas dejando una entrecalle de 3 mm por donde se inserte la pasta de juntas. Este sistema no utiliza cinta de papel. La pasta de juntas se aplica en las cavidades de las placas y una masilla elástica en los encuentros. Suspendido mediante una estructura simple de perfiles TC60 en acero galvanizado de 0,6 mm de espesor con modulación de 600 mm entre ejes y unidos al forjado mediante varilla roscada galvanizada y horquilla TC60. Incluida la parte proporcional del resto de materiales: tornillería, pasta de juntas, masilla para encuentros perimetrales, fijaciones, junta estanca, etc. Montaje según norma de instalación UNE 102043 y exigencias del CTE.","Techo continuo formado por dos placas HIDRO de 15 mm de espesor compuestas por yeso natural, fibra de vidrio y aditivos inorgánicos que le aportan alta dureza y resistencia mecánica. Incorpora tratamiento hidrófugo, disminuyendo así, su capacidad de absorción de agua (menor al 5%). Idónea para proteger las estancias de los efectos adversos de la humedad. Reacción al fuego: EUROCLASE A1. Sistema de galces desiguales: las placas encajan entre ellas dejando una entrecalle de 3 mm por donde se inserte la pasta de juntas. Este sistema no utiliza cinta de papel. La pasta de juntas se aplica en las cavidades de las placas y una masilla elástica en los encuentros. Suspendido mediante una estructura simple de perfiles TC60 en acero galvanizado de 0,6 mm de espesor con modulación de 600 mm entre ejes y unidos al forjado mediante varilla roscada galvanizada y horquilla TC60. Incluida la parte proporcional del resto de materiales: tornillería, pasta de juntas, masilla para encuentros perimetrales, fijaciones, junta estanca, etc. Montaje según norma de instalación UNE 102043 y exigencias del CTE.","Techo continuo formado por dos placas FUEGO de 15 mm de espesor compuestas por yeso natural, fibra de vidrio y aditivos inorgánicos que le aportan alta dureza y resistencia mecánica. Incorpora perlita y un aumento en la densidad que la hace idónea para un excelente comportamiento y resistencia frente al fuego. Reacción al fuego: EUROCLASE A1. Sistema de galces desiguales: las placas encajan entre ellas dejando una entrecalle de 3 mm por donde se inserte la pasta de juntas. Este sistema no utiliza cinta de papel. La pasta de juntas se aplica en las cavidades de las placas y una masilla elástica en los encuentros. Suspendido mediante una estructura simple de perfiles TC60 en acero galvanizado de 0,6 mm de espesor con modulación de 600 mm entre ejes y unidos al forjado mediante varilla roscada galvanizada y horquilla TC60. Incluida la parte proporcional del resto de materiales: tornillería, pasta de juntas, masilla para encuentros perimetrales, fijaciones, junta estanca, etc. Montaje según norma de instalación UNE 102043 y exigencias del CTE.","Techo continuo formado por dos placas RESIST de 15 mm de espesor compuestas por yeso natural, fibra de vidrio y aditivos inorgánicos que le aportan alta dureza y resistencia mecánica. Con mayor cantidad de fibra de vidrio y dosificación modificada, aumenta su densidad, mejorando notablemente la resistencia mecánica. Idónea para lugares con altas exigencias en cuanto a deterioro y desgaste. Reacción al fuego: EUROCLASE A1. Sistema de galces desiguales: las placas encajan entre ellas dejando una entrecalle de 3 mm por donde se inserte la pasta de juntas. Este sistema no utiliza cinta de papel. La pasta de juntas se aplica en las cavidades de las placas y una masilla elástica en los encuentros. Suspendido mediante una estructura simple de perfiles TC60 en acero galvanizado de 0,6 mm de espesor con modulación de 600 mm entre ejes y unidos al forjado mediante varilla roscada galvanizada y horquilla TC60. Incluida la parte proporcional del resto de materiales: tornillería, pasta de juntas, masilla para encuentros perimetrales, fijaciones, junta estanca, etc. Montaje según norma de instalación UNE 102043 y exigencias del CTE.","Techo continuo formado por dos placas HIDROPLUS de 15 mm de espesor compuestas por yeso natural, fibra de vidrio y aditivos inorgánicos que le aportan alta dureza y resistencia mecánica. Incorpora tratamiento hidrófugo y un aumento en su densidad, características claves para una elevada resistencia a la humedad (absorción de agua menor al 3%) y una gran resistencia mecánica. Idónea para zonas de intemperie. Reacción al fuego: EUROCLASE A1. Sistema de galces desiguales: las placas encajan entre ellas dejando una entrecalle de 3 mm por donde se inserte la pasta de juntas. Este sistema no utiliza cinta de papel. La pasta de juntas se aplica en las cavidades de las placas y una masilla elástica en los encuentros. Suspendido mediante una estructura simple de perfiles TC60 en acero galvanizado de 0,6 mm de espesor con modulación de 600 mm entre ejes y unidos al forjado mediante varilla roscada galvanizada y horquilla TC60. Incluida la parte proporcional del resto de materiales: tornillería, pasta de juntas, masilla para encuentros perimetrales, fijaciones, junta estanca, etc. Montaje según norma de instalación UNE 102043 y exigencias del CTE.","Techo continuo formado por dos placas SUPREM de 15 mm de espesor compuestas por yeso natural, fibra de vidrio y aditivos inorgánicos que le aportan alta dureza y resistencia mecánica. Incorpora tratamiento hidrófugo, perlita y un aumento en la densidad para conseguir soluciones constructivas que cumplan, altos requisitos frente al fuego y una capacidad reducida de absorción de agua. Reacción al fuego: EUROCLASE A1. Sistema de galces desiguales: las placas encajan entre ellas dejando una entrecalle de 3 mm por donde se inserte la pasta de juntas. Este sistema no utiliza cinta de papel. La pasta de juntas se aplica en las cavidades de las placas y una masilla elástica en los encuentros. Suspendido mediante una estructura simple de perfiles TC60 en acero galvanizado de 0,6 mm de espesor con modulación de 600 mm entre ejes y unidos al forjado mediante varilla roscada galvanizada y horquilla TC60. Incluida la parte proporcional del resto de materiales: tornillería, pasta de juntas, masilla para encuentros perimetrales, fijaciones, junta estanca, etc. Montaje según norma de instalación UNE 102043 y exigencias del CTE."]
[null,null,66040,"1.2.12","TECHO DOBLE / ESTRUCTURA SIMPLE ATT® 60 / 600 2x20",600,60,40,"Techo continuo formado por dos placas BASIC de 20 mm de espesor compuestas por yeso natural, fibra de vidrio y aditivos inorgánicos que le aportan alta dureza y resistencia mecánica. Reacción al fuego: EUROCLASE A1. Sistema de galces desiguales: las placas encajan entre ellas dejando una entrecalle de 3 mm por donde se inserte la pasta de juntas. Este sistema no utiliza cinta de papel. La pasta de juntas se aplica en las cavidades de las placas y una masilla elástica en los encuentros. Suspendido mediante una estructura simple de perfiles TC60 en acero galvanizado de 0,6 mm de espesor con modulación de 600 mm entre ejes y unidos al forjado mediante varilla roscada galvanizada y horquilla TC60. Incluida la parte proporcional del resto de materiales: tornillería, pasta de juntas, masilla para encuentros perimetrales, fijaciones, junta estanca, etc. Montaje según norma de instalación UNE 102043 y exigencias del CTE.","Techo continuo formado por dos placas HIDRO de 20 mm de espesor compuestas por yeso natural, fibra de vidrio y aditivos inorgánicos que le aportan alta dureza y resistencia mecánica. Incorpora tratamiento hidrófugo, disminuyendo así, su capacidad de absorción de agua (menor al 5%). Idónea para proteger las estancias de los efectos adversos de la humedad. Reacción al fuego: EUROCLASE A1. Sistema de galces desiguales: las placas encajan entre ellas dejando una entrecalle de 3 mm por donde se inserte la pasta de juntas. Este sistema no utiliza cinta de papel. La pasta de juntas se aplica en las cavidades de las placas y una masilla elástica en los encuentros. Suspendido mediante una estructura simple de perfiles TC60 en acero galvanizado de 0,6 mm de espesor con modulación de 600 mm entre ejes y unidos al forjado mediante varilla roscada galvanizada y horquilla TC60. Incluida la parte proporcional del resto de materiales: tornillería, pasta de juntas, masilla para encuentros perimetrales, fijaciones, junta estanca, etc. Montaje según norma de instalación UNE 102043 y exigencias del CTE.","Techo continuo formado por dos placas FUEGO de 20 mm de espesor compuestas por yeso natural, fibra de vidrio y aditivos inorgánicos que le aportan alta dureza y resistencia mecánica. Incorpora perlita y un aumento en la densidad que la hace idónea para un excelente comportamiento y resistencia frente al fuego. Reacción al fuego: EUROCLASE A1. Sistema de galces desiguales: las placas encajan entre ellas dejando una entrecalle de 3 mm por donde se inserte la pasta de juntas. Este sistema no utiliza cinta de papel. La pasta de juntas se aplica en las cavidades de las placas y una masilla elástica en los encuentros. Suspendido mediante una estructura simple de perfiles TC60 en acero galvanizado de 0,6 mm de espesor con modulación de 600 mm entre ejes y unidos al forjado mediante varilla roscada galvanizada y horquilla TC60. Incluida la parte proporcional del resto de materiales: tornillería, pasta de juntas, masilla para encuentros perimetrales, fijaciones, junta estanca, etc. Montaje según norma de instalación UNE 102043 y exigencias del CTE.","Techo continuo formado por dos placas RESIST de 20 mm de espesor compuestas por yeso natural, fibra de vidrio y aditivos inorgánicos que le aportan alta dureza y resistencia mecánica. Con mayor cantidad de fibra de vidrio y dosificación modificada, aumenta su densidad, mejorando notablemente la resistencia mecánica. Idónea para lugares con altas exigencias en cuanto a deterioro y desgaste. Reacción al fuego: EUROCLASE A1. Sistema de galces desiguales: las placas encajan entre ellas dejando una entrecalle de 3 mm por donde se inserte la pasta de juntas. Este sistema no utiliza cinta de papel. La pasta de juntas se aplica en las cavidades de las placas y una masilla elástica en los encuentros. Suspendido mediante una estructura simple de perfiles TC60 en acero galvanizado de 0,6 mm de espesor con modulación de 600 mm entre ejes y unidos al forjado mediante varilla roscada galvanizada y horquilla TC60. Incluida la parte proporcional del resto de materiales: tornillería, pasta de juntas, masilla para encuentros perimetrales, fijaciones, junta estanca, etc. Montaje según norma de instalación UNE 102043 y exigencias del CTE.","Techo continuo formado por dos placas HIDROPLUS de 20 mm de espesor compuestas por yeso natural, fibra de vidrio y aditivos inorgánicos que le aportan alta dureza y resistencia mecánica. Incorpora tratamiento hidrófugo y un aumento en su densidad, características claves para una elevada resistencia a la humedad (absorción de agua menor al 3%) y una gran resistencia mecánica. Idónea para zonas de intemperie. Reacción al fuego: EUROCLASE A1. Sistema de galces desiguales: las placas encajan entre ellas dejando una entrecalle de 3 mm por donde se inserte la pasta de juntas. Este sistema no utiliza cinta de papel. La pasta de juntas se aplica en las cavidades de las placas y una masilla elástica en los encuentros. Suspendido mediante una estructura simple de perfiles TC60 en acero galvanizado de 0,6 mm de espesor con modulación de 600 mm entre ejes y unidos al forjado mediante varilla roscada galvanizada y horquilla TC60. Incluida la parte proporcional del resto de materiales: tornillería, pasta de juntas, masilla para encuentros perimetrales, fijaciones, junta estanca, etc. Montaje según norma de instalación UNE 102043 y exigencias del CTE.","Techo continuo formado por dos placas SUPREM de 20 mm de espesor compuestas por yeso natural, fibra de vidrio y aditivos inorgánicos que le aportan alta dureza y resistencia mecánica. Incorpora tratamiento hidrófugo, perlita y un aumento en la densidad para conseguir soluciones constructivas que cumplan, altos requisitos frente al fuego y una capacidad reducida de absorción de agua. Reacción al fuego: EUROCLASE A1. Sistema de galces desiguales: las placas encajan entre ellas dejando una entrecalle de 3 mm por donde se inserte la pasta de juntas. Este sistema no utiliza cinta de papel. La pasta de juntas se aplica en las cavidades de las placas y una masilla elástica en los encuentros. Suspendido mediante una estructura simple de perfiles TC60 en acero galvanizado de 0,6 mm de espesor con modulación de 600 mm entre ejes y unidos al forjado mediante varilla roscada galvanizada y horquilla TC60. Incluida la parte proporcional del resto de materiales: tornillería, pasta de juntas, masilla para encuentros perimetrales, fijaciones, junta estanca, etc. Montaje según norma de instalación UNE 102043 y exigencias del CTE."]

{"sheet":"Estructura simple una placa","index":6,"n_rows":149,"n_cols":60,"rows_kept":149,"cut":false,"hidden":false,"merged":[[37,38,38,42],[37,14,37,16],[47,9,48,9],[47,10,48,10],[47,8,48,8],[6,2,6,51],[25,28,25,29],[25,24,25,27],[25,20,25,21],[25,56,26,56],[25,52,25,55],[25,12,25,14],[25,15,25,16],[25,17,25,19],[25,36,25,37],[25,38,25,39]]}
[null,null,"                     RENDIMIENTOS"]
[null,null,"                     PEDIDO MATERIALES"]
[null,null,"                     PRESUPUESTO"]
[null,null,"                     LISTA DE MATERIALES"]
[null,null,null,{"$f":"VLOOKUP(BE36,'Índice sistemas'!C5:E18,3,FALSE)","v":"TECHO SIMPLE / ESTRUCTURA SIMPLE ATT® 47 / 600 1x13 "},null,null,null,null,null,null,null,null,{"$f":"$D$5","v":"TECHO SIMPLE / ESTRUCTURA SIMPLE ATT® 47 / 600 1x13 "},null,null,null,null,null,null,null,{"$f":"$D$5","v":"TECHO SIMPLE / ESTRUCTURA SIMPLE ATT® 47 / 600 1x13 "},null,null,null,null,null,null,null,{"$f":"$D$5","v":"TECHO SIMPLE / ESTRUCTURA SIMPLE ATT® 47 / 600 1x13 "},null,null,null,null,null,null,null,{"$f":"AC5","v":"TECHO SIMPLE / ESTRUCTURA SIMPLE ATT® 47 / 600 1x13 "},null,null,null,null,null,null,null,{"$f":"AK5","v":"TECHO SIMPLE / ESTRUCTURA SIMPLE ATT® 47 / 600 1x13 "}]
[]
[null,null,{"$f":"VLOOKUP(BE36,'Índice sistemas'!C:N,(BE29+6),FALSE)","v":"Techo continuo formado por una placa BASIC de 13 mm de espesor compuesta por yeso natural, fibra de vidrio y aditivos inorgánicos que le aportan alta dureza y resistencia mecánica. Reacción al fuego: EUROCLASE A1. Sistema de galces desiguales: las placas encajan entre ellas dejando una entrecalle de 3 mm por donde se inserte la pasta de juntas. Este sistema no utiliza cinta de papel. La pasta de juntas se aplica en las cavidades de las placas y una masilla elástica en los encuentros. Suspendido mediante una estructura simple de perfiles TC47 en acero galvanizado de 0,6 mm de espesor con modulación de 600 mm entre ejes y unidos al forjado mediante varilla roscada galvanizada y horquilla TC47. Incluida la parte proporcional del resto de materiales: tornillería, pasta de juntas, masilla para encuentros perimetrales, fijaciones, junta estanca, etc. Montaje según norma de instalación UNE 102043 y exigencias del CTE."}]
[{"$f":"Datos!A15","v":"clientes@elalteron.com"},null,{"$f":"IF(B10=B106,C106,IF(B10=B107,C107,C108))","v":"Totalmente finalizado con nivel de acabado Q3"}]
["CODIFICACIÓN MANO OBRA"]
[{"$f":"IF(B10=\"Q2\",2,IF(B10=\"Q3\",3,4))","v":3},"Q3","INTRODUCIR ACABADO DESEADO"]
[]
[{"$f":"B12/10","v":60},600,"INTRODUCIR MODULACIÓN "]
[]
[{"$f":"SUM(A10:A13)","v":63},1,"INTRODUCIR CANTIDAD m2"]
["PESTAÑA DATOS"]
[{"$f":"Datos!A6","v":30}]
[{"$f":"Datos!A7","v":30}]
[{"$f":"Datos!A8","v":30}]
[{"$f":"Datos!A9","v":30},null,"Material calculado para ",null,null,null,null,null,null,null,null,null,null,null,null,null,null,null,null,null,{"$f":"B14","v":1},"m2",null,null,null,null,null,null,{"$f":"B14","v":1},"m2"]
[{"$f":"Datos!A10","v":30}]
[{"$f":"Datos!A11","v":20}]
[{"$f":"Datos!A12","v":"pedidos@elalteron.com"}]
[{"$f":"Datos!A13","v":"repuesto@elalteron.com"},null,null,null,null,null,null,null,null,null,null,null,null,null,null,null,null,null,null,null,null,null,null,null,null,null,null,null,null,null,null,null,null,null,null,null,null,null,null,null,null,null,null,null,"Precio",{"$f":"AS5","v":"TECHO SIMPLE / ESTRUCTURA SIMPLE ATT® 47 / 600 1x13 "},null,null,null,null,{"$f":"J48","v":20.624399999999998},"€/m2"]
[{"$f":"Datos!A14","v":"compras@elalteron.com"},null,null,null,null,null,null,null,null,null,null,null,null,null,null,null,null,null,null,null,null,null,null,null,null,null,null,null,null,null,null,null,null,null,null,null,null,null,null,null,null,null,null,null,"Cantidad de sistema",null,null,null,null,null,{"$f":"B14","v":1},"m2"]
[{"$f":"IF(B10=\"Q2\",0,'Estructura simple una placa'!A18)","v":30},null,null,null,null,null,null,null,null,null,null,null,null,null,null,null,null,null,null,null,null,null,null,null,null,null,null,null,null,null,null,null,null,null,null,null,null,null,null,null,null,null,null,null,"TOTAL",null,null,null,null,null,{"$f":"AY23*AY24","v":20.624399999999998},"€"]
["MULTIPLICADOR",null,null,"UD de MEDIDA","RENDIMIENTO","CANTIDAD","CANTIDAD",null,"DESCUENTO","REPERCUSIÓN"," TOTAL",null,"TOTAL PIEZAS",null,null,"DESGLOSE",null,"REDONDEADO ",null,null,"TOTAL PIEZAS",null,"PRECIO","DESCUENTO","DESGLOSE EN PIEZAS",null,null,null,"REDONDEADO ",null,"PRECIO","DESCUENTO",null,null,null,null,"TOTAL PIEZAS",null,"DESGLOSE",null,null,null,null,null,null,null,null,null,null,null,null,null,"DATOS DE LISTADO Y RENDIMIENTOS",null,null,null,"SISTEMA"]
["TRASDOSADO","CÓDIGO","MATERIALES","UD","UD/m2","UD","€ / UD",null,"%","€/m2","€",null,"CANTIDAD","€/UD","UD","PAQ/PAL","PIEZAS","CANTIDAD","€","UD","CANTIDAD","UD","€/UD","%",null,null,null,null,"CANTIDAD","UD","€/UD","%",null,null,null,null,"CANTIDAD","UD","PAQ/PAL","PIEZAS",null,null,null,null,null,null,null,null,null,null,null,null,"ALTO","LARGO","UNI.CAJA","CAJAS/PALE",null,"Id tipo placa ","Id columnas"]
[1,{"$f":"VLOOKUP(C28,Listado!$B$4:$D$31,2,FALSE)","v":"040113"},"PLACA ATT BASIC 13X600X1200 (78)","m2",{"$f":"A28*Rendimientos!E5","v":1.02},{"$f":"$B$14*E28","v":1.02},{"$f":"VLOOKUP(B28,Listado!A:I,9,FALSE)","v":6.36},1,{"$f":"H28*A16","v":30},{"$f":"ROUND(E28*G28*(1-I28/100),2)","v":4.54},{"$f":"J28*$B$14","v":4.54},null,{"$f":"ROUNDUP(($B$14*E28)/(BA28*BB28),0)","v":2},{"$f":"ROUND(VLOOKUP(B28,Listado!A:I,9,FALSE)*(BA28*BB28),2)","v":4.58},"PLACAS",{"$f":"INT(M28/($BC$28*$BD$28))","v":0},{"$f":"M28-P28*$BC$28*$BD$28","v":2},{"$f":"ROUNDUP(($B$14*E28)/(BA28*BB28*BC28*BD28),0)","v":1},{"$f":"$N$28*R28*$BD$28","v":357.24},"PALETS",{"$f":"M28","v":2},"PLACAS",{"$f":"N28","v":4.58},{"$f":"I28","v":30},{"$f":"INT(U28/($BC$28*$BD$28))","v":0},"PALETS",{"$f":"U28-Y28*$BC$28*$BD$28","v":2},"PLACAS",{"$f":"R28","v":1},{"$f":"T28","v":"PALETS"},{"$f":"$N$28*$BD$28","v":357.24},{"$f":"X28","v":30},null,null,null,null,{"$f":"U28","v":2},"PLACAS",{"$f":"INT(AK28/($BC$28*$BD$28))","v":0},{"$f":"AK28-AM28*$BC$28*$BD$28","v":2},null,null,null,null,null,null,null,null,null,null,null,null,{"$f":"VLOOKUP($B28,Listado!A:I,5,FALSE)","v":0.6},{"$f":"VLOOKUP($B28,Listado!A:I,6,FALSE)","v":1.2},{"$f":"VLOOKUP($B28,Listado!A:I,7,FALSE)","v":1},{"$f":"VLOOKUP($B28,Listado!A:I,8,FALSE)","v":78},{"$f":"RIGHT(B28,2)","v":"13"},"en código alt","hoja \"Sistema\"","Tipo"]
[1,{"$f":"IF(BE30=\"47\",\"480922001\",\"480922004\")","v":"480922001"},{"$f":"VLOOKUP(B29,Listado!$A$5:$B$49,2,FALSE)","v":"HORQUILLA TC47 (100)"},"ud",{"$f":"IF(B12=600,Rendimientos!E51,Rendimientos!E50)","v":2.1},{"$f":"$B$14*E29","v":2.1},{"$f":"ROUND(VLOOKUP(B29,Listado!A:I,9,FALSE)/Rendimientos!F68,2)","v":0.35},1,{"$f":"H29* A19","v":30},{"$f":"ROUND(E29*G29*(1-I29/100),2)","v":0.51},0.51,null,{"$f":"ROUNDUP(($B$14*E29),0)","v":3},{"$f":"G29","v":0.35},"PIEZAS",{"$f":"INT(M29/(BC29))","v":0},{"$f":"M29-P29*BC29","v":3},{"$f":"ROUNDUP(($B$14*E29)/BC29,0)","v":1},{"$f":"N29*R29","v":0.35},"CAJAS",{"$f":"M29","v":3},"PIEZAS",0.35,{"$f":"I29","v":30},{"$f":"P29","v":0},"CAJAS",{"$f":"Q29","v":3},"PIEZAS",{"$f":"R29","v":1},"CAJAS",{"$f":"$BC$29*$N$29","v":35},{"$f":"X29","v":30},null,null,null,null,{"$f":"U29","v":3},"PIEZAS",{"$f":"INT(AK29/(BC29))","v":0},{"$f":"AK29-AM29*BC29","v":3},null,null,null,null,null,null,null,null,null,null,null,null,0,0,{"$f":"IF($B$29=\"480922001\",Listado!H32,Listado!H33)","v":100},null,{"$f":"LEFT(RIGHT(B28,3),1)","v":"1"},1,7,"Basic"]
[1,{"$f":"VLOOKUP(C30,Listado!$B$5:$C$49,2,FALSE)","v":"48134730"},"PERFIL TC 47X3000 (12UDS)","ml",{"$f":"IF(B12=600,Rendimientos!E48,Rendimientos!E47)","v":1.96},{"$f":"$B$14*E30","v":1.96},{"$f":"VLOOKUP(B30,Listado!A:I,9,FALSE)","v":2.39},1,{"$f":"H30* A17","v":30},{"$f":"ROUND(E30*G30*(1-I30/100),2)","v":3.28},3.28,null,{"$f":"ROUNDUP(($B$14*E30)/(BB30),0)","v":1},{"$f":"ROUND(VLOOKUP(B30,Listado!A:J,9,FALSE)*BB30,2)","v":7.17},"PERFILES",{"$f":"INT(M30/$BC$30)","v":0},{"$f":"M30-P30*$BC$30","v":1},{"$f":"ROUNDUP(($B$14*E30)/(BB30*BC30),0)","v":1},{"$f":"R30*$BC$30*$N$30","v":86.039999999999992},"PAQUETES",{"$f":"M30","v":1},"PERFILES",7.17,{"$f":"I30","v":30},{"$f":"INT(U30/$BC$30)","v":0},"PAQUETES",{"$f":"U30-Y30*$BC$30","v":1},"PERFILES",1,"PAQUETES",{"$f":"$BC$30*$N$30","v":86.039999999999992},30,null,null,null,null,1,"PERFILES",{"$f":"INT(AK30/$BC$30)","v":0},{"$f":"AK30-AM30*$BC$30","v":1},null,null,null,null,null,null,null,null,null,null,null,null,{"$f":"VLOOKUP($B30,Listado!$A$5:$I$49,7,FALSE)","v":12},{"$f":"VLOOKUP($B30,Listado!$A$5:$I$49,6,FALSE)","v":3},{"$f":"VLOOKUP($B30,Listado!$A$5:$I$49,7,FALSE)","v":12},{"$f":"VLOOKUP($B30,Listado!A:I,8,FALSE)","v":63},{"$f":"LEFT(RIGHT(B30,4),2)","v":"47"},2,8,"Hidro"]
[1,{"$f":"IF(BE28=\"20\",\"4802010135\",\"4802010125\")","v":"4802010125"},{"$f":"VLOOKUP(B31,Listado!$A$5:$B$49,2,FALSE)","v":"TORNILLOS ATT PP 3,5X25 (1000)"},"ud",{"$f":"IF(B12=600,A31*Rendimientos!E16,A31*Rendimientos!E10)","v":14},14,{"$f":"ROUND(VLOOKUP(B31,Listado!A:I,9,FALSE)/BA31,2)","v":0.03},1,{"$f":"H31* A19","v":30},0.28999999999999998,0.28999999999999998,null,{"$f":"ROUNDUP(($B$14*E31)/(BC31),0)","v":1},{"$f":"VLOOKUP(B31,Listado!A:I,9,FALSE)","v":29.06},"CAJAS",{"$f":"($B$14*E31)/(BC31)","v":1.4E-2},"CAJAS",{"$f":"M31","v":1},{"$f":"R31*$N$31","v":29.06},{"$f":"O31","v":"CAJAS"},{"$f":"M31","v":1},"CAJAS",29.06,30,null,null,{"$f":"U31","v":1},"CAJAS",1,"CAJAS",{"$f":"$N$31","v":29.06},30,null,null,null,null,1,"CAJAS",null,null,null,null,null,null,null,null,null,null,null,null,null,null,{"$f":"VLOOKUP($B31,Listado!$A$5:$I$49,5,FALSE)","v":1000},{"$f":"VLOOKUP($B31,Listado!$A$5:$I$49,6,FALSE)","v":0},{"$f":"Rendimientos!F9","v":1000},null,{"$f":"IF(BE29=\"1\",1,IF(BE29=\"2\",2,IF(BE29=\"3\",3,IF(BE29=\"4\",4,IF(BE29=\"5\",5,6)))))","v":1},3,9,"Fuego"]
[1,{"$f":"Rendimientos!A21","v":"4800308"},{"$f":"VLOOKUP(B32,Listado!$A$5:$B$49,2,FALSE)","v":"TACO HEMBRA ALTERON M6 (100)"},"ud",{"$f":"IF(B12=600,Rendimientos!E51,Rendimientos!E50)","v":2.1},2.1,{"$f":"ROUND(VLOOKUP(B32,Listado!A:I,9,FALSE)/Rendimientos!F21,2)","v":0.2},1,{"$f":"H32* A19","v":30},0.28999999999999998,0.28999999999999998,null,{"$f":"ROUNDUP(($B$14*E32)/(BC32),0)","v":1},{"$f":"VLOOKUP(B32,Listado!A:I,9,FALSE)","v":19.5},"CAJAS",{"$f":"($B$14*E32)/(BC32)","v":2.1000000000000001E-2},"CAJAS",1,{"$f":"R32*$N$32","v":19.5},{"$f":"O32","v":"CAJAS"},1,"CAJAS",19.5,30,null,null,{"$f":"U32","v":1},"CAJAS",1,"CAJAS",{"$f":"$N$32","v":19.5},30,null,null,null,null,1,"CAJAS",null,null,null,null,null,null,null,null,null,null,null,null,null,null,{"$f":"VLOOKUP($B32,Listado!$A$5:$I$49,5,FALSE)","v":0},{"$f":"VLOOKUP($B32,Listado!$A$5:$I$49,6,FALSE)","v":0},{"$f":"Rendimientos!F21","v":100},null,{"$f":"B12","v":600},4,10,"Resist"]
[1,{"$f":"VLOOKUP(C33,Listado!$B$5:$C$50,2,FALSE)","v":"0470010110"},"PASTA ATT JUNTAS 10KG 60 MIN (56)","kg",{"$f":"A33*Rendimientos!E24","v":0.11},0.11,{"$f":"ROUND(VLOOKUP(B33,Listado!A:I,9,FALSE)/Rendimientos!F24,2)","v":1.99},1,{"$f":"H33* A18","v":30},0.15,0.15,null,{"$f":"ROUNDUP(($B$14*E33)/(BC33),0)","v":1},{"$f":"VLOOKUP(B33,Listado!A:I,9,FALSE)","v":19.850000000000001},"SACOS",{"$f":"($B$14*E33)/(BC33)","v":1.0999999999999999E-2},"SACOS",1,{"$f":"R33*$N$33","v":19.850000000000001},"SACOS",1,"SACOS",19.850000000000001,30,null,null,{"$f":"U33","v":1},"SACOS",1,"SACOS",{"$f":"$N$33","v":19.850000000000001},30,null,null,null,null,1,"SACOS",null,null,null,null,null,null,null,null,null,null,null,null,null,null,{"$f":"VLOOKUP($B33,Listado!$A$5:$I$49,5,FALSE)","v":0},{"$f":"VLOOKUP($B33,Listado!$A$5:$I$49,6,FALSE)","v":0},{"$f":"Rendimientos!F24","v":10}]
[1,{"$f":"Listado!A50","v":"48040101"},{"$f":"VLOOKUP(B34,Listado!$A$5:$B$57,2,FALSE)","v":"MASILLA PARA ENCUENTROS ATT"},"mil",{"$f":"A34*Rendimientos!E22","v":10},{"$f":"$B$14*E34","v":10},{"$f":"VLOOKUP(B34,Listado!A:I,9,FALSE)","v":2.4199999999999999E-2},1,{"$f":"H34* A19","v":30},0.17,0.17,null,{"$f":"ROUNDUP(($B$14*E34)/(BC34),0)","v":1},{"$f":"VLOOKUP(B34,Listado!A:J,10,FALSE)","v":7.26},"BOTES",{"$f":"($B$14*E34)/(BC34)","v":3.3333333333333333E-2},{"$f":"O34","v":"BOTES"},1,{"$f":"R34*$N$34","v":7.26},{"$f":"O34","v":"BOTES"},1,{"$f":"T34","v":"BOTES"},7.26,30,null,null,{"$f":"U34","v":1},{"$f":"V34","v":"BOTES"},1,"BOTES",{"$f":"$N$34","v":7.26},30,null,null,null,null,1,{"$f":"AD34","v":"BOTES"},null,null,null,null,null,null,null,null,null,null,null,null,null,null,{"$f":"VLOOKUP($B34,Listado!$A$5:$I$49,5,FALSE)","v":{"$error":"#N/A"}},{"$f":"VLOOKUP($B34,Listado!$A$5:$I$49,6,FALSE)","v":{"$error":"#N/A"}},{"$f":"Rendimientos!F22","v":300}]
[1,{"$f":"Rendimientos!A23","v":"4800205"},{"$f":"VLOOKUP(B35,Listado!$A$5:$B$49,2,FALSE)","v":"VARILLA ROSCADA M6 1M (100)"},"ud",{"$f":"IF(B12=600,Rendimientos!E51,Rendimientos!E50)","v":2.1},2.1,{"$f":"ROUND(VLOOKUP(B35,Listado!A:I,9,FALSE)/Rendimientos!F23,2)","v":0.98},1,{"$f":"H35* A19","v":30},1.44,1.44,null,{"$f":"ROUNDUP(($B$14*E35),0)","v":3},{"$f":"ROUND(VLOOKUP(B35,Listado!A:J,9,FALSE)/BC35,2)","v":0.98},"PIEZAS",{"$f":"INT(M35/(BC35))","v":0},{"$f":"M35-P35*BC35","v":3},{"$f":"ROUNDUP(($B$14*E35)/BC35,0)","v":1},{"$f":"R35*$N$35","v":0.98},"CAJAS",3,{"$f":"T35","v":"CAJAS"},0.98,30,{"$f":"P35","v":0},"CAJAS",{"$f":"Q35","v":3},"PIEZAS",1,"CAJAS",{"$f":"$BC$35*$N$35","v":98},30,null,null,null,null,3,"PIEZAS",{"$f":"INT(AK35/(BC35))","v":0},{"$f":"AK35-AM35*BC35","v":3},null,null,null,null,null,null,null,null,null,null,null,null,{"$f":"VLOOKUP($B35,Listado!$A$5:$I$49,5,FALSE)","v":0},{"$f":"VLOOKUP($B35,Listado!$A$5:$I$49,6,FALSE)","v":0},{"$f":"Rendimientos!F23","v":100}]
[1,{"$f":"IF(B10=\"Q3\",\"\",Rendimientos!A26)","v":""},{"$f":"IFERROR(VLOOKUP(B36,Listado!A5:B49,2,FALSE),\"\")","v":""},{"$f":"IF(B10=\"Q3\",\"\",\"kg\")","v":""},{"$f":"IF(B10=\"Q3\",\"\",A36*Rendimientos!E26)","v":""},{"$f":"IF(B10=\"Q3\",\"\",$B$14*E36)","v":""},{"$f":"IFERROR(ROUND(VLOOKUP(B36,Listado!A:I,9,FALSE)/Rendimientos!F25,2),\"\")","v":""},1,{"$f":"H36* A18","v":30},{"$f":"IFERROR(ROUND(E36*G36*(1-I36/100),2),0)","v":0},{"$f":"IFERROR(J36*$B$14,0)","v":0},null,{"$f":"IFERROR(ROUNDUP(($B$14*E36)/(BC36),0),\"\")","v":""},{"$f":"IFERROR(VLOOKUP(B36,Listado!A:I,9,FALSE),\"0\")","v":"0"},{"$f":"IF(B10=\"Q2\",\"\",\"SACOS\")","v":"SACOS"},{"$f":"IFERROR(($B$14*E36)/(BC36),\"\")","v":""},{"$f":"IF(B10=\"Q2\",\"\",\"SACOS\")","v":"SACOS"},"",{"$f":"IFERROR(R36*$N$36,\"\")","v":""},{"$f":"IF(B10=\"Q2\",\"\",\"SACOS\")","v":"SACOS"},"",{"$f":"IF(B10=\"Q2\",\" \",\"SACOS\")","v":"SACOS"},"0",{"$f":"I36","v":30},null,null,{"$f":"IF(U36=\"\",\"\",U36)","v":""},{"$f":"IF(B10=\"Q2\",\" \",\"SACOS\")","v":"SACOS"},"","SACOS",{"$f":"IFERROR($N$36,\"\")","v":"0"},30,null,null,null,null,"",{"$f":"IF(B10=\"Q2\",\" \",\"SACOS\")","v":"SACOS"},null,null,null,null,null,null,null,null,null,null,null,null,null,null,{"$f":"VLOOKUP($B36,Listado!$A$5:$I$49,5,FALSE)","v":{"$error":"#N/A"}},{"$f":"VLOOKUP($B36,Listado!$A$5:$I$49,6,FALSE)","v":{"$error":"#N/A"}},{"$f":"Rendimientos!F24","v":10},null,{"$f":"BE32*100+BE30*100+BE28","v":64713}]
[]
[null,null,null,null,null,null,null,null,"Total material",{"$f":"SUM(J28:J36)","v":10.669999999999998},{"$f":"SUM(K28:K36)","v":10.669999999999998},null,"Total (€)",{"$f":"SUMPRODUCT(M28:M36,N28:N36)","v":95.99},null,null,null,"Total (€)",{"$f":"SUM(S28:S36)","v":520.28},null,"Total (€)",{"$f":"SUMPRODUCT(U28:U36,W28:W36)","v":95.99},null,null,null,null,null,null,"Total (€)",{"$f":"SUMPRODUCT(AC28:AC36,AE28:AE36)","v":651.94999999999993},null,null,null,null,null,null,"Total (€)"]
["€/m2 MO"]
[{"$f":"((IF(B12=600,Rendimientos!E37,Rendimientos!E38))+(IF(C36=\"\",Rendimientos!E63,Rendimientos!E64)))","v":6.5169999999999995},"OTROS CONCEPTOS (mano de obra, aislante, etc.)",null,"UD","UD/m2","UD","€ / UD",null,"%","€/m2","€"]
[null," ","Mano de obra: Oficial 1ª","-","-","-","-",1,"-",{"$f":"H41*A40","v":6.5169999999999995},{"$f":"IFERROR(J41*$B$14,\"\")","v":6.5169999999999995}]
[null," "," "," "," ",{"$f":"E42*B11","v":{"$error":"#VALUE!"}}," ",1,0,null,{"$f":"IFERROR(J42*$B$14,\"\")","v":0}]
[null," "," "," "," ",{"$f":"E43*B11","v":{"$error":"#VALUE!"}}," ",1,0,null,0]
[null," "," "," "," ",null," ",null,null,null," "]
[null," ",null,null,null,null,null,null,"Total otros conceptos",{"$f":"SUM(IFERROR(J39:J43,\" \"))","v":6.5169999999999995},{"$f":"K39+SUM(K41:K43)","v":6.5169999999999995}]
[null," ",null,null,null,null," "]
[null,null,null,null,null,null,null,null,"TOTAL ",{"$f":"J38+J45","v":17.186999999999998},{"$f":"K38+K45","v":17.186999999999998}]
[null,null,null,null,null,null,"Beneficio (%)",1,"TOTAL inc. Beneficio",{"$f":"J47*(1+G49/100)","v":20.624399999999998},{"$f":"K47*(1+G49/100)","v":20.624399999999998}]
[null,null,null,null,null,null,{"$f":"H49* A21","v":20},1]
[null,null,null,null,null,null,{"$f":"H50* A21","v":0}]
[null,{"$f":"Rendimientos!C141","v":"NOTA: Rendimientos calculados teniendo en cuenta un despedicio del 2% en las placas y del 5% en el resto del sistema."}]
[]
[]
[]
[]
[]
[]
[]
[]
[]
[]
[]
[]
[]
[]
[]
[]
[]
[]
[]
[]
[]
[]
[]
[]
[]
[]
[]
[]
[]
[]
[]
[]
[]
[]
[]
[]
[]
[]
[]
[]
[]
[]
[]
[]
[]
[]
[]
[]
[]
[]
[]
[null,"LINKS A DESPLEGABLES"]
[]
[null,"Acabado"]
[null,{"$f":"Rendimientos!B24","v":"Q2"},{"$f":"Rendimientos!C24","v":"Totalmente finalizado con nivel de acabado Q2"}]
[null,{"$f":"Rendimientos!B25","v":"Q3"},{"$f":"Rendimientos!C25","v":"Totalmente finalizado con nivel de acabado Q3"}]
[null,{"$f":"Rendimientos!B26","v":"Q4"},{"$f":"Rendimientos!C26","v":"Totalmente finalizado con nivel de acabado Q4"}]
[]
[null,"Modulación"]
[null,null,{"$f":"Rendimientos!C27","v":600}]
[null,null,{"$f":"Rendimientos!C28","v":400}]
[]
[null,"Placas"]
[null,"040113",{"$f":"VLOOKUP(B115,Listado!$A$5:$B$50,2,FALSE)","v":"PLACA ATT BASIC 13X600X1200 (78)"}]
[null,"040115",{"$f":"VLOOKUP(B116,Listado!$A$5:$B$50,2,FALSE)","v":"PLACA ATT BASIC 15X600X1200 (66)"}]
[null,"040120",{"$f":"VLOOKUP(B117,Listado!$A$5:$B$50,2,FALSE)","v":"PLACA ATT BASIC 20X600X1200 (48)"}]
[null,"040213",{"$f":"VLOOKUP(B118,Listado!$A$5:$B$50,2,FALSE)","v":"PLACA ATT HIDRO 13X600X1200 (78)"}]
[null,"040215",{"$f":"VLOOKUP(B119,Listado!$A$5:$B$50,2,FALSE)","v":"PLACA ATT HIDRO 15X600X1200 (66)"}]
[null,"040220",{"$f":"VLOOKUP(B120,Listado!$A$5:$B$50,2,FALSE)","v":"PLACA ATT HIDRO 20X600X1200 (48)"}]
[null,"040313",{"$f":"VLOOKUP(B121,Listado!$A$5:$B$50,2,FALSE)","v":"PLACA ATT FUEGO 13X600X1200 (78)"}]
[null,"040315",{"$f":"VLOOKUP(B122,Listado!$A$5:$B$50,2,FALSE)","v":"PLACA ATT FUEGO 15X600X1200 (66)"}]
[null,"040320",{"$f":"VLOOKUP(B123,Listado!$A$5:$B$50,2,FALSE)","v":"PLACA ATT FUEGO 20X600X1200 (48)"}]
[null,"040413",{"$f":"VLOOKUP(B124,Listado!$A$5:$B$50,2,FALSE)","v":"PLACA ATT RESIST 13X600X1200 (78)"}]
[null,"040415",{"$f":"VLOOKUP(B125,Listado!$A$5:$B$50,2,FALSE)","v":"PLACA ATT RESIST 15X600X1200 (66)"}]
[null,"040420",{"$f":"VLOOKUP(B126,Listado!$A$5:$B$50,2,FALSE)","v":"PLACA ATT RESIST 20X600X1200 (48)"}]
[null,"040513",{"$f":"VLOOKUP(B127,Listado!$A$5:$B$50,2,FALSE)","v":"PLACA ATT HIDROPLUS 13X600X1200 (78)"}]
[null,"040515",{"$f":"VLOOKUP(B128,Listado!$A$5:$B$50,2,FALSE)","v":"PLACA ATT HIDROPLUS 15X600X1200 (66)"}]
[null,"040520",{"$f":"VLOOKUP(B129,Listado!$A$5:$B$50,2,FALSE)","v":"PLACA ATT HIDROPLUS 20X600X1200 (48)"}]
[null,"040613",{"$f":"VLOOKUP(B130,Listado!$A$5:$B$50,2,FALSE)","v":"PLACA ATT SUPREM 13X600X1200 (78)"}]
[null,"040615",{"$f":"VLOOKUP(B131,Listado!$A$5:$B$50,2,FALSE)","v":"PLACA ATT SUPREM 15X600X1200 (66)"}]
[null,"040620",{"$f":"VLOOKUP(B132,Listado!$A$5:$B$50,2,FALSE)","v":"PLACA ATT SUPREM 20X600X1200 (48)"}]
[]
[null,"tcs"]
[null,"48134730","PERFIL TC 47X3000 (12UDS)"]
[null,"48136030","PERFIL TC 60X3000 (8UDS)"]
[]
[]
[]
[]
[]
[]
[]
[]
[]
[null,"Pasta de juntas"]
[null,"0470010110",{"$f":"VLOOKUP(B147,Listado!$A$5:$B$49,2,FALSE)","v":"PASTA ATT JUNTAS 10KG 60 MIN (56)"}]
[null,"0470010210",{"$f":"VLOOKUP(B148,Listado!$A$5:$B$49,2,FALSE)","v":"PASTA ATT JUNTAS 10KG 30 MIN (56)"}]
[null,"0470010111",{"$f":"VLOOKUP(B149,Listado!$A$5:$B$49,2,FALSE)","v":"PASTA ATT JUNTAS H 10 KG 60 MIN (56) "}]

{"sheet":"Estructura simple dos placas","index":7,"n_rows":150,"n_cols":60,"rows_kept":150,"cut":false,"hidden":false,"merged":[[6,2,6,51],[25,12,25,14],[25,15,25,16],[25,17,25,19],[25,20,25,21],[25,24,25,27],[25,28,25,29],[25,36,25,37],[25,38,25,39],[25,52,25,55],[25,56,26,56],[38,14,38,16],[38,38,39,42],[48,8,49,8],[48,9,49,9],[48,10,49,10]]}
[null,null,"                     RENDIMIENTOS"]
[null,null,"                     PEDIDO MATERIALES"]
[null,null,"                     PRESUPUESTO"]
[null,null,"                     LISTA DE MATERIALES"]
[null,null,null,{"$f":"VLOOKUP(BE37,'Índice sistemas'!C5:E28,3,FALSE)","v":"TECHO DOBLE / ESTRUCTURA SIMPLE ATT® 47 / 600 2x13 "},null,null,null,null,null,null,null,null,{"$f":"$D$5","v":"TECHO DOBLE / ESTRUCTURA SIMPLE ATT® 47 / 600 2x13 "},null,null,null,null,null,null,null,{"$f":"$D$5","v":"TECHO DOBLE / ESTRUCTURA SIMPLE ATT® 47 / 600 2x13 "},null,null,null,null,null,null,null,{"$f":"$D$5","v":"TECHO DOBLE / ESTRUCTURA SIMPLE ATT® 47 / 600 2x13 "},null,null,null,null,null,null,null,{"$f":"AC5","v":"TECHO DOBLE / ESTRUCTURA SIMPLE ATT® 47 / 600 2x13 "},null,null,null,null,null,null,null,{"$f":"AK5","v":"TECHO DOBLE / ESTRUCTURA SIMPLE ATT® 47 / 600 2x13 "}]
[]
[null,null,{"$f":"VLOOKUP(BE37,'Índice sistemas'!C:N,(BE29+6),FALSE)","v":"Techo continuo formado por dos placas BASIC de 13 mm de espesor compuestas por yeso natural, fibra de vidrio y aditivos inorgánicos que le aportan alta dureza y resistencia mecánica. Reacción al fuego: EUROCLASE A1. Sistema de galces desiguales: las placas encajan entre ellas dejando una entrecalle de 3 mm por donde se inserte la pasta de juntas. Este sistema no utiliza cinta de papel. La pasta de juntas se aplica en las cavidades de las placas y una masilla elástica en los encuentros. Suspendido mediante una estructura simple de perfiles TC47 en acero galvanizado de 0,6 mm de espesor con modulación de 600 mm entre ejes y unidos al forjado mediante varilla roscada galvanizada y horquilla TC47. Incluida la parte proporcional del resto de materiales: tornillería, pasta de juntas, masilla para encuentros perimetrales, fijaciones, junta estanca, etc. Montaje según norma de instalación UNE 102043 y exigencias del CTE."}]
[{"$f":"Datos!A15","v":"clientes@elalteron.com"},null,{"$f":"IF(B10=B107,C107,IF(B10=B108,C108,C109))","v":"Totalmente finalizado con nivel de acabado Q3"}]
["CODIFICACIÓN MANO OBRA"]
[{"$f":"IF(B10=\"Q2\",2,IF(B10=\"Q3\",3,4))","v":3},"Q3","INTRODUCIR ACABADO DESEADO"]
[]
[{"$f":"B12/10","v":60},600,"INTRODUCIR MODULACIÓN "]
[]
[{"$f":"SUM(A10:A13)","v":63},1,"INTRODUCIR CANTIDAD m2"]
["PESTAÑA DATOS"]
[{"$f":"Datos!A6","v":30}]
[{"$f":"Datos!A7","v":30}]
[{"$f":"Datos!A8","v":30}]
[{"$f":"Datos!A9","v":30},null,"Material calculado para ",null,null,null,null,null,null,null,null,null,null,null,null,null,null,null,null,null,{"$f":"B14","v":1},"m2",null,null,null,null,null,null,{"$f":"B14","v":1},"m2"]
[{"$f":"Datos!A10","v":30}]
[{"$f":"Datos!A11","v":20}]
[{"$f":"Datos!A12","v":"pedidos@elalteron.com"}]
[{"$f":"Datos!A13","v":"repuesto@elalteron.com"},null,null,null,null,null,null,null,null,null,null,null,null,null,null,null,null,null,null,null,null,null,null,null,null,null,null,null,null,null,null,null,null,null,null,null,null,null,null,null,null,null,null,null,"Precio",{"$f":"AS5","v":"TECHO DOBLE / ESTRUCTURA SIMPLE ATT® 47 / 600 2x13 "},null,null,null,null,{"$f":"J49","v":30.898799999999994},"€/m2"]
[{"$f":"Datos!A14","v":"compras@elalteron.com"},null,null,null,null,null,null,null,null,null,null,null,null,null,null,null,null,null,null,null,null,null,null,null,null,null,null,null,null,null,null,null,null,null,null,null,null,null,null,null,null,null,null,null,"Cantidad de sistema",null,null,null,null,null,{"$f":"B14","v":1},"m2"]
[{"$f":"IF(B10=\"Q2\",0,'Estructura simple dos placas'!A18)","v":30},null,null,null,null,null,null,null,null,null,null,null,null,null,null,null,null,null,null,null,null,null,null,null,null,null,null,null,null,null,null,null,null,null,null,null,null,null,null,null,null,null,null,null,"TOTAL",null,null,null,null,null,{"$f":"AY23*AY24","v":30.898799999999994},"€"]
["MULTIPLICADOR",null,null,"UD de MEDIDA","RENDIMIENTO","CANTIDAD","CANTIDAD",null,"DESCUENTO","REPERCUSIÓN"," TOTAL",null,"TOTAL PIEZAS",null,null,"DESGLOSE",null,"REDONDEADO ",null,null,"TOTAL PIEZAS",null,"PRECIO","DESCUENTO","DESGLOSE EN PIEZAS",null,null,null,"REDONDEADO ",null,"PRECIO","DESCUENTO",null,null,null,null,"TOTAL PIEZAS",null,"DESGLOSE",null,null,null,null,null,null,null,null,null,null,null,null,null,"DATOS DE LISTADO Y RENDIMIENTOS",null,null,null,"SISTEMA"]
["TRASDOSADO","CÓDIGO","MATERIALES","UD","UD/m2","UD","€ / UD",null,"%","€/m2","€",null,"CANTIDAD","€/UD","UD","PAQ/PAL","PIEZAS","CANTIDAD","€","UD","CANTIDAD","UD","€/UD","%",null,null,null,null,"CANTIDAD","UD","€/UD","%",null,null,null,null,"CANTIDAD","UD","PAQ/PAL","PIEZAS",null,null,null,null,null,null,null,null,null,null,null,null,"ALTO","LARGO","UNI.CAJA","CAJAS/PALE",null,"Id tipo placa ","Id columnas"]
[2,{"$f":"VLOOKUP(C28,Listado!$B$4:$D$31,2,FALSE)","v":"040113"},"PLACA ATT BASIC 13X600X1200 (78)","m2",{"$f":"A28*Rendimientos!E5","v":2.04},{"$f":"$B$14*E28","v":2.04},{"$f":"VLOOKUP(B28,Listado!A:I,9,FALSE)","v":6.36},1,{"$f":"H28*A16","v":30},{"$f":"ROUND(E28*G28*(1-I28/100),2)","v":9.08},{"$f":"J28*$B$14","v":9.08},null,{"$f":"ROUNDUP(($B$14*E28)/(BA28*BB28),0)","v":3},{"$f":"ROUND(VLOOKUP(B28,Listado!A:I,9,FALSE)*(BA28*BB28),2)","v":4.58},"PLACAS",{"$f":"INT(M28/($BC$28*$BD$28))","v":0},{"$f":"M28-P28*$BC$28*$BD$28","v":3},{"$f":"ROUNDUP(($B$14*E28)/(BA28*BB28*BC28*BD28),0)","v":1},{"$f":"$N$28*R28*$BD$28","v":357.24},"PALETS",{"$f":"M28","v":3},"PLACAS",{"$f":"N28","v":4.58},{"$f":"I28","v":30},{"$f":"INT(U28/($BC$28*$BD$28))","v":0},"PALETS",{"$f":"U28-Y28*$BC$28*$BD$28","v":3},"PLACAS",{"$f":"R28","v":1},{"$f":"T28","v":"PALETS"},{"$f":"$N$28*$BD$28","v":357.24},{"$f":"X28","v":30},null,null,null,null,{"$f":"U28","v":3},"PLACAS",{"$f":"INT(AK28/($BC$28*$BD$28))","v":0},{"$f":"AK28-AM28*$BC$28*$BD$28","v":3},null,null,null,null,null,null,null,null,null,null,null,null,{"$f":"VLOOKUP($B28,Listado!A:I,5,FALSE)","v":0.6},{"$f":"VLOOKUP($B28,Listado!A:I,6,FALSE)","v":1.2},{"$f":"VLOOKUP($B28,Listado!A:I,7,FALSE)","v":1},{"$f":"VLOOKUP($B28,Listado!A:I,8,FALSE)","v":78},{"$f":"RIGHT(B28,2)","v":"13"},"en código alt","hoja \"Sistema\"","Tipo"]
[1,{"$f":"IF(BE30=\"47\",\"480922001\",\"480922004\")","v":"480922001"},{"$f":"VLOOKUP(B29,Listado!$A$5:$B$49,2,FALSE)","v":"HORQUILLA TC47 (100)"},"ud",{"$f":"IF(B12=600,Rendimientos!E51,Rendimientos!E50)","v":2.1},{"$f":"$B$14*E29","v":2.1},{"$f":"ROUND(VLOOKUP(B29,Listado!A:I,9,FALSE)/Rendimientos!F68,2)","v":0.35},1,{"$f":"H29* A19","v":30},{"$f":"ROUND(E29*G29*(1-I29/100),2)","v":0.51},0.51,null,{"$f":"ROUNDUP(($B$14*E29),0)","v":3},{"$f":"G29","v":0.35},"PIEZAS",{"$f":"INT(M29/(BC29))","v":0},{"$f":"M29-P29*BC29","v":3},{"$f":"ROUNDUP(($B$14*E29)/BC29,0)","v":1},{"$f":"N29*R29","v":0.35},"CAJAS",{"$f":"M29","v":3},"PIEZAS",0.35,{"$f":"I29","v":30},{"$f":"P29","v":0},"CAJAS",{"$f":"Q29","v":3},"PIEZAS",{"$f":"R29","v":1},"CAJAS",{"$f":"$BC$29*$N$29","v":35},{"$f":"X29","v":30},null,null,null,null,{"$f":"U29","v":3},"PIEZAS",{"$f":"INT(AK29/(BC29))","v":0},{"$f":"AK29-AM29*BC29","v":3},null,null,null,null,null,null,null,null,null,null,null,null,0,0,{"$f":"IF($B$29=\"480922001\",Listado!H32,Listado!H33)","v":100},null,{"$f":"LEFT(RIGHT(B28,3),1)","v":"1"},1,7,"Basic"]
[1,{"$f":"VLOOKUP(C30,Listado!$B$5:$C$49,2,FALSE)","v":"48134730"},"PERFIL TC 47X3000 (12UDS)","ml",{"$f":"IF(B12=600,Rendimientos!E48,Rendimientos!E47)","v":1.96},{"$f":"$B$14*E30","v":1.96},{"$f":"VLOOKUP(B30,Listado!A:I,9,FALSE)","v":2.39},1,{"$f":"H30* A17","v":30},{"$f":"ROUND(E30*G30*(1-I30/100),2)","v":3.28},3.28,null,{"$f":"ROUNDUP(($B$14*E30)/(BB30),0)","v":1},{"$f":"ROUND(VLOOKUP(B30,Listado!A:J,9,FALSE)*BB30,2)","v":7.17},"PERFILES",{"$f":"INT(M30/$BC$30)","v":0},{"$f":"M30-P30*$BC$30","v":1},{"$f":"ROUNDUP(($B$14*E30)/(BB30*BC30),0)","v":1},{"$f":"R30*$BC$30*$N$30","v":86.039999999999992},"PAQUETES",1,"PERFILES",7.17,{"$f":"I30","v":30},{"$f":"INT(U30/$BC$30)","v":0},"PAQUETES",{"$f":"U30-Y30*$BC$30","v":1},"PERFILES",1,"PAQUETES",{"$f":"$BC$30*$N$30","v":86.039999999999992},30,null,null,null,null,1,"PERFILES",{"$f":"INT(AK30/$BC$30)","v":0},{"$f":"AK30-AM30*$BC$30","v":1},null,null,null,null,null,null,null,null,null,null,null,null,{"$f":"VLOOKUP($B30,Listado!$A$5:$I$49,7,FALSE)","v":12},{"$f":"VLOOKUP($B30,Listado!$A$5:$I$49,6,FALSE)","v":3},{"$f":"VLOOKUP($B30,Listado!$A$5:$I$49,7,FALSE)","v":12},{"$f":"VLOOKUP($B30,Listado!A:I,8,FALSE)","v":63},{"$f":"LEFT(RIGHT(B30,4),2)","v":"47"},2,8,"Hidro"]
[1,{"$f":"IF(BE28=\"20\",\"4802010135\",\"4802010125\")","v":"4802010125"},{"$f":"VLOOKUP(B31,Listado!$A$5:$B$49,2,FALSE)","v":"TORNILLOS ATT PP 3,5X25 (1000)"},"ud",{"$f":"IF(B12=600,A31*Rendimientos!E16,A31*Rendimientos!E10)","v":14},14,{"$f":"ROUND(VLOOKUP(B31,Listado!A:I,9,FALSE)/BA31,2)","v":0.03},1,{"$f":"H31* A19","v":30},0.28999999999999998,0.28999999999999998,null,{"$f":"ROUNDUP(($B$14*E31)/(BC31),0)","v":1},{"$f":"VLOOKUP(B31,Listado!A:I,9,FALSE)","v":29.06},"CAJAS",{"$f":"($B$14*E31)/(BC31)","v":1.4E-2},"CAJAS",{"$f":"M31","v":1},{"$f":"R31*$N$31","v":29.06},{"$f":"O31","v":"CAJAS"},1,"CAJAS",29.06,30,null,null,{"$f":"U31","v":1},"CAJAS",1,"CAJAS",{"$f":"$N$31","v":29.06},30,null,null,null,null,1,"CAJAS",null,null,null,null,null,null,null,null,null,null,null,null,null,null,{"$f":"VLOOKUP($B31,Listado!$A$5:$I$49,5,FALSE)","v":1000},{"$f":"VLOOKUP($B31,Listado!$A$5:$I$49,6,FALSE)","v":0},{"$f":"Rendimientos!F9","v":1000},null,{"$f":"IF(BE29=\"1\",1,IF(BE29=\"2\",2,IF(BE29=\"3\",3,IF(BE29=\"4\",4,IF(BE29=\"5\",5,6)))))","v":1},3,9,"Fuego"]
[1,{"$f":"IF(BE28=\"20\",\"4802010155\",IF(BE28=\"15\",\"4802010145\",\"4802010135\"))","v":"4802010135"},{"$f":"VLOOKUP(B32,Listado!$A$5:$B$49,2,FALSE)","v":"TORNILLOS ATT PP 3,5X35 (1000)"},"ud",{"$f":"IF(B12=600,A32*Rendimientos!E17,A32*Rendimientos!E11)","v":14},14,{"$f":"ROUND(VLOOKUP(B32,Listado!A:I,9,FALSE)/BA32,2)","v":0.03},1,{"$f":"H32* A19","v":30},0.28999999999999998,0.28999999999999998,null,{"$f":"ROUNDUP(($B$14*E32)/(BC32),0)","v":1},{"$f":"VLOOKUP(B32,Listado!A:I,9,FALSE)","v":33.28},"CAJAS",{"$f":"($B$14*E32)/(BC32)","v":1.4E-2},"CAJAS",1,{"$f":"R32*$N$32","v":33.28},{"$f":"O32","v":"CAJAS"},1,"CAJAS",33.28,30,null,null,{"$f":"U32","v":1},"CAJAS",1,"CAJAS",{"$f":"$N$32","v":33.28},30,null,null,null,null,1,"CAJAS",null,null,null,null,null,null,null,null,null,null,null,null,null,null,1000,0,{"$f":"Rendimientos!F10","v":1000},null,null,4,10,"Resist"]
[1,{"$f":"Rendimientos!A21","v":"4800308"},{"$f":"VLOOKUP(B33,Listado!$A$5:$B$49,2,FALSE)","v":"TACO HEMBRA ALTERON M6 (100)"},"ud",{"$f":"IF(B12=600,Rendimientos!E51,Rendimientos!E50)","v":2.1},2.1,{"$f":"ROUND(VLOOKUP(B33,Listado!A:I,9,FALSE)/Rendimientos!F21,2)","v":0.2},1,{"$f":"H33* A19","v":30},0.28999999999999998,0.28999999999999998,null,{"$f":"ROUNDUP(($B$14*E33)/(BC33),0)","v":1},{"$f":"VLOOKUP(B33,Listado!A:I,9,FALSE)","v":19.5},"CAJAS",{"$f":"($B$14*E33)/(BC33)","v":2.1000000000000001E-2},"CAJAS",1,{"$f":"R33*$N$33","v":19.5},{"$f":"O33","v":"CAJAS"},1,"CAJAS",19.5,30,null,null,{"$f":"U33","v":1},"CAJAS",1,"CAJAS",{"$f":"$N$33","v":19.5},30,null,null,null,null,1,"CAJAS",null,null,null,null,null,null,null,null,null,null,null,null,null,null,{"$f":"VLOOKUP($B33,Listado!$A$5:$I$49,5,FALSE)","v":0},{"$f":"VLOOKUP($B33,Listado!$A$5:$I$49,6,FALSE)","v":0},{"$f":"Rendimientos!F21","v":100},null,{"$f":"B12","v":600},5,11,"Hidroplus"]
[2,{"$f":"VLOOKUP(C34,Listado!$B$5:$C$49,2,FALSE)","v":"0470010110"},"PASTA ATT JUNTAS 10KG 60 MIN (56)","kg",{"$f":"A34*Rendimientos!E24","v":0.22},0.22,{"$f":"ROUND(VLOOKUP(B34,Listado!A:I,9,FALSE)/Rendimientos!F24,2)","v":1.99},1,{"$f":"H34* A18","v":30},0.31,0.31,null,{"$f":"ROUNDUP(($B$14*E34)/(BC34),0)","v":1},{"$f":"VLOOKUP(B34,Listado!A:I,9,FALSE)","v":19.850000000000001},"SACOS",{"$f":"($B$14*E34)/(BC34)","v":2.1999999999999999E-2},"SACOS",1,{"$f":"R34*$N$34","v":19.850000000000001},"SACOS",1,"SACOS",19.850000000000001,30,null,null,{"$f":"U34","v":1},"SACOS",1,"SACOS",{"$f":"$N$34","v":19.850000000000001},30,null,null,null,null,1,"SACOS",null,null,null,null,null,null,null,null,null,null,null,null,null,null,{"$f":"VLOOKUP($B34,Listado!$A$5:$I$49,5,FALSE)","v":0},{"$f":"VLOOKUP($B34,Listado!$A$5:$I$49,6,FALSE)","v":0},{"$f":"Rendimientos!F24","v":10},null,null,6,12,"Suprem"]
[1,{"$f":"Listado!A50","v":"48040101"},{"$f":"VLOOKUP(B35,Listado!$A$5:$B$57,2,FALSE)","v":"MASILLA PARA ENCUENTROS ATT"},"mil",{"$f":"A35*Rendimientos!E22","v":10},{"$f":"$B$14*E35","v":10},{"$f":"VLOOKUP(B35,Listado!A:I,9,FALSE)","v":2.4199999999999999E-2},1,{"$f":"H35* A19","v":30},0.17,0.17,null,{"$f":"ROUNDUP(($B$14*E35)/(BC35),0)","v":1},{"$f":"VLOOKUP(B35,Listado!A:J,10,FALSE)","v":7.26},"BOTES",{"$f":"($B$14*E35)/(BC35)","v":3.3333333333333333E-2},{"$f":"O35","v":"BOTES"},1,{"$f":"R35*$N$35","v":7.26},{"$f":"O35","v":"BOTES"},1,{"$f":"T35","v":"BOTES"},7.26,30,null,null,{"$f":"U35","v":1},{"$f":"V35","v":"BOTES"},1,"BOTES",{"$f":"$N$35","v":7.26},30,null,null,null,null,1,{"$f":"AD35","v":"BOTES"},null,null,null,null,null,null,null,null,null,null,null,null,null,null,{"$f":"VLOOKUP($B35,Listado!$A$5:$I$49,5,FALSE)","v":{"$error":"#N/A"}},{"$f":"VLOOKUP($B35,Listado!$A$5:$I$49,6,FALSE)","v":{"$error":"#N/A"}},{"$f":"Rendimientos!F22","v":300}]
[1,{"$f":"Rendimientos!A23","v":"4800205"},{"$f":"VLOOKUP(B36,Listado!$A$5:$B$49,2,FALSE)","v":"VARILLA ROSCADA M6 1M (100)"},"ud",{"$f":"IF(B12=600,Rendimientos!E51,Rendimientos!E50)","v":2.1},2.1,{"$f":"ROUND(VLOOKUP(B36,Listado!A:I,9,FALSE)/Rendimientos!F23,2)","v":0.98},1,{"$f":"H36* A19","v":30},1.44,1.44,null,{"$f":"ROUNDUP(($B$14*E36),0)","v":3},{"$f":"ROUND(VLOOKUP(B36,Listado!A:J,9,FALSE)/BC36,2)","v":0.98},"PIEZAS",{"$f":"INT(M36/(BC36))","v":0},{"$f":"M36-P36*BC36","v":3},{"$f":"ROUNDUP(($B$14*E36)/BC36,0)","v":1},{"$f":"R36*$N$36","v":0.98},"CAJAS",3,{"$f":"T36","v":"CAJAS"},0.98,30,{"$f":"P36","v":0},"CAJAS",{"$f":"Q36","v":3},"PIEZAS",1,"CAJAS",{"$f":"$BC$36*$N$36","v":98},30,null,null,null,null,3,"PIEZAS",{"$f":"INT(AK36/(BC36))","v":0},{"$f":"AK36-AM36*BC36","v":3},null,null,null,null,null,null,null,null,null,null,null,null,{"$f":"VLOOKUP($B36,Listado!$A$5:$I$49,5,FALSE)","v":0},{"$f":"VLOOKUP($B36,Listado!$A$5:$I$49,6,FALSE)","v":0},{"$f":"Rendimientos!F23","v":100}]
[1,{"$f":"IF(B10=\"Q3\",\"\",Rendimientos!A26)","v":""},{"$f":"IFERROR(VLOOKUP(B37,Listado!A5:B49,2,FALSE),\"\")","v":""},{"$f":"IF(B10=\"Q3\",\"\",\"kg\")","v":""},{"$f":"IF(B10=\"Q3\",\"\",A37*Rendimientos!E26)","v":""},{"$f":"IF(B10=\"Q3\",\"\",$B$14*E37)","v":""},{"$f":"IFERROR(ROUND(VLOOKUP(B37,Listado!$A$5:$J$49,9,FALSE)/Rendimientos!F25,2),\"\")","v":""},1,{"$f":"H37* A18","v":30},{"$f":"IFERROR(ROUND(E37*G37*(1-I37/100),2),0)","v":0},{"$f":"IFERROR(J37*$B$14,0)","v":0},null,{"$f":"IFERROR(ROUNDUP(($B$14*E37)/(BC37),0),\"\")","v":""},{"$f":"IFERROR(VLOOKUP(B37,Listado!A:I,9,FALSE),\"0\")","v":"0"},{"$f":"IF(B10=\"Q2\",\"\",\"SACOS\")","v":"SACOS"},{"$f":"IFERROR(($B$14*E37)/(BC37),\"\")","v":""},{"$f":"IF(B10=\"Q2\",\"\",\"SACOS\")","v":"SACOS"},"",{"$f":"IFERROR(R37*$N$37,\"\")","v":""},{"$f":"IF(B10=\"Q2\",\"\",\"SACOS\")","v":"SACOS"},"",{"$f":"IF(B10=\"Q2\",\" \",\"SACOS\")","v":"SACOS"},"0",{"$f":"I37","v":30},null,null,{"$f":"IF(U37=\"\",\"\",U37)","v":""},{"$f":"IF(B10=\"Q2\",\" \",\"SACOS\")","v":"SACOS"},"","SACOS",{"$f":"IFERROR($N$37,\"\")","v":"0"},30,null,null,null,null,"",{"$f":"IF(B10=\"Q2\",\" \",\"SACOS\")","v":"SACOS"},null,null,null,null,null,null,null,null,null,null,null,null,null,null,{"$f":"VLOOKUP($B37,Listado!$A$5:$I$49,5,FALSE)","v":{"$error":"#N/A"}},{"$f":"VLOOKUP($B37,Listado!$A$5:$I$49,6,FALSE)","v":{"$error":"#N/A"}},{"$f":"Rendimientos!F24","v":10},null,{"$f":"BE33*100+BE30*100+BE28*2","v":64726}]
[]
[null,null,null,null,null,null,null,null,"Total material",{"$f":"SUM(J28:J37)","v":15.659999999999997},{"$f":"SUM(K28:K37)","v":15.659999999999997},null,"Total (€)",{"$f":"SUMPRODUCT(M28:M37,N28:N37)","v":133.85},null,null,null,"Total (€)",{"$f":"SUM(S28:S37)","v":553.56000000000006},null,"Total (€)",{"$f":"SUMPRODUCT(U28:U37,W28:W37)","v":133.85},null,null,null,null,null,null,"Total (€)",{"$f":"SUMPRODUCT(AC28:AC37,AE28:AE37)","v":685.23},null,null,null,null,null,null,"Total (€)"]
["€/m2 MO"]
[{"$f":"((IF(B12=600,Rendimientos!E39,Rendimientos!E40))+(IF(C37=\"\",Rendimientos!E65,Rendimientos!E66)))","v":10.089},"OTROS CONCEPTOS (mano de obra, aislante, etc.)",null,"UD","UD/m2","UD","€ / UD",null,"%","€/m2","€"]
[null," ","Mano de obra: Oficial 1ª","-","-","-","-",1,"-",{"$f":"H42*A41","v":10.089},{"$f":"IFERROR(J42*$B$14,\"\")","v":10.089}]
[null," "," "," "," ",{"$f":"E43*B12","v":{"$error":"#VALUE!"}}," ",1,0,null,{"$f":"IFERROR(J43*$B$14,\"\")","v":0}]
[null," "," "," "," ",{"$f":"E44*B12","v":{"$error":"#VALUE!"}}," ",1,0,null,0]
[null,null,null,null,null,null,null,null,null,null," "]
[null," "," "," "," ",null,null,null,"Total otros conceptos",{"$f":"SUM(IFERROR(J40:J44,\" \"))","v":10.089},{"$f":"K40+SUM(K42:K44)","v":10.089}]
[null," "," "," "," ",null," "]
[null,null,null,null,null,null,null,null,"TOTAL ",{"$f":"J39+J46","v":25.748999999999995},{"$f":"K39+K46","v":25.748999999999995}]
[null,null,null,null,null,null,"Beneficio (%)",1,"TOTAL inc. Beneficio",{"$f":"J48*(1+G50/100)","v":30.898799999999994},{"$f":"K48*(1+G50/100)","v":30.898799999999994}]
[null,null,null,null,null,null,{"$f":"H50* A21","v":20},1]
[]
[null,{"$f":"Rendimientos!C141","v":"NOTA: Rendimientos calculados teniendo en cuenta un despedicio del 2% en las placas y del 5% en el resto del sistema."}]
[]
[]
[]
[]
[]
[]
[]
[]
[]
[]
[]
[]
[]
[]
[]
[]
[]
[]
[]
[]
[]
[]
[]
[]
[]
[]
[]
[]
[]
[]
[]
[]
[]
[]
[]
[]
[]
[]
[]
[]
[]
[]
[]
[]
[]
[]
[]
[]
[]
[]
[]
[null,"LINKS A DESPLEGABLES"]
[]
[null,"Acabado"]
[null,{"$f":"Rendimientos!B24","v":"Q2"},{"$f":"Rendimientos!C24","v":"Totalmente finalizado con nivel de acabado Q2"}]
[null,{"$f":"Rendimientos!B25","v":"Q3"},{"$f":"Rendimientos!C25","v":"Totalmente finalizado con nivel de acabado Q3"}]
[null,{"$f":"Rendimientos!B26","v":"Q4"},{"$f":"Rendimientos!C26","v":"Totalmente finalizado con nivel de acabado Q4"}]
[]
[null,"Modulación"]
[null,null,{"$f":"Rendimientos!C27","v":600}]
[null,null,{"$f":"Rendimientos!C28","v":400}]
[]
[null,"Placas"]
[null,"040113",{"$f":"VLOOKUP(B116,Listado!$A$5:$B$50,2,FALSE)","v":"PLACA ATT BASIC 13X600X1200 (78)"}]
[null,"040115",{"$f":"VLOOKUP(B117,Listado!$A$5:$B$50,2,FALSE)","v":"PLACA ATT BASIC 15X600X1200 (66)"}]
[null,"040120",{"$f":"VLOOKUP(B118,Listado!$A$5:$B$50,2,FALSE)","v":"PLACA ATT BASIC 20X600X1200 (48)"}]
[null,"040213",{"$f":"VLOOKUP(B119,Listado!$A$5:$B$50,2,FALSE)","v":"PLACA ATT HIDRO 13X600X1200 (78)"}]
[null,"040215",{"$f":"VLOOKUP(B120,Listado!$A$5:$B$50,2,FALSE)","v":"PLACA ATT HIDRO 15X600X1200 (66)"}]
[null,"040220",{"$f":"VLOOKUP(B121,Listado!$A$5:$B$50,2,FALSE)","v":"PLACA ATT HIDRO 20X600X1200 (48)"}]
[null,"040313",{"$f":"VLOOKUP(B122,Listado!$A$5:$B$50,2,FALSE)","v":"PLACA ATT FUEGO 13X600X1200 (78)"}]
[null,"040315",{"$f":"VLOOKUP(B123,Listado!$A$5:$B$50,2,FALSE)","v":"PLACA ATT FUEGO 15X600X1200 (66)"}]
[null,"040320",{"$f":"VLOOKUP(B124,Listado!$A$5:$B$50,2,FALSE)","v":"PLACA ATT FUEGO 20X600X1200 (48)"}]
[null,"040413",{"$f":"VLOOKUP(B125,Listado!$A$5:$B$50,2,FALSE)","v":"PLACA ATT RESIST 13X600X1200 (78)"}]
[null,"040415",{"$f":"VLOOKUP(B126,Listado!$A$5:$B$50,2,FALSE)","v":"PLACA ATT RESIST 15X600X1200 (66)"}]
[null,"040420",{"$f":"VLOOKUP(B127,Listado!$A$5:$B$50,2,FALSE)","v":"PLACA ATT RESIST 20X600X1200 (48)"}]
[null,"040513",{"$f":"VLOOKUP(B128,Listado!$A$5:$B$50,2,FALSE)","v":"PLACA ATT HIDROPLUS 13X600X1200 (78)"}]
[null,"040515",{"$f":"VLOOKUP(B129,Listado!$A$5:$B$50,2,FALSE)","v":"PLACA ATT HIDROPLUS 15X600X1200 (66)"}]
[null,"040520",{"$f":"VLOOKUP(B130,Listado!$A$5:$B$50,2,FALSE)","v":"PLACA ATT HIDROPLUS 20X600X1200 (48)"}]
[null,"040613",{"$f":"VLOOKUP(B131,Listado!$A$5:$B$50,2,FALSE)","v":"PLACA ATT SUPREM 13X600X1200 (78)"}]
[null,"040615",{"$f":"VLOOKUP(B132,Listado!$A$5:$B$50,2,FALSE)","v":"PLACA ATT SUPREM 15X600X1200 (66)"}]
[null,"040620",{"$f":"VLOOKUP(B133,Listado!$A$5:$B$50,2,FALSE)","v":"PLACA ATT SUPREM 20X600X1200 (48)"}]
[]
[null,"tcs"]
[null,"48134730","PERFIL TC 47X3000 (12UDS)"]
[null,"48136030","PERFIL TC 60X3000 (8UDS)"]
[]
[]
[]
[]
[]
[]
[]
[]
[]
[null,"Pasta de juntas"]
[null,"0470010110",{"$f":"VLOOKUP(B148,Listado!$A$5:$B$49,2,FALSE)","v":"PASTA ATT JUNTAS 10KG 60 MIN (56)"}]
[null,"0470010210",{"$f":"VLOOKUP(B149,Listado!$A$5:$B$49,2,FALSE)","v":"PASTA ATT JUNTAS 10KG 30 MIN (56)"}]
[null,"0470010111",{"$f":"VLOOKUP(B150,Listado!$A$5:$B$49,2,FALSE)","v":"PASTA ATT JUNTAS H 10 KG 60 MIN (56) "}]